Workbook

Sheet Présentation
G3: Systèmes de Ventilation
G4: Améliorations énergétiques
D24: Doc France Air
A27: Nota : | B27: Pour assurer une bonne lisibilité, veuillez respecter une
B28: résolution d'écran MINIMUM : 1280 * 1024
F35: Doc Aldes
A37: JP GAVET - Académie Toulouse | G37: Feuilles de Présentation PROJET inspirées de "Outils Conso.xls" Société CARDONNEL

Sheet Simulateur
A2: SIMULATION : CALCUL DE L'EFFICACITE D'UN ECHANGEUR EQUIPANT UNE VMC DOUBLE FLUX STATIQUE
E4: Te1 = TINTERIEURE = | F4: 20.00 | G4: °C | I4: Te1 = TINTERIEURE = | J4: 18.00 | K4: °C
E5: Te2 = TEXTERIEURE = | F5: -5.00 | G5: °C | I5: Te2 = TEXTERIEURE = | J5: -7.00 | K5: °C
E6: Efficacite ECHANGEUR = | F6: 0.90 | I6: Efficacite ECHANGEUR = | J6: 0.60
E8: Ts2 = TSOUFFLAGE = | F8: =F6*(F4-F5)+F5 -> 17.50 | G8: °C | I8: Ts2 = TSOUFFLAGE = | J8: =J6*(J4-J5)+J5 -> 8.00 | K8: °C
E10: P RECUPEREE AVEC ECHANGEUR = | F10: =0.34*1*(F8-F5) -> 7.65 | G10: W/(m3/h d'air) | I10: P RECUPEREE AVEC ECHANGEUR = | J10: =0.34*1*(J8-J5) -> 5.10 | K10: W/(m3/h d'air)
E11: P CHAUFFAGE A INSTALLER = | F11: =0.34*1*(F4-F8) -> 0.85 | G11: W/(m3/h d'air) | I11: P CHAUFFAGE A INSTALLER = | J11: =0.34*1*(J4-J8) -> 3.40 | K11: W/(m3/h d'air)
E12: P CHAUFFAGE SANS ECHANGEUR = | F12: =0.34*1*(F4-F5) -> 8.50 | G12: W/(m3/h d'air) | I12: P CHAUFFAGE SANS ECHANGEUR = | J12: =0.34*1*(J4-J5) -> 8.50 | K12: W/(m3/h d'air)
E14: Qv REPRISE = Qv SOUFFLAGE = | F14: 200.00 | G14: m3/h | I14: Qv REPRISE = Qv SOUFFLAGE = | J14: 200.00 | K14: m3/h
E16: P RECUPEREE AVEC ECHANGEUR = | F16: =F10*F14 -> 1530.00 | G16: W | I16: P RECUPEREE AVEC ECHANGEUR = | J16: =J10*J14 -> 1020.00 | K16: W
E17: P CHAUFFAGE A INSTALLER = | F17: =F11*F14 -> 170.00 | G17: W | I17: P CHAUFFAGE A INSTALLER = | J17: =J11*J14 -> 680.00 | K17: W
E18: P CHAUFFAGE SANS ECHANGEUR = | F18: =F12*F14 -> 1700.00 | G18: W | I18: P CHAUFFAGE SANS ECHANGEUR = | J18: =J12*J14 -> 1700.00 | K18: W

Sheet Données Projet PAVILLON
A1: IDENTIFICATION DU PROJET - Pavillon
A6: Données de Base du Projet
B9: Département : | F9: 65 - Hautes-Pyrénées | I9: N° : | J9: =LOOKUP(F9,'Donnees Climatiques Hiver'!B4:CS5) -> 65
B10: Situation : | F10: Alt. entre 0 et 200 m | I10: Suivant EN 12831
B11: Temp_ ext de base : | F11: =VLOOKUP(F10,'Donnees Climatiques Hiver'!A5:CS20,J9+1,FALSE) -> -5.00 °C | I11: =IF(F11="-","Situation Inconnue !!","") -> 
B13: Nouvelle Temp_Ext : | F13: -1.00 °C
B15: =IF(F13<>F11,"Que Pensez-vous de cette valeur ? Regardez les données météorologiques d'un Lieu de construction !!","") -> Que Pensez-vous de cette valeur ? Regardez les données météorologiques d'un Lieu de construction !!
B17: Bâtiment : | D17: Surface : | F17: 200.00 m²
D18: HSP : | F18: 2.50 m
D19: Nb de niveaux : | F19: 2
A20: Descriptif Technique
E23: AVANT MODIFICATION | K23: APRES MODIFICATION
B24: Ventilation : | E24: VMC Simple Flux Autoréglable | K24: VMC Simple Flux Autoréglable
B25: Efficacité DF : | K25: 0%
B26: Débit d'Air Neuf : | E26: 120 m3/h | K26: 120 m3/h | M26: Peut être différent de l'initial !
B27: Puissance Ventilateur : | E27: 30.00 W | G27: =IF(E24="VMC Double Flux","Attention ! 2 Moteurs","") ->  | K27: 30.00 W | M27: =IF(K24="VMC Double Flux","Attention ! 2 Moteurs","") -> 
B28: Température intérieure : | E28: 18.00 °C | K28: 18.00 °C
E30: Intermittence | G30: Rendement/COP | K30: Intermittence | M30: Rendement/COP
B31: Chauffage de l'air : | E31: 0.95 | G31: 0.9 | K31: 0.95 | M31: 0.9
B33: Nb heures à Text :
B35: Acoustique de façade : | E35: NON | G35: =IF(E35="OUI","Ouvrir le fichier Calcul DN AT","") ->  | K35: NON
B37: Prix du kWh électrique : | E37: Moy | F37: 0.10 € | K37: Variation de Vitesse ?? | N37: OUI
A39: Résultats
F42: Saison | L42: Journée Type
F43: AVANT MODIFICATION | H43: APRES MODIFICATION | J43: GAINS | L43: AVANT MODIFICATION | N43: APRES MODIFICATION | P43: GAINS
B44: Consommation Energétique due au Chauffage de l'Air | F44: ='PAVILLON Saison chauffe'!J11 -> 1447.35 kWh | H44: ='PAVILLON Saison chauffe'!J13 -> 1447.35 kWh | L44: ='PAVILLON journée Type'!J12 -> 32.48 kWh | N44: ='PAVILLON journée Type'!J14 -> 32.48 kWh
B45: Facture énergétique Chauffage de l'Air | F45: ='PAVILLON Saison chauffe'!H12 -> 161.30 € | H45: ='PAVILLON Saison chauffe'!H13 -> 161.30 € | J45: ='PAVILLON Saison chauffe'!H14 -> 0.00 € | L45: ='PAVILLON journée Type'!H13 -> 3.32 € | N45: ='PAVILLON journée Type'!H14 -> 3.32 € | P45: ='PAVILLON journée Type'!H15 -> 0.00 €
B46: Coût du Renouvellement d'Air et Infiltrations | F46: ='PAVILLON Saison chauffe'!H11 -> 144.74 € | H46: ='PAVILLON Saison chauffe'!C46 -> 144.74 € | J46: =F46-H46 -> 0.00 € | L46: ='PAVILLON journée Type'!H12 -> 3.25 € | N46: ='PAVILLON journée Type'!C52 -> 3.25 € | P46: =L46-N46 -> 0.00 €
B47: Dont Coût des infiltrations d'air | F47: ='PAVILLON Saison chauffe'!P11 -> 58.33 € | H47: ='PAVILLON Saison chauffe'!P13 -> 58.33 € | J47: =F47-H47 -> 0.00 € | L47: ='PAVILLON journée Type'!P18 -> 1.31 € | N47: ='PAVILLON journée Type'!P20 -> 1.31 € | P47: =L47-N47 -> 0.00 €
B48: Part des Infiltrations d'air | F48: ='PAVILLON Saison chauffe'!P12 -> 40.30% | H48: ='PAVILLON Saison chauffe'!P14 -> 40.30% | L48: ='PAVILLON journée Type'!P19 -> 40.30% | N48: ='PAVILLON journée Type'!P21 -> 40.30%

Sheet PAVILLON Saison chauffe
A1: Système Double Flux et Consommations Energétiques - Saison de chauffe : 230 jours et Renouvellement d'Air à Vitesse Constante
B3: DONNEES DE L'ETUDE | F3: Caractéristiques des Moteurs du système de ventilation | I3: Consommations et coûts de fonctionnement des Ventilateurs | M3: Débit d'Infiltration d'air neuf : Vinf,i
B4: Cout moyen du kWh electrique | C4: ='Données Projet PAVILLON'!F37 -> 0.10 € | E4: ='Données Projet PAVILLON'!E24:H24 -> VMC Simple Flux Autoréglable | F4: Puissance consommée du Ventilateur AVANT modifications | H4: ='Données Projet PAVILLON'!E27 -> 30.00 W | I4: Consommation ventilateur en kWh | J4: =24*230*H4*0.001 -> 165.60 kWh | M4: Surface Pavillon | N4: ='Données Projet PAVILLON'!F17 -> 200.00 m² | O4: ='Données Projet PAVILLON'!E24 -> VMC Simple Flux Autoréglable | Q4: ='Données Projet PAVILLON'!K24 -> VMC Simple Flux Autoréglable
A5: ='Données Projet PAVILLON'!E24 -> VMC Simple Flux Autoréglable | B5: Débit air ENTRANT (fonction du logement et du système de ventilation) | C5: ='Données Projet PAVILLON'!E26 -> 120 m3/h | I5: Cout de fonctionnement ventlilateur en € | J5: =(J4)*C4 -> 16.56 € | M5: Volume du batiment | N5: =N4*N7 -> 500.00 m3 | O5: n50 = | P5: =1.8*P6*(3/2) -> 2.70 h^-1 | Q5: n50 = | R5: =1.8*R6*(3/2) -> 2.70 h^-1
B6: Intermittence | C6: ='Données Projet PAVILLON'!E31 -> 0.95 | E6: ='Données Projet PAVILLON'!K24 -> VMC Simple Flux Autoréglable | F6: Puissance consommée des Ventilateurs APRES modifications | H6: ='Données Projet PAVILLON'!K27 -> 30.00 W | I6: Consommation des ventilateurs en kWh | J6: =24*230*H6*0.001 -> 165.60 kWh | M6: Nb de niveaux | N6: ='Données Projet PAVILLON'!F19 -> 2 | O6: Degré Etanchéité : | P6: 1 | Q6: Degré Etanchéité : | R6: 1
B7: Température intérieure de confort imposée | C7: ='Données Projet PAVILLON'!E28 -> 18.00 °C | I7: Cout de fonctionnement ventlilateurs en € | J7: =(J6)*C4 -> 16.56 € | M7: HSP | N7: ='Données Projet PAVILLON'!F18 -> 2.50 m | O7: Vinf,i = | P7: =2*P5*$N$5*0.03 -> 81 m3/h | Q7: Vinf,i = | R7: =2*$R$5*$N$5*0.03 -> 81 m3/h
B8: Rendement global système chauffage | C8: ='Données Projet PAVILLON'!G31 -> 0.9 | E8: Fonctionnement Ventilateur(s) 24h/24h - 230 jours/an : saison de chauffe
A9: ='Données Projet PAVILLON'!K24 -> VMC Simple Flux Autoréglable | B9: Débit air ENTRANT (fonction du logement et du système de ventilation) | C9: ='Données Projet PAVILLON'!K26 -> 120 m3/h
B10: Température intérieure de confort souhaitée | C10: ='Données Projet PAVILLON'!K28 -> 18.00 °C | F10: Coûts et gains réalisés | I10: Consommations Energetiques | M10: Coûts Energétiques des Infiltrations d'Air
B11: Intermittence | C11: ='Données Projet PAVILLON'!K31 -> 0.95 | E11: ='Données Projet PAVILLON'!E24:H24 -> VMC Simple Flux Autoréglable | F11: Coût du Renouvellement d'air par saison de chauffe en € | H11: =IF(P6=0,C28,C33) -> 144.74 € | I11: Consommation énergétique pour assurer le chauffage du RA sans echangeur | J11: =IF(P6=0,C27,C32) -> 1447.35 kWh | M11: ='Données Projet PAVILLON'!E24 -> VMC Simple Flux Autoréglable | N11: Coût des infiltrations d'air dans la saison de chauffe : | P11: =$C$35 -> 58.33 €
B12: Rendement global système chauffage | C12: ='Données Projet PAVILLON'!M31 -> 0.9 | F12: Si tout ELEC : Coût par saison de chauffe en € du Renouvellement d'air | H12: =IF(P6=0,C29,C34) -> 161.30 € | N12: Part du coût des infiltrations d'air : | P12: =$C$36 -> 40.3%
B13: Efficacité de l'échangeur statique du système Double Flux | C13: ='Données Projet PAVILLON'!K25 -> 0% | E13: ='Données Projet PAVILLON'!K24 -> VMC Simple Flux Autoréglable | F13: Si tout ELEC : Coût par saison de chauffe en € du Renouvellement d'air | H13: =IF(P6=0,C41,C47) -> 161.30 € | I13: Consommation énergétique pour assurer le chauffage du RA avec échangeur | J13: =IF(P6=0,C39,C45) -> 1447.35 kWh | M13: ='Données Projet PAVILLON'!K24 -> VMC Simple Flux Autoréglable | N13: Coût des infiltrations d'air dans la saison de chauffe : | P13: =$C$49 -> 58.33 €
B14: Prix du nouveau système de Ventilation | C14: 2,000.00 € | F14: Gains réalisés entre AVANT et APRES en € | H14: =IF(P6=0,C42,C48) -> 0.00 € | N14: Part du coût des infiltrations d'air : | P14: =$C$50 -> 40.3%
B15: Temps de retour sur investissement pour assurer le Renouvellement d'Air | C15: =IF(C13=0,"",C14/H14) ->  | F15: Gain sur facture en % : | H15: =H14/H12 -> 0.00%
B17: Evolution des Besoins énergétiques en kWh sur la saison de chauffe
B18: Nb heures à Text au cours de la saison de chauffe | D18: 0.00 h | E18: 0.00 h | F18: 6.00 h | G18: 18.00 h | H18: 48.00 h | I18: 49.00 h | J18: 108.00 h | K18: 140.00 h | L18: 286.00 h | M18: 391.00 h | N18: 434.00 h | O18: 325.00 h | P18: 226.00 h | Q18: 163.00 h | R18: 112.00 h | S18: 73.00 h | T18: 74.00 h
B19: Evolution de la Température extérieure | D19: -10.00 °C | E19: -8.00 °C | F19: -6.00 °C | G19: -4.00 °C | H19: -2.00 °C | I19: 0.00 °C | J19: 2.00 °C | K19: 4.00 °C | L19: 6.00 °C | M19: 8.00 °C | N19: 10.00 °C | O19: 12.00 °C | P19: 14.00 °C | Q19: 16.00 °C | R19: 18.00 °C | S19: 19.00 °C | T19: 20.00 °C
B20: Evolution de la température au soufflage | D20: =$C$13*($C$10-D$19)+D$19 -> -10.00 °C | E20: -8.00 °C | F20: -6.00 °C | G20: -4.00 °C | H20: -2.00 °C | I20: 0.00 °C | J20: 2.00 °C | K20: 4.00 °C | L20: 6.00 °C | M20: 8.00 °C | N20: 10.00 °C | O20: 12.00 °C | P20: 14.00 °C | Q20: 16.00 °C | R20: 18.00 °C | S20: 19.00 °C | T20: 20.00 °C
B21: Puissance consommée pour assurer le RA sans échangeur sans infiltration d'air | D21: =IF(D$18=0,0,0.34*$C$5*($C$7-D$19)) -> 0.00 W | E21: 0.00 W | F21: 979.20 W | G21: 897.60 W | H21: 816.00 W | I21: 734.40 W | J21: 652.80 W | K21: 571.20 W | L21: 489.60 W | M21: 408.00 W | N21: 326.40 W | O21: 244.80 W | P21: 163.20 W | Q21: 81.60 W | R21: 0.00 W | S21: -40.80 W | T21: -81.60 W
B22: Puissance consommée pour assurer le RA sans échangeur avec infiltration d'air | D22: =IF(D$18=0,0,0.34*($C$5+$P$7)*($C$7-D$19)) -> 0.00 W | E22: 0.00 W | F22: 1640.16 W | G22: 1503.48 W | H22: 1366.80 W | I22: 1230.12 W | J22: 1093.44 W | K22: 956.76 W | L22: 820.08 W | M22: 683.40 W | N22: 546.72 W | O22: 410.04 W | P22: 273.36 W | Q22: 136.68 W | R22: 0.00 W | S22: -68.34 W | T22: -136.68 W
A23: Pour Info ! | B23: Puissance récupérée par le Double Flux à 100% de charge en W | D23: =IF(D$18=0,0,IF(D$19>D$20,0,0.34*$C$9*(D$20-D$19))) -> 0.00 W | E23: =IF(E$18=0,0,IF(E$19>E$20,0,0.34*$C$9*(E$20-E$19))) -> 0.00 W | F23: 0.00 W | G23: 0.00 W | H23: 0.00 W | I23: 0.00 W | J23: 0.00 W | K23: 0.00 W | L23: 0.00 W | M23: 0.00 W | N23: 0.00 W | O23: 0.00 W | P23: 0.00 W | Q23: 0.00 W | R23: 0.00 W | S23: 0.00 W | T23: 0.00 W
C26: TOTAUX
A27: ='Données Projet PAVILLON'!E24 -> VMC Simple Flux Autoréglable | B27: Conso Chauffage RA sans infiltration d'air | C27: =SUM(D27:T27) -> 864.09 kWh | D27: =0.34*$C$5*(D$18*($C$7-D$19))*0.001*$C$6/$C$8 -> 0.000 | E27: 0.000 | F27: 6.202 | G27: 17.054 | H27: 41.344 | I27: 37.985 | J27: 74.419 | K27: 84.411 | L27: 147.805 | M27: 168.391 | N27: 149.527 | O27: 83.980 | P27: 38.932 | Q27: =IF(Q$19>$C$7,0,0.34*$C$5*(Q$18*($C$7-Q$19))*0.001*$C$6/$C$8) -> 14.040 | R27: =IF(R$19>$C$7,0,0.34*$C$5*(R$18*($C$7-R$19))*0.001*$C$6/$C$8) -> 0.000 | S27: 0.000 | T27: 0.000
B28: Cout RA par saison en € : | C28: =C27*C4 -> 86.41 €
B29: Si tout ELEC avec ventilateur : Cout par saison en € | C29: =(C27+J4)*C4 -> 102.97 €
C31: TOTAUX
B32: Conso Chauffage RA avec Infiltration d'air | C32: =SUM(D32:T32) -> 1447.35 kWh | D32: =(0.34*$C$5*(D$18*($C$7-D$19))*0.001+0.34*$P$7*(D$18*($C$7-D$19)*0.001))*$C$6/$C$8 -> 0.000 | E32: 0.000 | F32: 10.388 | G32: 28.566 | H32: 69.251 | I32: 63.625 | J32: 124.652 | K32: 141.388 | L32: 247.573 | M32: 282.054 | N32: 250.459 | O32: 140.667 | P32: 65.212 | Q32: =IF(Q$19>$C$7,0,(0.34*$C$5*(Q$18*($C$7-Q$19))*0.001+0.34*$P$7*(Q$18*($C$7-Q$19)*0.001))*$C$6/$C$8) -> 23.517 | R32: =IF(R$19>$C$7,0,(0.34*$C$5*(R$18*($C$7-R$19))*0.001+0.34*$P$7*(R$18*($C$7-R$19)*0.001))*$C$6/$C$8) -> 0.000 | S32: 0.000 | T32: 0.000
B33: Cout RA par saison en € : | C33: =C32*C4 -> 144.74 €
B34: Si tout ELEC avec ventilateur : Cout par saison en € | C34: =(C32+J4)*C4 -> 161.30 €
B35: Cout des Infiltrations d'air : | C35: =SUM(D35:T35)*C4 -> 58.33 € | D35: =(0.34*$P$7*(D$18*($C$7-D$19))*0.001)*$C$6/$C$8 -> 0.00 | E35: 0.00 | F35: 4.19 | G35: 11.51 | H35: 27.91 | I35: 25.64 | J35: 50.23 | K35: 56.98 | L35: 99.77 | M35: 113.66 | N35: 100.93 | O35: 56.69 | P35: 26.28 | Q35: =IF(Q$19>$C$7,0,(0.34*$P$7*(Q$18*($C$7-Q$19))*0.001)*$C$6/$C$8) -> 9.48 | R35: =IF(R$19>$C$7,0,(0.34*$P$7*(R$18*($C$7-R$19))*0.001)*$C$6/$C$8) -> 0.00 | S35: 0.00 | T35: 0.00
B36: Part en % | C36: =C35/C33 -> 40.3%
C38: TOTAUX
A39: ='Données Projet PAVILLON'!K24 -> VMC Simple Flux Autoréglable | B39: Conso chauffage RA sans infiltration d'air | C39: =SUM(D39:T39) -> 864.09 kWh | D39: =IF(D$18=0,"",IF($A$39="VMC Double Flux",((0.34*0.001*$C$9*D$18*($C$10-D$20))*$C$11/$C$12),((0.34*0.001*$C$9*D$18*($C$10-D$19))*$C$11/$C$12))) ->  | E39: =IF(E$18=0,"",IF($A$39="VMC Double Flux",((0.34*0.001*$C$9*E$18*($C$10-E$20))*$C$11/$C$12),((0.34*0.001*$C$9*E$18*($C$10-E$19))*$C$11/$C$12))) ->  | F39: 6.202 | G39: 17.054 | H39: 41.344 | I39: 37.985 | J39: 74.419 | K39: 84.411 | L39: 147.805 | M39: 168.391 | N39: 149.527 | O39: 83.980 | P39: 38.932 | Q39: =IF(Q$18=0,"",IF(Q19>$C$10,0,IF($A$39="VMC Double Flux",((0.34*0.001*$C$9*Q$18*($C$10-Q$20))*$C$11/$C$12),((0.34*0.001*$C$9*Q$18*($C$10-Q$19))*$C$11/$C$12)))) -> 14.040 | R39: =IF(R$18=0,"",IF(R19>$C$10,0,IF($A$39="VMC Double Flux",((0.34*0.001*$C$9*R$18*($C$10-R$20))*$C$11/$C$12),((0.34*0.001*$C$9*R$18*($C$10-R$19))*$C$11/$C$12)))) -> 0.000 | S39: =IF(S$18=0,"",IF(S19>$C$10,0,IF($A$39="VMC Double Flux",((0.34*0.001*$C$9*S$18*($C$10-S$20))*$C$11/$C$12),((0.34*0.001*$C$9*S$18*($C$10-S$19))*$C$11/$C$12)))) -> 0.000 | T39: =IF(T$18=0,"",IF(T19>$C$10,0,IF($A$39="VMC Double Flux",((0.34*0.001*$C$9*T$18*($C$10-T$20))*$C$11/$C$12),((0.34*0.001*$C$9*T$18*($C$10-T$19))*$C$11/$C$12)))) -> 0.000
B40: Cout RA par saison en € : | C40: =C39*C4 -> 86.41 €
B41: Si tout ELEC : Cout par saison en € | C41: =(C39+J6)*C4 -> 102.97 €
B42: Gains réalisés en € | C42: =C29-C41 -> 0.00 €
C44: TOTAUX
B45: Conso chauffage RA avec infiltration d'air | C45: =SUM(D45:T45) -> 1447.35 kWh | D45: =IF(D$18=0,"",IF($A$39="VMC Double Flux",((0.34*0.001*$C$9*D$18*($C$10-D$20)+0.34*0.001*$R$7*D$18*($C$10-D$19))*$C$11/$C$12),((0.34*0.001*$C$9*D$18*($C$10-D$19)+0.34*0.001*$R$7*D$18*($C$10-D$19))*$C$11/$C$12))) ->  | E45: =IF(E$18=0,"",IF($A$39="VMC Double Flux",((0.34*0.001*$C$9*E$18*($C$10-E$20)+0.34*0.001*$R$7*E$18*($C$10-E$19))*$C$11/$C$12),((0.34*0.001*$C$9*E$18*($C$10-E$19)+0.34*0.001*$R$7*E$18*($C$10-E$19))*$C$11/$C$12))) ->  | F45: =IF(F$18=0,"",IF($A$39="VMC Double Flux",((0.34*0.001*$C$9*F$18*($C$10-F$20)+0.34*0.001*$R$7*F$18*($C$10-F$19))*$C$11/$C$12),((0.34*0.001*$C$9*F$18*($C$10-F$19)+0.34*0.001*$R$7*F$18*($C$10-F$19))*$C$11/$C$12))) -> 10.388 | G45: =IF(G$18=0,"",IF($A$39="VMC Double Flux",((0.34*0.001*$C$9*G$18*($C$10-G$20)+0.34*0.001*$R$7*G$18*($C$10-G$19))*$C$11/$C$12),((0.34*0.001*$C$9*G$18*($C$10-G$19)+0.34*0.001*$R$7*G$18*($C$10-G$19))*$C$11/$C$12))) -> 28.566 | H45: =IF(H$18=0,"",IF($A$39="VMC Double Flux",((0.34*0.001*$C$9*H$18*($C$10-H$20)+0.34*0.001*$R$7*H$18*($C$10-H$19))*$C$11/$C$12),((0.34*0.001*$C$9*H$18*($C$10-H$19)+0.34*0.001*$R$7*H$18*($C$10-H$19))*$C$11/$C$12))) -> 69.251 | I45: =IF(I$18=0,"",IF($A$39="VMC Double Flux",((0.34*0.001*$C$9*I$18*($C$10-I$20)+0.34*0.001*$R$7*I$18*($C$10-I$19))*$C$11/$C$12),((0.34*0.001*$C$9*I$18*($C$10-I$19)+0.34*0.001*$R$7*I$18*($C$10-I$19))*$C$11/$C$12))) -> 63.625 | J45: 124.652 | K45: 141.388 | L45: 247.573 | M45: 282.054 | N45: 250.459 | O45: 140.667 | P45: 65.212 | Q45: =IF(Q$18=0,"",IF(Q19>$C$10,0,IF($A$39="VMC Double Flux",((0.34*0.001*$C$9*Q$18*($C$10-Q$20)+0.34*0.001*$R$7*Q$18*($C$10-Q$19))*$C$11/$C$12),((0.34*0.001*$C$9*Q$18*($C$10-Q$19)+0.34*0.001*$R$7*Q$18*($C$10-Q$19))*$C$11/$C$12)))) -> 23.517 | R45: =IF(R$18=0,"",IF(R19>$C$10,0,IF($A$39="VMC Double Flux",((0.34*0.001*$C$9*R$18*($C$10-R$20)+0.34*0.001*$R$7*R$18*($C$10-R$19))*$C$11/$C$12),((0.34*0.001*$C$9*R$18*($C$10-R$19)+0.34*0.001*$R$7*R$18*($C$10-R$19))*$C$11/$C$12)))) -> 0.000 | S45: 0.000 | T45: 0.000
B46: Cout RA par saison en € : | C46: =C45*C4 -> 144.74 €
B47: Si tout ELEC : Cout par saison en € | C47: =(C45+J6)*C4 -> 161.30 €
B48: Gains réalisés en € | C48: =C34-C47 -> 0.00 €
B49: Dont Cout des Infiltrations d'air : | C49: =SUM(D49:T49)*C4 -> 58.33 € | D49: =(0.34*$R$7*(D$18*($C$10-D$19))*0.001)*$C$11/$C$12 -> 0.00 | E49: 0.00 | F49: 4.19 | G49: 11.51 | H49: 27.91 | I49: 25.64 | J49: 50.23 | K49: 56.98 | L49: 99.77 | M49: 113.66 | N49: 100.93 | O49: 56.69 | P49: =IF(P19>$C$10,0,(0.34*$R$7*(P$18*($C$10-P$19))*0.001)*$C$11/$C$12) -> 26.28 | Q49: =IF(Q19>$C$10,0,(0.34*$R$7*(Q$18*($C$10-Q$19))*0.001)*$C$11/$C$12) -> 9.48 | R49: =IF(R19>$C$10,0,(0.34*$R$7*(R$18*($C$10-R$19))*0.001)*$C$11/$C$12) -> 0.00 | S49: =IF(S19>$C$10,0,(0.34*$R$7*(S$18*($C$10-S$19))*0.001)*$C$11/$C$12) -> 0.00 | T49: =IF(T19>$C$10,0,(0.34*$R$7*(T$18*($C$10-T$19))*0.001)*$C$11/$C$12) -> 0.00
B50: Part en % | C50: =C49/C46 -> 40.3%

Sheet PAVILLON journée Type
A1: Système Double Flux et Consommations Energétiques - Journée Type de chauffage - Régulation de la Vitesse des Ventilateurs
B4: Données de l'étude | F4: Caractéristiques des moteurs du système de ventilation | I4: Consommations et Coûts de Fonctionnement des Ventilateurs | M4: Scénario de fonctionnement des ventilateurs - Variations de vitesses
B5: Cout moyen du kWh electrique | C5: ='Données Projet PAVILLON'!F37 -> 0.10 € | E5: ='Données Projet PAVILLON'!E24 -> VMC Simple Flux Autoréglable | F5: Puissance consommée du Ventilateur AVANT modifications | H5: ='Données Projet PAVILLON'!E27 -> 30.00 W | I5: Consommation ventilateur kWh/j | J5: =24*H5*0.001 -> 0.72 kWh/j | M5: Vitesse de rotation du Ventilateur 100% de charge (maxi) | O5: 500 tr/min | P5: Vitesse de rotation du Ventilateur mode régulation : | R5: 500 tr/min
A6: ='Données Projet PAVILLON'!E24 -> VMC Simple Flux Autoréglable | B6: Débit air ENTRANT 100% de charge (fonction du logement) | C6: ='Données Projet PAVILLON'!E26 -> 120 m3/h | I6: Coût fonctionnement ventlilateur en €/j | J6: =24*H5*0.001*$C$5 -> 0.07 €/j | M6: Temps de fonctionnement du ou des ventilateur par jour 100% de charge : | O6: 20.00 h | P6: Temps de fonctionnement du ou des ventilateurs phase réduite : | R6: 4.00 h
B7: Intermittence | C7: ='Données Projet PAVILLON'!E31 -> 0.95 | E7: ='Données Projet PAVILLON'!K24 -> VMC Simple Flux Autoréglable | F7: Puissance consommée des Ventilateur APRES modifications | H7: ='Données Projet PAVILLON'!K27 -> 30.00 W | I7: Consommation ventilateurs kWh/j | J7: =O6*H7*0.001+R6*(H7/(O5/R5)^3)*0.001 -> 0.72 kWh/j | M7: Nb de jours d'utilisation des locaux/an : Durée | O7: 1 jour(s)
B8: Température intérieure de confort imposée | C8: ='Données Projet PAVILLON'!E28 -> 18.00 °C | I8: Coût fonctionnement ventlilateurs en €/j | J8: =J7*$C$5 -> 0.07 €/j
B9: Rendement global système chauffage | C9: ='Données Projet PAVILLON'!G31 -> 0.9 | E9: Fonctionnement Ventilateur(s) suivant ligne de temps
A10: ='Données Projet PAVILLON'!K24 -> VMC Simple Flux Autoréglable | B10: Débit air ENTRANT 100% de charge (fonction du logement) | C10: ='Données Projet PAVILLON'!K26 -> 120 m3/h
B11: Débit d'air en régime réduit : | C11: =(R5/O5)*C6 -> 120 m3/h | E11: Sur 1 jour Type | F11: Coûts et gains réalisés Chauffage et Ventilateurs | I11: Consommations Energetiques en Chauffage | M11: Débit d'Infiltration d'air neuf : Vinf,i
B12: Température intérieure de confort souhaitée | C12: ='Données Projet PAVILLON'!K28 -> 18.00 °C | E12: ='Données Projet PAVILLON'!E24 -> VMC Simple Flux Autoréglable | F12: Coût du Renouvellement d'Air sur la journée en €/j | H12: =IF(P14=0,C34,C39) -> 3.25 €/j | I12: Consommation énergétique pour assurer le chauffage du RA sans echangeur | J12: =IF(P14=0,C33,C38) -> 32.48 kWh/j | M12: Surface Bâtiment = | N12: ='Données Projet PAVILLON'!F17 -> 200.00 m² | O12: ='Données Projet PAVILLON'!E24 -> VMC Simple Flux Autoréglable | Q12: ='Données Projet PAVILLON'!K24 -> VMC Simple Flux Autoréglable
B13: Intermittence | C13: ='Données Projet PAVILLON'!K31 -> 0.95 | F13: Si tout ELEC : Coût du Renouvellement d'air sur la journée en €/j | H13: =IF(P14=0,C35,C40) -> 3.32 €/j | M13: Volume du batiment = | N13: =N12*N15 -> 500.00 m3 | O13: n50 = | P13: =1.8*P14*(3/2) -> 2.70 h^-1 | Q13: n50 = | R13: =1.8*R14*(3/2) -> 2.70 h^-1
B14: Rendement global système chauffage | C14: ='Données Projet PAVILLON'!M31 -> 0.9 | E14: ='Données Projet PAVILLON'!K24 -> VMC Simple Flux Autoréglable | F14: Si tout ELEC : Coût du Renouvellement d'air sur la journée en €/j | H14: =IF(P14=0,C47,C53) -> 3.32 €/j | I14: Consommation énergétique pour assurer le chauffage du RA avec échangeur | J14: =IF(P14=0,C45,C51) -> 32.48 kWh/j | M14: Nb de niveaux = | N14: ='Données Projet PAVILLON'!F19 -> 2 | O14: Degré Etanchéité : | P14: ='PAVILLON Saison chauffe'!P6 -> 1 | Q14: Degré Etanchéité : | R14: ='PAVILLON Saison chauffe'!R6 -> 1
B15: Efficacité de l'échangeur statique du Double Flux | C15: ='Données Projet PAVILLON'!K25 -> 0% | F15: Gains réalisés dans la journée entre AVANT et APRES en €/j | H15: =IF(P14=0,C48,C54) -> 0.00 €/j | M15: HSP = | N15: ='Données Projet PAVILLON'!F18 -> 2.50 m | O15: Vinf,i = | P15: =2*P13*$N$13*0.03 -> 81 m3/h | Q15: Vinf,i = | R15: =2*$R$13*$N$13*0.03 -> 81 m3/h
B16: Prix du système Double Flux | C16: 1,500.00 € | F16: Gain sur facture en % : | H16: =IF(P14=0,(C35-C47)/C35,(C40-C53)/C40) -> 0.00%
M17: Coûts Energétiques des Infiltrations d'Air
M18: ='Données Projet PAVILLON'!E24 -> VMC Simple Flux Autoréglable | N18: Coût des infiltrations d'air dans la journée : | P18: =$C$41 -> 1.31 €/j
N19: Part du coût des infiltrations d'air : | P19: =$C$42 -> 40%
M20: ='Données Projet PAVILLON'!K24 -> VMC Simple Flux Autoréglable | N20: Coût des infiltrations d'air dans la journée : | P20: =$C$55 -> 1.31 €/j
N21: Part du coût des infiltrations d'air : | P21: =$C$56 -> 40%
B23: Evolution des Besoins énergétiques en kWh sur la journée Type
B24: Nb heures à Text au cours de la journée Type | D24: 1.00 h | E24: 1.00 h | F24: 1.00 h | G24: 1.00 h | H24: 1.00 h | I24: 1.00 h | J24: 1.00 h | K24: 1.00 h | L24: 1.00 h | M24: 1.00 h | N24: 1.00 h | O24: 1.00 h | P24: 1.00 h | Q24: 1.00 h | R24: 1.00 h | S24: 1.00 h | T24: 1.00 h | U24: 1.00 h | V24: 1.00 h | W24: 1.00 h | X24: 1.00 h | Y24: 1.00 h | Z24: 1.00 h
B25: Evolution de la Température extérieure | D25: -5.13 °C | E25: -5.52 °C | F25: -5.80 °C | G25: -5.90 °C | H25: -5.71 °C | I25: -5.23 °C | J25: -4.36 °C | K25: -3.12 °C | L25: -1.68 °C | M25: -0.04 °C | N25: 1.49 °C | O25: 2.64 °C | P25: 3.41 °C | Q25: 3.70 °C | R25: 3.41 °C | S25: 2.74 °C | T25: 1.68 °C | U25: 0.436 | V25: -0.812 | W25: -1.868 | X25: -2.828 | Y25: -3.596 | Z25: -4.172
B26: Evolution de la température au soufflage | D26: =$C$15*($C$12-D$25)+D$25 -> -5.13 °C | E26: -5.52 °C | F26: -5.80 °C | G26: -5.90 °C | H26: -5.71 °C | I26: -5.23 °C | J26: -4.36 °C | K26: -3.12 °C | L26: -1.68 °C | M26: -0.04 °C | N26: 1.49 °C | O26: 2.64 °C | P26: 3.41 °C | Q26: 3.70 °C | R26: 3.41 °C | S26: 2.74 °C | T26: 1.68 °C | U26: 0.44 °C | V26: -0.81 °C | W26: -1.87 °C | X26: -2.83 °C | Y26: -3.60 °C | Z26: -4.17 °C
B27: Puissance consommée pour assurer le RA sans échangeur sans infiltration d'air | D27: =IF(D$24=0,0,0.34*$C$6*D$24*($C$8-D$25)) -> 943.79 W | E27: 959.45 W | F27: 971.20 W | G27: 975.12 W | H27: 967.29 W | I27: 947.70 W | J27: 912.45 W | K27: 861.53 W | L27: 802.78 W | M27: 736.20 W | N27: 673.53 W | O27: 626.52 W | P27: 595.19 W | Q27: 583.44 W | R27: 595.19 W | S27: 622.61 W | T27: 665.69 W | U27: 716.61 W | V27: 767.53 W | W27: 810.61 W | X27: 849.78 W | Y27: 881.12 W | Z27: 904.62 W
B28: Puissance consommée pour assurer le RA sans échangeur avec infiltration d'air | D28: =IF(D$24=0,0,0.34*D$24*($C$6+$P$15)*($C$8-D$25)) -> 1580.84 W | E28: 1607.08 W | F28: 1626.77 W | G28: 1633.33 W | H28: 1620.20 W | I28: 1587.40 W | J28: 1528.36 W | K28: 1443.07 W | L28: 1344.66 W | M28: 1233.13 W | N28: 1128.16 W | O28: 1049.43 W | P28: 996.94 W | Q28: 977.26 W | R28: 996.94 W | S28: 1042.87 W | T28: 1115.04 W | U28: 1200.32 W | V28: 1285.61 W | W28: 1357.78 W | X28: 1423.39 W | Y28: 1475.87 W | Z28: 1515.23 W
A29: Pour Info ! | B29: Puissance récupérée par le Double Flux à 100% de charge en W | D29: =IF(D$24=0,0,IF(D$25>D$26,0,0.34*$C$10*D$24*(D$26-D$25))) -> 0.00 W | E29: =IF(E$24=0,0,IF(E$25>E$26,0,0.34*$C$10*E$24*(E$26-E$25))) -> 0.00 W | F29: =IF(F$24=0,0,IF(F$25>F$26,0,0.34*$C$10*F$24*(F$26-F$25))) -> 0.00 W | G29: 0.00 W | H29: 0.00 W | I29: 0.00 W | J29: 0.00 W | K29: 0.00 W | L29: 0.00 W | M29: 0.00 W | N29: 0.00 W | O29: 0.00 W | P29: 0.00 W | Q29: 0.00 W | R29: 0.00 W | S29: 0.00 W | T29: 0.00 W | U29: 0.00 W | V29: 0.00 W | W29: 0.00 W | X29: 0.00 W | Y29: 0.00 W | Z29: 0.00 W
C32: TOTAUX | D32: 1 | E32: 2 | F32: 3 | G32: 4 | H32: 5 | I32: 6 | J32: 7 | K32: 8 | L32: 9 | M32: 10 | N32: 11 | O32: 12 | P32: 13 | Q32: 14 | R32: 15 | S32: 16 | T32: 17 | U32: 18 | V32: 19 | W32: 20 | X32: 21 | Y32: 22 | Z32: 23
A33: ='Données Projet PAVILLON'!E24 -> VMC Simple Flux Autoréglable | B33: Conso Chauffage RA sans infiltration d'air | C33: =SUM(D33:Z33) -> 19.39 kWh/j | D33: =0.34*$C$6*(D$24*($C$8-D$25))*0.001*$C$7/$C$9 -> 0.996 | E33: 1.013 | F33: 1.025 | G33: 1.029 | H33: 1.021 | I33: 1.000 | J33: 0.963 | K33: 0.909 | L33: 0.847 | M33: 0.777 | N33: 0.711 | O33: =0.34*$C$6*(O$24*($C$8-O$25))*0.001*$C$7/$C$9 -> 0.661 | P33: 0.628 | Q33: 0.616 | R33: 0.628 | S33: 0.657 | T33: 0.703 | U33: 0.756 | V33: =0.34*$C$6*(V$24*($C$8-V$25))*0.001*$C$7/$C$9 -> 0.810 | W33: =0.34*$C$6*(W$24*($C$8-W$25))*0.001*$C$7/$C$9 -> 0.856 | X33: 0.897 | Y33: 0.930 | Z33: 0.955
B34: Cout RA sur la journée en € : | C34: =C33*C5 -> 1.94 €/j
B35: Si tout ELEC avec ventilateur : Cout sur la journée en € | C35: =(C33+J5)*C5 -> 2.01 €/j
C37: TOTAUX | D37: 1 | E37: 2 | F37: 3 | G37: 4 | H37: 5 | I37: 6 | J37: 7 | K37: 8 | L37: 9 | M37: 10 | N37: 11 | O37: 12 | P37: 13 | Q37: 14 | R37: 15 | S37: 16 | T37: 17 | U37: 18 | V37: 19 | W37: 20 | X37: 21 | Y37: 22 | Z37: 23
B38: Conso Chauffage RA avec Infiltration d'air | C38: =SUM(D38:Z38) -> 32.48 kWh/j | D38: =(0.34*$C$6*(D$24*($C$8-D$25))*0.001+0.34*$P$15*(D$24*($C$8-D$25)*0.001))*$C$7/$C$9 -> 1.669 | E38: 1.696 | F38: 1.717 | G38: 1.724 | H38: 1.710 | I38: =(0.34*$C$6*(I$24*($C$8-I$25))*0.001+0.34*$P$15*(I$24*($C$8-I$25)*0.001))*$C$7/$C$9 -> 1.676 | J38: =(0.34*$C$6*(J$24*($C$8-J$25))*0.001+0.34*$P$15*(J$24*($C$8-J$25)*0.001))*$C$7/$C$9 -> 1.613 | K38: 1.523 | L38: 1.419 | M38: 1.302 | N38: 1.191 | O38: =(0.34*$C$6*(O$24*($C$8-O$25))*0.001+0.34*$P$15*(O$24*($C$8-O$25)*0.001))*$C$7/$C$9 -> 1.108 | P38: 1.052 | Q38: 1.032 | R38: 1.052 | S38: 1.101 | T38: 1.177 | U38: 1.267 | V38: =(0.34*$C$6*(V$24*($C$8-V$25))*0.001+0.34*$P$15*(V$24*($C$8-V$25)*0.001))*$C$7/$C$9 -> 1.357 | W38: =(0.34*$C$6*(W$24*($C$8-W$25))*0.001+0.34*$P$15*(W$24*($C$8-W$25)*0.001))*$C$7/$C$9 -> 1.433 | X38: 1.502 | Y38: 1.558 | Z38: 1.599
B39: Cout RA sur la journée en € : | C39: =C38*C5 -> 3.25 €/j
B40: Si tout ELEC avec ventilateur : Cout sur la journée en € | C40: =(C38+J5)*C5 -> 3.32 €/j
B41: Cout des Infiltrations d'air : | C41: =SUM(D41:Z41)*C5 -> 1.31 €/j | D41: =(0.34*$P$15*(D$24*($C$8-D$25))*0.001)*$C$7/$C$9 -> 0.67 | E41: 0.68 | F41: 0.69 | G41: 0.69 | H41: 0.69 | I41: 0.68 | J41: 0.65 | K41: 0.61 | L41: 0.57 | M41: 0.52 | N41: 0.48 | O41: 0.45 | P41: 0.42 | Q41: 0.42 | R41: 0.42 | S41: 0.44 | T41: 0.47 | U41: 0.51 | V41: 0.55 | W41: 0.58 | X41: 0.61 | Y41: 0.63 | Z41: 0.64
B42: Part en % | C42: =C41/C39 -> 40%
C44: TOTAUX | D44: 1 | E44: 2 | F44: 3 | G44: 4 | H44: 5 | I44: 6 | J44: 7 | K44: 8 | L44: 9 | M44: 10 | N44: 11 | O44: 12 | P44: 13 | Q44: 14 | R44: 15 | S44: 16 | T44: 17 | U44: 18 | V44: 19 | W44: 20 | X44: 21 | Y44: 22 | Z44: 23
A45: ='Données Projet PAVILLON'!K24 -> VMC Simple Flux Autoréglable | B45: Conso chauffage RA sans infiltration d'air | C45: =SUM(D45:Z45) -> 19.39 kWh/j | D45: =IF(D$24=0,"",IF($A$45="VMC Double Flux",((0.34*0.001*$C$11*D$24*($C$12-D$26))*$C$13/$C$14),((0.34*0.001*$C$11*D$24*($C$12-D$25))*$C$13/$C$14))) -> 0.996 | E45: =IF(E$24=0,"",IF($A$45="VMC Double Flux",((0.34*0.001*$C$11*E$24*($C$12-E$26))*$C$13/$C$14),((0.34*0.001*$C$11*E$24*($C$12-E$25))*$C$13/$C$14))) -> 1.013 | F45: 1.025 | G45: 1.029 | H45: 1.021 | I45: =IF(I$24=0,"",IF($A$45="VMC Double Flux",((0.34*0.001*$C$10*I$24*($C$12-I$26))*$C$13/$C$14),((0.34*0.001*$C$10*I$24*($C$12-I$25))*$C$13/$C$14))) -> 1.000 | J45: =IF(J$24=0,"",IF($A$45="VMC Double Flux",((0.34*0.001*$C$10*J$24*($C$12-J$26))*$C$13/$C$14),((0.34*0.001*$C$10*J$24*($C$12-J$25))*$C$13/$C$14))) -> 0.963 | K45: =IF(K$24=0,"",IF($A$45="VMC Double Flux",((0.34*0.001*$C$11*K$24*($C$12-K$26))*$C$13/$C$14),((0.34*0.001*$C$11*K$24*($C$12-K$25))*$C$13/$C$14))) -> 0.909 | L45: =IF(L$24=0,"",IF($A$45="VMC Double Flux",((0.34*0.001*$C$11*L$24*($C$12-L$26))*$C$13/$C$14),((0.34*0.001*$C$11*L$24*($C$12-L$25))*$C$13/$C$14))) -> 0.847 | M45: 0.777 | N45: 0.711 | O45: =IF(O$24=0,"",IF($A$45 ="VMC Double Flux",((0.34*0.001*$C$10*O$24*($C$12-O$26))*$C$13/$C$14),((0.34*0.001*$C$10*O$24*($C$12-O$25))*$C$13/$C$14))) -> 0.661 | P45: =IF(P$24=0,"",IF($A$45="VMC Double Flux",((0.34*0.001*$C$11*P$24*($C$12-P$26))*$C$13/$C$14),((0.34*0.001*$C$11*P$24*($C$12-P$25))*$C$13/$C$14))) -> 0.628 | Q45: =IF(Q$24=0,"",IF($A$45="VMC Double Flux",((0.34*0.001*$C$11*Q$24*($C$12-Q$26))*$C$13/$C$14),((0.34*0.001*$C$11*Q$24*($C$12-Q$25))*$C$13/$C$14))) -> 0.616 | R45: 0.628 | S45: 0.657 | T45: 0.703 | U45: 0.756 | V45: =IF(V$24=0,"",IF(V26>$C$12,0,IF($A$45="VMC Double Flux",((0.34*0.001*$C$10*V$24*($C$12-V$26))*$C$13/$C$14),((0.34*0.001*$C$10*V$24*($C$12-V$25))*$C$13/$C$14)))) -> 0.810 | W45: =IF(W$24=0,"",IF(W26>$C$12,0,IF($A$45="VMC Double Flux",((0.34*0.001*$C$10*W$24*($C$12-W$26))*$C$13/$C$14),((0.34*0.001*$C$10*W$24*($C$12-W$25))*$C$13/$C$14)))) -> 0.856 | X45: =IF(X$24=0,"",IF(X26>$C$12,0,IF($A$45="VMC Double Flux",((0.34*0.001*$C$11*X$24*($C$12-X$26))*$C$13/$C$14),((0.34*0.001*$C$11*X$24*($C$12-X$25))*$C$13/$C$14)))) -> 0.897 | Y45: =IF(Y$24=0,"",IF(Y26>$C$12,0,IF($A$45="VMC Double Flux",((0.34*0.001*$C$11*Y$24*($C$12-Y$26))*$C$13/$C$14),((0.34*0.001*$C$11*Y$24*($C$12-Y$25))*$C$13/$C$14)))) -> 0.930 | Z45: 0.955
B46: Cout RA sur la journée en € : | C46: =C45*C5 -> 1.94 €/j
B47: Si tout ELEC : Cout sur la journée en € | C47: =(C45+J7)*C5 -> 2.01 €/j
B48: Gains réalisés en € | C48: =C35-C47 -> 0.00 €/j
C50: TOTAUX | D50: 1 | E50: 2 | F50: 3 | G50: 4 | H50: 5 | I50: 6 | J50: 7 | K50: 8 | L50: 9 | M50: 10 | N50: 11 | O50: 12 | P50: 13 | Q50: 14 | R50: 15 | S50: 16 | T50: 17 | U50: 18 | V50: 19 | W50: 20 | X50: 21 | Y50: 22 | Z50: 23
B51: Conso chauffage RA avec infiltration d'air | C51: =SUM(D51:Z51) -> 32.48 kWh/j | D51: =IF(D$24=0,"",IF($A$45="VMC Double Flux",((0.34*0.001*$C$11*D$24*($C$12-D$26)+0.34*0.001*$R$15*D$24*($C$12-D$25))*$C$13/$C$14),((0.34*0.001*$C$11*D$24*($C$12-D$25)+0.34*0.001*$R$15*D$24*($C$12-D$25))*$C$13/$C$14))) -> 1.669 | E51: =IF(E$24=0,"",IF($A$45="VMC Double Flux",((0.34*0.001*$C$11*E$24*($C$12-E$26)+0.34*0.001*$R$15*E$24*($C$12-E$25))*$C$13/$C$14),((0.34*0.001*$C$11*E$24*($C$12-E$25)+0.34*0.001*$R$15*E$24*($C$12-E$25))*$C$13/$C$14))) -> 1.696 | F51: 1.717 | G51: 1.724 | H51: 1.710 | I51: =IF(I$24=0,"",IF($A$45="VMC Double Flux",((0.34*0.001*$C$10*I$24*($C$12-I$26)+0.34*0.001*$R$15*I$24*($C$12-I$25))*$C$13/$C$14),((0.34*0.001*$C$10*I$24*($C$12-I$25)+0.34*0.001*$R$15*I$24*($C$12-I$25))*$C$13/$C$14))) -> 1.676 | J51: =IF(J$24=0,"",IF($A$45="VMC Double Flux",((0.34*0.001*$C$10*J$24*($C$12-J$26)+0.34*0.001*$R$15*J$24*($C$12-J$25))*$C$13/$C$14),((0.34*0.001*$C$10*J$24*($C$12-J$25)+0.34*0.001*$R$15*J$24*($C$12-J$25))*$C$13/$C$14))) -> 1.613 | K51: =IF(K$24=0,"",IF($A$45="VMC Double Flux",((0.34*0.001*$C$11*K$24*($C$12-K$26)+0.34*0.001*$R$15*K$24*($C$12-K$25))*$C$13/$C$14),((0.34*0.001*$C$11*K$24*($C$12-K$25)+0.34*0.001*$R$15*K$24*($C$12-K$25))*$C$13/$C$14))) -> 1.523 | L51: =IF(L$24=0,"",IF($A$45="VMC Double Flux",((0.34*0.001*$C$11*L$24*($C$12-L$26)+0.34*0.001*$R$15*L$24*($C$12-L$25))*$C$13/$C$14),((0.34*0.001*$C$11*L$24*($C$12-L$25)+0.34*0.001*$R$15*L$24*($C$12-L$25))*$C$13/$C$14))) -> 1.419 | M51: 1.302 | N51: 1.191 | O51: =IF(O$24=0,"",IF($A$45="VMC Double Flux",((0.34*0.001*$C$10*O$24*($C$12-O$26)+0.34*0.001*$R$15*O$24*($C$12-O$25))*$C$13/$C$14),((0.34*0.001*$C$10*O$24*($C$12-O$25)+0.34*0.001*$R$15*O$24*($C$12-O$25))*$C$13/$C$14))) -> 1.108 | P51: =IF(P$24=0,"",IF($A$45="VMC Double Flux",((0.34*0.001*$C$11*P$24*($C$12-P$26)+0.34*0.001*$R$15*P$24*($C$12-P$25))*$C$13/$C$14),((0.34*0.001*$C$11*P$24*($C$12-P$25)+0.34*0.001*$R$15*P$24*($C$12-P$25))*$C$13/$C$14))) -> 1.052 | Q51: =IF(Q$24=0,"",IF($A$45="VMC Double Flux",((0.34*0.001*$C$11*Q$24*($C$12-Q$26)+0.34*0.001*$R$15*Q$24*($C$12-Q$25))*$C$13/$C$14),((0.34*0.001*$C$11*Q$24*($C$12-Q$25)+0.34*0.001*$R$15*Q$24*($C$12-Q$25))*$C$13/$C$14))) -> 1.032 | R51: 1.052 | S51: 1.101 | T51: 1.177 | U51: 1.267 | V51: =IF(V$24=0,"",IF(V26>$C$12,0,IF($A$45="VMC Double Flux",((0.34*0.001*$C$10*V$24*($C$12-V$26)+0.34*0.001*$R$15*V$24*($C$12-V$25))*$C$13/$C$14),((0.34*0.001*$C$10*V$24*($C$12-V$25)+0.34*0.001*$R$15*V$24*($C$12-V$25))*$C$13/$C$14)))) -> 1.357 | W51: =IF(W$24=0,"",IF(W26>$C$12,0,IF($A$45="VMC Double Flux",((0.34*0.001*$C$10*W$24*($C$12-W$26)+0.34*0.001*$R$15*W$24*($C$12-W$25))*$C$13/$C$14),((0.34*0.001*$C$10*W$24*($C$12-W$25)+0.34*0.001*$R$15*W$24*($C$12-W$25))*$C$13/$C$14)))) -> 1.433 | X51: =IF(X$24=0,"",IF(X26>$C$12,0,IF($A$45="VMC Double Flux",((0.34*0.001*$C$11*X$24*($C$12-X$26)+0.34*0.001*$R$15*X$24*($C$12-X$25))*$C$13/$C$14),((0.34*0.001*$C$11*X$24*($C$12-X$25)+0.34*0.001*$R$15*X$24*($C$12-X$25))*$C$13/$C$14)))) -> 1.502 | Y51: =IF(Y$24=0,"",IF(Y26>$C$12,0,IF($A$45="VMC Double Flux",((0.34*0.001*$C$11*Y$24*($C$12-Y$26)+0.34*0.001*$R$15*Y$24*($C$12-Y$25))*$C$13/$C$14),((0.34*0.001*$C$11*Y$24*($C$12-Y$25)+0.34*0.001*$R$15*Y$24*($C$12-Y$25))*$C$13/$C$14)))) -> 1.558 | Z51: 1.599
B52: Cout RA sur la journée en € : | C52: =C51*C5 -> 3.25 €/j
B53: Si tout ELEC : Cout sur la journée en € | C53: =(C51+J7)*C5 -> 3.32 €/j
B54: Gains réalisés en € | C54: =C40-C53 -> 0.00 €/j
B55: Dont Cout des Infiltrations d'air : | C55: =SUM(D55:Z55)*C5 -> 1.31 €/j | D55: =(0.34*$R$15*(D$24*($C$12-D$25))*0.001)*$C$13/$C$14 -> 0.67 | E55: 0.68 | F55: 0.69 | G55: 0.69 | H55: 0.69 | I55: 0.68 | J55: 0.65 | K55: 0.61 | L55: 0.57 | M55: 0.52 | N55: 0.48 | O55: 0.45 | P55: =IF(P25>$C$12,0,(0.34*$R$15*(P$24*($C$12-P$25))*0.001)*$C$13/$C$14) -> 0.42 | Q55: 0.42 | R55: 0.42 | S55: 0.44 | T55: 0.47 | U55: 0.51 | V55: 0.55 | W55: 0.58 | X55: 0.61 | Y55: 0.63 | Z55: 0.64
B56: Part en % | C56: =C55/C52 -> 40.3%

Sheet Données Projet Salle de Classe
A1: IDENTIFICATION DU PROJET - Salle de Classe
A6: Données de Base du Projet
B9: Département : | F9: 40 - Landes | I9: N° : | J9: =LOOKUP(F9,'Donnees Climatiques Hiver'!B4:CS5) -> 40
B10: Situation : | F10: Alt. entre 0 et 200 m | I10: Suivant EN 12831
B11: Temp_ ext de base : | F11: =VLOOKUP(F10,'Donnees Climatiques Hiver'!A5:CS20,J9+1,FALSE) -> -5.00 °C | I11: =IF(F11="-","Situation Inconnue !!","") -> 
B13: Nouvelle Temp_Ext : | F13: -14.00 °C
B15: =IF(F13<>F11,"Que Pensez-vous de cette valeur ? Regardez les données météorologiques du Lieu de construction !!","") -> Que Pensez-vous de cette valeur ? Regardez les données météorologiques du Lieu de construction !!
B17: Bâtiment : | D17: Surface : | F17: 200.00 m²
D18: HSP : | F18: 2.50 m
D19: Nb de niveaux : | F19: 1
A21: Descriptif Technique
E24: AVANT MODIFICATION | K24: APRES MODIFICATION
B25: Ventilation : | E25: VMC Simple Flux Autoréglable | K25: VMC Simple Flux Autoréglable
B26: Efficacité DF : | K26: 0%
B27: Débit d'Air Neuf : | E27: 600 m3/h | K27: 600 m3/h | M27: Peut être différent de l'initial !
B28: Puissance Ventilateur : | E28: 150.00 W | G28: =IF(E25="VMC Double Flux","Attention ! 2 Moteurs","") ->  | K28: 150.00 W | M28: =IF(K25="VMC Double Flux","Attention ! 2 Moteurs","") -> 
B29: Variation de Vitesse : | E29: NON | K29: NON | M29: ="Ciquez ici --->" -> Ciquez ici --->
B30: Température intérieure : | E30: 19.00 °C | K30: 19.00 °C
E32: Intermittence | G32: Rendement/COP | K32: Intermittence | M32: Rendement/COP
B33: Chauffage de l'air : | E33: 0.9 | G33: 0.95 | K33: 0.9 | M33: 0.95
B34: Nb heures à Text :
B36: Acoustique de façade : | E36: NON | G36: =IF(E36="OUI","Ouvrir le fichier Calcul DN AT","") ->  | K36: NON
B37: Prix du kWh électrique : | E37: Moy | F37: 0.10 €
A39: Résultats
F42: Journée Type
F43: AVANT MODIFICATION | H43: APRES MODIFICATION | J43: GAINS
B44: Consommation Energétique due au Chauffage de l'Air | F44: ='Salle de Classe Journée type'!J12 -> 103.81 kWh | H44: ='Salle de Classe Journée type'!J14 -> 103.81 kWh
B45: Facture énergétique Chauffage de l'Air | F45: ='Salle de Classe Journée type'!H13 -> 10.74 € | H45: ='Salle de Classe Journée type'!H14 -> 10.74 € | J45: ='Salle de Classe Journée type'!H15 -> 0.00 €
B46: Coût du Renouvellement d'Air et Infiltrations | F46: ='Salle de Classe Journée type'!H12 -> 10.38 € | H46: ='Salle de Classe Journée type'!C52 -> 10.38 € | J46: =F46-H46 -> 0.00 €
B47: Dont Coût des infiltrations d'air | F47: ='Salle de Classe Journée type'!C41 -> 1.23 € | H47: ='Salle de Classe Journée type'!C55 -> 1.23 € | J47: =F47-H47 -> 0.00 €
B48: Part des Infiltrations d'air | F48: ='Salle de Classe Journée type'!C42 -> 11.89% | H48: ='Salle de Classe Journée type'!C56 -> 11.89%

Sheet Salle de Classe Journée type
A1: Système Double Flux et Consommations Energétiques - Journée Type de chauffage - Régulation Occupation et Innocupation
B4: Données de l'étude | F4: Caractéristiques des moteurs du système de ventilation | I4: Consommations et Coûts de Fonctionnement des Ventilateurs | M4: Scénario de fonctionnement des ventilateurs - Variations de vitesses
B5: Cout moyen du kWh electrique | C5: ='Données Projet Salle de Classe'!F37 -> 0.10 € | E5: ='Données Projet Salle de Classe'!E25 -> VMC Simple Flux Autoréglable | F5: Puissance consommée du Ventilateur AVANT modifications | H5: ='Données Projet Salle de Classe'!E28 -> 150.00 W | I5: Consommation du ventilateur kWh/j | J5: =24*H5*0.001 -> 3.60 kWh/j | M5: Vitesse de rotation du Ventilateur 100% de charge (maxi) | O5: 600 tr/min | P5: Vitesse de rotation du Ventilateur mode régulation : | R5: 600 tr/min
A6: ='Données Projet Salle de Classe'!E25 -> VMC Simple Flux Autoréglable | B6: Débit air ENTRANT 100% de charge (fonction du logement) | C6: ='Données Projet Salle de Classe'!E27 -> 600 m3/h | I6: Coût de fonctionnement ventlilateur en €/j | J6: =24*H5*0.001*$C$5 -> 0.36 €/j | M6: Temps de fonctionnement du ou des ventilateur par jour 100% de charge : | O6: 12.00 h | P6: Temps de fonctionnement du ou des ventilateurs phase réduite : | R6: =IF(R7>0,0,24-O6) -> 12.00 h
B7: Intermittence | C7: ='Données Projet Salle de Classe'!E33 -> 0.9 | E7: ='Données Projet Salle de Classe'!K25 -> VMC Simple Flux Autoréglable | F7: Puissance consommée des Ventilateur APRES modifications | H7: ='Données Projet Salle de Classe'!K28 -> 150.00 W | I7: Consommation des ventilateurs kWh/j | J7: =O6*H7*0.001+R6*(H7/(O5/R5)^3)*0.001 -> 3.600 kWh/j | M7: Nb de jours d'utilisation des locaux/an : Durée | O7: 1 jour(s) | P7: Temps d'arrêt du ou des ventilateurs : | R7: 0.00 h
B8: Température intérieure de confort imposée | C8: ='Données Projet Salle de Classe'!E30 -> 19.00 °C | I8: Coût de fonctionnement ventlilateurs en €/j | J8: =J7*$C$5 -> 0.360 €/j
B9: Rendement global système chauffage | C9: ='Données Projet Salle de Classe'!G33 -> 0.95 | E9: Fonctionnement Ventilateur(s) suivant ligne de temps
A10: ='Données Projet Salle de Classe'!K25 -> VMC Simple Flux Autoréglable | B10: Débit air ENTRANT 100% de charge (fonction du logement) | C10: ='Données Projet Salle de Classe'!K27 -> 600 m3/h
B11: Débit d'air ENTRANT en régime réduit : | C11: =IF(R7>0,0,(R5/O5)*C6) -> 600 m3/h | E11: Sur 1 jour Type | F11: Coûts et gains réalisés Chauffage et Ventilateurs | I11: Consommations Energetiques en Chauffage | M11: Débit d'Infiltration d'air neuf : Vinf,i
B12: Température intérieure de confort souhaitée | C12: ='Données Projet Salle de Classe'!K30 -> 19.00 °C | E12: ='Données Projet Salle de Classe'!E25 -> VMC Simple Flux Autoréglable | F12: Coût du Renouvellement d'Air sur la journée en €/j | H12: =IF(P14=0,C34,C39) -> 10.38 €/j | I12: Consommation énergétique pour assurer le chauffage du RA sans echangeur | J12: =IF(P14=0,C33,C38) -> 103.81 kWh/j | M12: Surface Bâtiment = | N12: ='Données Projet Salle de Classe'!F17 -> 200.00 m² | O12: ='Données Projet Salle de Classe'!E25 -> VMC Simple Flux Autoréglable | Q12: ='Données Projet Salle de Classe'!K25 -> VMC Simple Flux Autoréglable
B13: Intermittence | C13: ='Données Projet Salle de Classe'!K33 -> 0.9 | F13: Si tout ELEC : Coût du Renouvellement d'air sur la journée en €/j | H13: =IF(P14=0,C35,C40) -> 10.74 €/j | M13: Volume du batiment = | N13: =N12*N15 -> 500.00 m3 | O13: n50 = | P13: =1.8*P14*(3/2) -> 2.70 h^-1 | Q13: n50 = | R13: =1.8*R14*(3/2) -> 2.70 h^-1
B14: Rendement global système chauffage | C14: ='Données Projet Salle de Classe'!M33 -> 0.95 | E14: ='Données Projet Salle de Classe'!K25 -> VMC Simple Flux Autoréglable | F14: Si tout ELEC : Coût du Renouvellement d'air sur la journée en €/j | H14: =IF(P14=0,C47,C53) -> 10.74 €/j | I14: Consommation énergétique pour assurer le chauffage du RA avec échangeur | J14: =IF(P14=0,C45,C51) -> 103.81 kWh/j | M14: Nb de niveaux = | N14: ='Données Projet Salle de Classe'!F19 -> 1.0 | O14: Degré Etanchéité : | P14: 1 | Q14: Degré Etanchéité : | R14: 1
B15: Efficacité de l'échangeur statique du Double Flux | C15: ='Données Projet Salle de Classe'!K26 -> 0% | F15: Gains réalisés dans la journée entre AVANT et APRES en €/j | H15: =IF(P14=0,C48,C54) -> 0.00 €/j | M15: HSP = | N15: ='Données Projet Salle de Classe'!F18 -> 2.50 m | O15: Vinf,i = | P15: =2*P13*$N$13*0.03 -> 81 m3/h | Q15: Vinf,i = | R15: =2*$R$13*$N$13*0.03 -> 81 m3/h
B16: Prix du système Double Flux | C16: 2,000.00 € | F16: Gain sur facture en % : | H16: =IF(P14=0,(C35-C47)/C35,(C40-C53)/C40) -> 0.00%
M17: Coûts Energétiques des Infiltrations d'Air
M18: ='Données Projet Salle de Classe'!E25 -> VMC Simple Flux Autoréglable | N18: Coût des infiltrations d'air dans la journée : | P18: =$C$41 -> 1.23 €/j
N19: Part du coût des infiltrations d'air : | P19: =$C$42 -> 12%
M20: ='Données Projet Salle de Classe'!K25 -> VMC Simple Flux Autoréglable | N20: Coût des infiltrations d'air dans la journée : | P20: =$C$55 -> 1.23 €/j
N21: Part du coût des infiltrations d'air : | P21: =$C$56 -> 12% | Q21: D'où la nécessité de gérer la Perméabilité à l'air d'un local !!
B23: Evolution des Besoins énergétiques en kWh sur la saison de chauffe
B24: Nb heures à Text au cours de la journée Type | D24: 1.00 h | E24: 1.00 h | F24: 1.00 h | G24: 1.00 h | H24: 1.00 h | I24: 1.00 h | J24: 1.00 h | K24: 1.00 h | L24: 1.00 h | M24: 1.00 h | N24: 1.00 h | O24: 1.00 h | P24: 1.00 h | Q24: 1.00 h | R24: 1.00 h | S24: 1.00 h | T24: 1.00 h | U24: 1.00 h | V24: 1.00 h | W24: 1.00 h | X24: 1.00 h | Y24: 1.00 h | Z24: 1.00 h
B25: Evolution de la Température extérieure | D25: -5.13 °C | E25: -5.52 °C | F25: -5.80 °C | G25: -5.90 °C | H25: -5.71 °C | I25: -5.23 °C | J25: -4.36 °C | K25: -3.12 °C | L25: -1.68 °C | M25: -0.04 °C | N25: 1.49 °C | O25: 2.64 °C | P25: 3.41 °C | Q25: 3.70 °C | R25: 3.41 °C | S25: 2.74 °C | T25: 1.68 °C | U25: 0.436 | V25: -0.812 | W25: -1.868 | X25: -2.828 | Y25: -3.596 | Z25: -4.172
B26: Evolution de la température au soufflage | D26: =$C$15*($C$12-D$25)+D$25 -> -5.13 °C | E26: -5.52 °C | F26: -5.80 °C | G26: -5.90 °C | H26: -5.71 °C | I26: -5.23 °C | J26: -4.36 °C | K26: -3.12 °C | L26: -1.68 °C | M26: -0.04 °C | N26: 1.49 °C | O26: 2.64 °C | P26: 3.41 °C | Q26: 3.70 °C | R26: 3.41 °C | S26: 2.74 °C | T26: 1.68 °C | U26: 0.44 °C | V26: -0.81 °C | W26: -1.87 °C | X26: -2.83 °C | Y26: -3.60 °C | Z26: -4.17 °C
B27: Puissance consommée pour assurer le RA sans infiltration d'air | D27: =IF(D$24=0,0,0.34*$C$6*D$24*($C$8-D$25)) -> 4922.93 W | E27: 5001.26 W | F27: 5060.02 W | G27: 5079.60 W | H27: 5040.43 W | I27: 4942.51 W | J27: 4766.26 W | K27: 4511.66 W | L27: 4217.90 W | M27: 3884.98 W | N27: 3571.63 W | O27: 3336.62 W | P27: 3179.95 W | Q27: 3121.20 W | R27: 3179.95 W | S27: 3317.04 W | T27: 3532.46 W | U27: 3787.06 W | V27: 4041.65 W | W27: 4257.07 W | X27: 4452.91 W | Y27: 4609.58 W | Z27: 4727.09 W
B28: Puissance consommée pour assurer le RA avec infiltration d'air | D28: =IF(D$24=0,0,0.34*D$24*($C$6+$P$15)*($C$8-D$25)) -> 5587.52 W | E28: 5676.43 W | F28: 5743.12 W | G28: 5765.35 W | H28: 5720.89 W | I28: 5609.75 W | J28: 5409.70 W | K28: 5120.74 W | L28: 4787.32 W | M28: 4409.45 W | N28: 4053.80 W | O28: 3787.07 W | P28: 3609.25 W | Q28: 3542.56 W | R28: 3609.25 W | S28: 3764.84 W | T28: 4009.35 W | U28: 4298.31 W | V28: 4587.27 W | W28: 4831.78 W | X28: 5054.06 W | Y28: 5231.88 W | Z28: 5365.24 W
A29: Pour Info ! | B29: Puissance récupérée par le Double Flux à 100% de charge en W | D29: =IF(D$24=0,0,IF(D$25>D$26,0,0.34*$C$10*D$24*(D$26-D$25))) -> 0.00 W | E29: =IF(E$24=0,0,IF(E$25>E$26,0,0.34*$C$10*E$24*(E$26-E$25))) -> 0.00 W | F29: 0.00 W | G29: 0.00 W | H29: 0.00 W | I29: 0.00 W | J29: 0.00 W | K29: 0.00 W | L29: 0.00 W | M29: 0.00 W | N29: 0.00 W | O29: 0.00 W | P29: 0.00 W | Q29: 0.00 W | R29: 0.00 W | S29: 0.00 W | T29: 0.00 W | U29: 0.00 W | V29: 0.00 W | W29: 0.00 W | X29: 0.00 W | Y29: 0.00 W | Z29: 0.00 W
C32: TOTAUX | D32: 1 | E32: 2 | F32: 3 | G32: 4 | H32: 5 | I32: 6 | J32: 7 | K32: 8 | L32: 9 | M32: 10 | N32: 11 | O32: 12 | P32: 13 | Q32: 14 | R32: 15 | S32: 16 | T32: 17 | U32: 18 | V32: 19 | W32: 20 | X32: 21 | Y32: 22 | Z32: 23
A33: ='Données Projet Salle de Classe'!E25 -> VMC Simple Flux Autoréglable | B33: Conso Chauffage RA sans infiltration d'air | C33: =SUM(D33:Z33) -> 91.46 kWh/j | D33: =0.34*$C$6*(D$24*($C$8-D$25))*0.001*$C$7/$C$9 -> 4.664 | E33: 4.738 | F33: 4.794 | G33: 4.812 | H33: 4.775 | I33: 4.682 | J33: 4.515 | K33: 4.274 | L33: 3.996 | M33: 3.681 | N33: 3.384 | O33: 3.161 | P33: 3.013 | Q33: 2.957 | R33: 3.013 | S33: 3.142 | T33: 3.347 | U33: 3.588 | V33: 3.829 | W33: 4.033 | X33: 4.219 | Y33: 4.367 | Z33: 4.478
B34: Cout RA sur la journée en € : | C34: =C33*C5 -> 9.15 €/j
B35: Si tout ELEC avec ventilateur : Cout sur la journée en € | C35: =(C33+J5)*C5 -> 9.51 €/j
C37: TOTAUX | D37: 1 | E37: 2 | F37: 3 | G37: 4 | H37: 5 | I37: 6 | J37: 7 | K37: 8 | L37: 9 | M37: 10 | N37: 11 | O37: 12 | P37: 13 | Q37: 14 | R37: 15 | S37: 16 | T37: 17 | U37: 18 | V37: 19 | W37: 20 | X37: 21 | Y37: 22 | Z37: 23
B38: Conso Chauffage RA avec Infiltration d'air | C38: =SUM(D38:Z38) -> 103.81 kWh/j | D38: =(0.34*$C$6*(D$24*($C$8-D$25))*0.001+0.34*$P$15*(D$24*($C$8-D$25)*0.001))*$C$7/$C$9 -> 5.293 | E38: 5.378 | F38: 5.441 | G38: 5.462 | H38: 5.420 | I38: 5.315 | J38: 5.125 | K38: 4.851 | L38: 4.535 | M38: 4.177 | N38: 3.840 | O38: 3.588 | P38: 3.419 | Q38: 3.356 | R38: 3.419 | S38: 3.567 | T38: 3.798 | U38: 4.072 | V38: 4.346 | W38: 4.577 | X38: 4.788 | Y38: 4.957 | Z38: 5.083
B39: Cout RA sur la journée en € : | C39: =C38*C5 -> 10.38 €/j
B40: Si tout ELEC avec ventilateur : Cout sur la journée en € | C40: =(C38+J5)*C5 -> 10.74 €/j
B41: Cout des Infiltrations d'air : | C41: =SUM(D41:Z41)*C5 -> 1.23 €/j | D41: =(0.34*$P$15*(D$24*($C$8-D$25))*0.001)*$C$7/$C$9 -> 0.63 | E41: 0.64 | F41: 0.65 | G41: 0.65 | H41: 0.64 | I41: 0.63 | J41: 0.61 | K41: 0.58 | L41: 0.54 | M41: 0.50 | N41: 0.46 | O41: 0.43 | P41: 0.41 | Q41: 0.40 | R41: 0.41 | S41: 0.42 | T41: 0.45 | U41: 0.48 | V41: 0.52 | W41: 0.54 | X41: 0.57 | Y41: 0.59 | Z41: 0.60
B42: Part en % | C42: =C41/C39 -> 11.9%
C44: TOTAUX | D44: 1 | E44: 2 | F44: 3 | G44: 4 | H44: 5 | I44: 6 | J44: 7 | K44: 8 | L44: 9 | M44: 10 | N44: 11 | O44: 12 | P44: 13 | Q44: 14 | R44: 15 | S44: 16 | T44: 17 | U44: 18 | V44: 19 | W44: 20 | X44: 21 | Y44: 22 | Z44: 23
A45: ='Données Projet Salle de Classe'!K25 -> VMC Simple Flux Autoréglable | B45: Conso chauffage RA sans infiltration d'air | C45: =SUM(D45:Z45) -> 91.46 kWh/j | D45: =IF(D$24=0,"",((0.34*0.001*$C$11*D$24*($C$12-D$26))*$C$13/$C$14)) -> 4.664 | E45: =IF(E$24=0,"",((0.34*0.001*$C$11*E$24*($C$12-E$26))*$C$13/$C$14)) -> 4.738 | F45: =IF(F$24=0,"",((0.34*0.001*$C$11*F$24*($C$12-F$26))*$C$13/$C$14)) -> 4.794 | G45: =IF(G$24=0,"",((0.34*0.001*$C$11*G$24*($C$12-G$26))*$C$13/$C$14)) -> 4.812 | H45: =IF(H$24=0,"",((0.34*0.001*$C$11*H$24*($C$12-H$26))*$C$13/$C$14)) -> 4.775 | I45: =IF(I$24=0,"",((0.34*0.001*$C$11*I$24*($C$12-I$26))*$C$13/$C$14)) -> 4.682 | J45: 4.515 | K45: =IF(K$24=0,"",((0.34*0.001*$C$10*K$24*($C$12-K$26))*$C$13/$C$14)) -> 4.274 | L45: =IF(L$24=0,"",((0.34*0.001*$C$10*L$24*($C$12-L$26))*$C$13/$C$14)) -> 3.996 | M45: =IF(M$24=0,"",((0.34*0.001*$C$10*M$24*($C$12-M$26))*$C$13/$C$14)) -> 3.681 | N45: =IF(N$24=0,"",((0.34*0.001*$C$10*N$24*($C$12-N$26))*$C$13/$C$14)) -> 3.384 | O45: =IF(O$24=0,"",((0.34*0.001*$C$11*O$24*($C$12-O$26))*$C$13/$C$14)) -> 3.161 | P45: =IF(P$24=0,"",((0.34*0.001*$C$10*P$24*($C$12-P$26))*$C$13/$C$14)) -> 3.013 | Q45: =IF(Q$24=0,"",((0.34*0.001*$C$10*Q$24*($C$12-Q$26))*$C$13/$C$14)) -> 2.957 | R45: =IF(R$24=0,"",((0.34*0.001*$C$10*R$24*($C$12-R$26))*$C$13/$C$14)) -> 3.013 | S45: =IF(S$24=0,"",((0.34*0.001*$C$10*S$24*($C$12-S$26))*$C$13/$C$14)) -> 3.142 | T45: =IF(T$24=0,"",((0.34*0.001*$C$10*T$24*($C$12-T$26))*$C$13/$C$14)) -> 3.347 | U45: =IF(U$24=0,"",((0.34*0.001*$C$11*U$24*($C$12-U$26))*$C$13/$C$14)) -> 3.588 | V45: =IF(V$24=0,"",IF(V26>$C$12,0,((0.34*0.001*$C$11*V$24*($C$12-V$26))*$C$13/$C$14))) -> 3.829 | W45: =IF(W$24=0,"",IF(W26>$C$12,0,((0.34*0.001*$C$11*W$24*($C$12-W$26))*$C$13/$C$14))) -> 4.033 | X45: =IF(X$24=0,"",IF(X26>$C$12,0,((0.34*0.001*$C$11*X$24*($C$12-X$26))*$C$13/$C$14))) -> 4.219 | Y45: =IF(Y$24=0,"",IF(Y26>$C$12,0,((0.34*0.001*$C$11*Y$24*($C$12-Y$26))*$C$13/$C$14))) -> 4.367 | Z45: =IF(Z$24=0,"",IF(Z26>$C$12,0,((0.34*0.001*$C$11*Z$24*($C$12-Z$26))*$C$13/$C$14))) -> 4.478
B46: Cout RA sur la journéer en € : | C46: =C45*C5 -> 9.15 €/j
B47: Si tout ELEC : Cout sur la journée en € | C47: =(C45+J7)*C5 -> 9.51 €/j
B48: Gains réalisés en € | C48: =C35-C47 -> 0.00 €/j
C50: TOTAUX | D50: 1 | E50: 2 | F50: 3 | G50: 4 | H50: 5 | I50: 6 | J50: 7 | K50: 8 | L50: 9 | M50: 10 | N50: 11 | O50: 12 | P50: 13 | Q50: 14 | R50: 15 | S50: 16 | T50: 17 | U50: 18 | V50: 19 | W50: 20 | X50: 21 | Y50: 22 | Z50: 23
B51: Conso chauffage RA avec infiltration d'air | C51: =SUM(D51:Z51) -> 103.81 kWh/j | D51: =IF(D$24=0,"",((0.34*0.001*$C$11*D$24*($C$12-D$26)+0.34*0.001*$R$15*D$24*($C$12-D$25))*$C$13/$C$14)) -> 5.293 | E51: 5.378 | F51: 5.441 | G51: 5.462 | H51: 5.420 | I51: 5.315 | J51: 5.125 | K51: =IF(K$24=0,"",((0.34*0.001*$C$10*K$24*($C$12-K$26)+0.34*0.001*$R$15*K$24*($C$12-K$25))*$C$13/$C$14)) -> 4.851 | L51: =IF(L$24=0,"",((0.34*0.001*$C$10*L$24*($C$12-L$26)+0.34*0.001*$R$15*L$24*($C$12-L$25))*$C$13/$C$14)) -> 4.535 | M51: =IF(M$24=0,"",((0.34*0.001*$C$10*M$24*($C$12-M$26)+0.34*0.001*$R$15*M$24*($C$12-M$25))*$C$13/$C$14)) -> 4.177 | N51: =IF(N$24=0,"",((0.34*0.001*$C$10*N$24*($C$12-N$26)+0.34*0.001*$R$15*N$24*($C$12-N$25))*$C$13/$C$14)) -> 3.840 | O51: =IF(O$24=0,"",((0.34*0.001*$C$11*O$24*($C$12-O$26)+0.34*0.001*$R$15*O$24*($C$12-O$25))*$C$13/$C$14)) -> 3.588 | P51: =IF(P$24=0,"",((0.34*0.001*$C$10*P$24*($C$12-P$26)+0.34*0.001*$R$15*P$24*($C$12-P$25))*$C$13/$C$14)) -> 3.419 | Q51: =IF(Q$24=0,"",((0.34*0.001*$C$10*Q$24*($C$12-Q$26)+0.34*0.001*$R$15*Q$24*($C$12-Q$25))*$C$13/$C$14)) -> 3.356 | R51: =IF(R$24=0,"",((0.34*0.001*$C$10*R$24*($C$12-R$26)+0.34*0.001*$R$15*R$24*($C$12-R$25))*$C$13/$C$14)) -> 3.419 | S51: =IF(S$24=0,"",((0.34*0.001*$C$10*S$24*($C$12-S$26)+0.34*0.001*$R$15*S$24*($C$12-S$25))*$C$13/$C$14)) -> 3.567 | T51: =IF(T$24=0,"",((0.34*0.001*$C$10*T$24*($C$12-T$26)+0.34*0.001*$R$15*T$24*($C$12-T$25))*$C$13/$C$14)) -> 3.798 | U51: =IF(U$24=0,"",((0.34*0.001*$C$11*U$24*($C$12-U$26)+0.34*0.001*$R$15*U$24*($C$12-U$25))*$C$13/$C$14)) -> 4.072 | V51: =IF(V$24=0,"",IF(V26>$C$12,0,((0.34*0.001*$C$11*V$24*($C$12-V$26)+0.34*0.001*$R$15*V$24*($C$12-V$25))*$C$13/$C$14))) -> 4.346 | W51: =IF(W$24=0,"",IF(W26>$C$12,0,((0.34*0.001*$C$11*W$24*($C$12-W$26)+0.34*0.001*$R$15*W$24*($C$12-W$25))*$C$13/$C$14))) -> 4.577 | X51: =IF(X$24=0,"",IF(X26>$C$12,0,((0.34*0.001*$C$11*X$24*($C$12-X$26)+0.34*0.001*$R$15*X$24*($C$12-X$25))*$C$13/$C$14))) -> 4.788 | Y51: =IF(Y$24=0,"",IF(Y26>$C$12,0,((0.34*0.001*$C$11*Y$24*($C$12-Y$26)+0.34*0.001*$R$15*Y$24*($C$12-Y$25))*$C$13/$C$14))) -> 4.957 | Z51: =IF(Z$24=0,"",IF(Z26>$C$12,0,((0.34*0.001*$C$11*Z$24*($C$12-Z$26)+0.34*0.001*$R$15*Z$24*($C$12-Z$25))*$C$13/$C$14))) -> 5.083
B52: Cout RA sur la journée en € : | C52: =C51*C5 -> 10.38 €/j
B53: Si tout ELEC : Cout sur la journée en € | C53: =(C51+J7)*C5 -> 10.74 €/j
B54: Gains réalisés en € | C54: =C40-C53 -> 0.00 €/j
B55: Dont Cout des Infiltrations d'air : | C55: =SUM(D55:Z55)*C5 -> 1.23 €/j | D55: =IF(D25>$C$12,0,(0.34*$R$15*(D$24*($C$12-D$25))*0.001)*$C$13/$C$14) -> 0.63 | E55: 0.64 | F55: 0.65 | G55: 0.65 | H55: 0.64 | I55: 0.63 | J55: 0.61 | K55: 0.58 | L55: 0.54 | M55: 0.50 | N55: 0.46 | O55: =IF(O25>$C$12,0,(0.34*$R$15*(O$24*($C$12-O$25))*0.001)*$C$13/$C$14) -> 0.43 | P55: 0.41 | Q55: 0.40 | R55: 0.41 | S55: 0.42 | T55: 0.45 | U55: 0.48 | V55: 0.52 | W55: 0.54 | X55: 0.57 | Y55: 0.59 | Z55: 0.60
B56: Part en % | C56: =C55/C52 -> 11.9%

Sheet Donnees Climatiques Hiver (hidden)
A2: Données Climatiques HIVER _ EN 12831
A4: Département | B4: 01 - Ain | C4: 02 - Aisne | D4: 03 - Allier | E4: 04 - Alpes de haute provence | F4: 05 - Hautes-Alpes | G4: 06 - Alpes maritimes | H4: 07 - Ardèche | I4: 08 - Ardennes | J4: 09 - Ariège | K4: 10 - Aube | L4: 11 - Aude | M4: 12 - Aveyron | N4: 13 - Bouches-du-Rhône | O4: 14 - Calvados | P4: 15 - Cantal | Q4: 16 - Charente | R4: 17 - Charente-Maritime | S4: 18 - Cher | T4: 19 - Corrèze | U4: 2A_B - Corse | V4: 21 - Côte-d'Or | W4: 22 - Côtes-d'Armor | X4: 23 - Creuse | Y4: 24 - Dordogne | Z4: 25 - Doubs | AA4: 26 - Drôme | AB4: 27 - Eure | AC4: 28 - Eure-et-Loire | AD4: 29 - Finistère | AE4: 30 - Gard | AF4: 31 - Haute-Garonne | AG4: 32 - Gers | AH4: 33 - Gironde | AI4: 34 - Hérault | AJ4: 35 - Ille-et-Vilaine | AK4: 36 - Indre | AL4: 37 - Indre-et-Loire | AM4: 38 - Isère | AN4: 39 - Jura | AO4: 40 - Landes | AP4: 41 - Loir-et-Cher | AQ4: 42 - Loire | AR4: 43 - Haute-Loire | AS4: 44 - Loire Atlantique | AT4: 45 - Loiret | AU4: 46 - Lot | AV4: 47 - Lot-et-Garonne | AW4: 48 - Lozère | AX4: 49 - Maine-et-Loire | AY4: 50 - Manche | AZ4: 51 - Marne | BA4: 52 - Haute-Marne | BB4: 53 - Mayenne | BC4: 54 - Meurthe-et-Moselle | BD4: 55 - Meuse | BE4: 56 - Morbihan | BF4: 57 - Moselle | BG4: 58 - Nièvre | BH4: 59 - Nord | BI4: 60 - Oise | BJ4: 61 - Orne | BK4: 62 - Pas-de-Calais | BL4: 63 - Puy-de-Dôme | BM4: 64 - Pyrénées Atlantiques | BN4: 65 - Hautes-Pyrénées | BO4: 66 - Pyrénées-orientales | BP4: 67 - Bas-Rhin | BQ4: 68 - Haut-Rhin | BR4: 69 - Rhône | BS4: 70 - Haute-Saône | BT4: 71 - Saône-et-Loire | BU4: 72 - Sarthe | BV4: 73 - Savoie | BW4: 74 - Haute-Savoie | BX4: 75 - Paris | BY4: 76 - Seine-Maritime | BZ4: 77 - Seine-et-Marne | CA4: 78 - Yvelines | CB4: 79 - Deux-Sèvres | CC4: 80 - Somme | CD4: 81 - Tarn | CE4: 82 - Tarn-et-Garonne | CF4: 83 - Var | CG4: 84 - Vaucluse | CH4: 85 - Vendée | CI4: 86 - Vienne | CJ4: 87 - Haute-Vienne | CK4: 88 - Vosges | CL4: 89 - Yonne | CM4: 90 - Territoire-de-Belfort | CN4: 91 - Essone | CO4: 92 - Hauts-de-Seine | CP4: 93 - Seine-Saint-Denis | CQ4: 94 - Val-de-Marne | CR4: 95 - Val-d'Oise | CS4: Donnée Utilisateur
A5: - | B5: 1 | C5: 2 | D5: 3 | E5: 4 | F5: 5 | G5: 6 | H5: 7 | I5: 8 | J5: 9 | K5: 10 | L5: 11 | M5: 12 | N5: 13 | O5: 14 | P5: 15 | Q5: 16 | R5: 17 | S5: 18 | T5: 19 | U5: 20 | V5: 21 | W5: 22 | X5: 23 | Y5: 24 | Z5: 25 | AA5: 26 | AB5: 27 | AC5: 28 | AD5: 29 | AE5: 30 | AF5: 31 | AG5: 32 | AH5: 33 | AI5: 34 | AJ5: 35 | AK5: 36 | AL5: 37 | AM5: 38 | AN5: 39 | AO5: 40 | AP5: 41 | AQ5: 42 | AR5: 43 | AS5: 44 | AT5: 45 | AU5: 46 | AV5: 47 | AW5: 48 | AX5: 49 | AY5: 50 | AZ5: 51 | BA5: 52 | BB5: 53 | BC5: 54 | BD5: 55 | BE5: 56 | BF5: 57 | BG5: 58 | BH5: 59 | BI5: 60 | BJ5: 61 | BK5: 62 | BL5: 63 | BM5: 64 | BN5: 65 | BO5: 66 | BP5: 67 | BQ5: 68 | BR5: 69 | BS5: 70 | BT5: 71 | BU5: 72 | BV5: 73 | BW5: 74 | BX5: 75 | BY5: 76 | BZ5: 77 | CA5: 78 | CB5: 79 | CC5: 80 | CD5: 81 | CE5: 82 | CF5: 83 | CG5: 84 | CH5: 85 | CI5: 86 | CJ5: 87 | CK5: 88 | CL5: 89 | CM5: 90 | CN5: 91 | CO5: 92 | CP5: 93 | CQ5: 94 | CR5: 95 | CS5: 96
A6: Iles | B6: - | C6: - | D6: - | E6: - | F6: - | G6: 0 | H6: - | I6: - | J6: - | K6: - | L6: -2 | M6: - | N6: -3 | O6: -5 | P6: - | Q6: - | R6: -2 | S6: - | T6: - | U6: - | V6: - | W6: -2 | X6: - | Y6: - | Z6: - | AA6: - | AB6: - | AC6: - | AD6: -2 | AE6: -3 | AF6: - | AG6: - | AH6: -2 | AI6: -3 | AJ6: -2 | AK6: - | AL6: - | AM6: - | AN6: - | AO6: -2 | AP6: - | AQ6: - | AR6: - | AS6: -2 | AT6: - | AU6: - | AV6: - | AW6: - | AX6: - | AY6: -2 | AZ6: - | BA6: - | BB6: - | BC6: - | BD6: - | BE6: -2 | BF6: - | BG6: - | BH6: -7 | BI6: - | BJ6: - | BK6: -7 | BL6: - | BM6: -3 | BN6: - | BO6: -2 | BP6: - | BQ6: - | BR6: - | BS6: - | BT6: - | BU6: - | BV6: - | BW6: - | BX6: - | BY6: -5 | BZ6: - | CA6: - | CB6: - | CC6: -7 | CD6: - | CE6: - | CF6: 0 | CG6: - | CH6: -2 | CI6: - | CJ6: - | CK6: - | CL6: - | CM6: - | CN6: - | CO6: - | CP6: - | CQ6: - | CR6: - | CS6: -5
A7: côte < 25 km | B7: - | C7: - | D7: - | E7: - | F7: - | G7: -2 | H7: - | I7: - | J7: - | K7: - | L7: -4 | M7: - | N7: -5 | O7: -7 | P7: - | Q7: - | R7: -4 | S7: - | T7: - | U7: -2 | V7: - | W7: -4 | X7: - | Y7: - | Z7: - | AA7: - | AB7: - | AC7: - | AD7: -4 | AE7: -3 | AF7: - | AG7: - | AH7: -4 | AI7: -3 | AJ7: -4 | AK7: - | AL7: - | AM7: - | AN7: - | AO7: -4 | AP7: - | AQ7: - | AR7: - | AS7: -4 | AT7: - | AU7: - | AV7: - | AW7: - | AX7: - | AY7: -2 | AZ7: - | BA7: - | BB7: - | BC7: - | BD7: - | BE7: -4 | BF7: - | BG7: - | BH7: -9 | BI7: - | BJ7: - | BK7: -9 | BL7: - | BM7: -4 | BN7: - | BO7: -4 | BP7: - | BQ7: - | BR7: - | BS7: - | BT7: - | BU7: - | BV7: - | BW7: - | BX7: - | BY7: -7 | BZ7: - | CA7: - | CB7: - | CC7: -8 | CD7: - | CE7: - | CF7: -2 | CG7: - | CH7: -4 | CI7: - | CJ7: - | CK7: - | CL7: - | CM7: - | CN7: - | CO7: - | CP7: - | CQ7: - | CR7: - | CS7: =CS6 -> -5
A8: Alt. entre 0 et 200 m | B8: -10 | C8: -7 | D8: -8 | E8: -8 | F8: -10 | G8: -5 | H8: -6 | I8: -10 | J8: -5 | K8: -10 | L8: -5 | M8: -8 | N8: -5 | O8: -7 | P8: -8 | Q8: -5 | R8: -5 | S8: -7 | T8: -8 | U8: -2 | V8: -10 | W8: -4 | X8: -8 | Y8: -5 | Z8: -12 | AA8: -6 | AB8: -7 | AC8: -7 | AD8: -4 | AE8: -5 | AF8: -5 | AG8: -5 | AH8: -5 | AI8: -5 | AJ8: -4 | AK8: -7 | AL8: -7 | AM8: -10 | AN8: -10 | AO8: -5 | AP8: -7 | AQ8: -10 | AR8: -8 | AS8: -5 | AT8: -7 | AU8: -6 | AV8: -5 | AW8: -8 | AX8: -7 | AY8: -4 | AZ8: -10 | BA8: -12 | BB8: -7 | BC8: -15 | BD8: -12 | BE8: -4 | BF8: -15 | BG8: -10 | BH8: -9 | BI8: -7 | BJ8: -7 | BK8: -9 | BL8: -8 | BM8: -5 | BN8: -5 | BO8: -5 | BP8: -15 | BQ8: -15 | BR8: -10 | BS8: -10 | BT8: -10 | BU8: -7 | BV8: -10 | BW8: -10 | BX8: -5 | BY8: -7 | BZ8: -7 | CA8: -7 | CB8: -7 | CC8: -9 | CD8: -5 | CE8: -5 | CF8: -5 | CG8: -6 | CH8: -5 | CI8: -7 | CJ8: -8 | CK8: -15 | CL8: -10 | CM8: -15 | CN8: -7 | CO8: -7 | CP8: -7 | CQ8: -7 | CR8: -7 | CS8: =CS7 -> -5
A9: Alt. entre 201 et 400 m | B9: -11 | C9: -8 | D9: -9 | E9: -9 | F9: -11 | G9: -6 | H9: -7 | I9: -11 | J9: -6 | K9: -11 | L9: -6 | M9: -9 | N9: -6 | O9: -8 | P9: -9 | Q9: -6 | R9: - | S9: -8 | T9: -9 | U9: -3 | V9: -11 | W9: -5 | X9: -9 | Y9: -6 | Z9: -13 | AA9: -7 | AB9: -8 | AC9: -8 | AD9: -5 | AE9: -6 | AF9: -6 | AG9: -6 | AH9: - | AI9: -6 | AJ9: - | AK9: -8 | AL9: - | AM9: -11 | AN9: -11 | AO9: -6 | AP9: -8 | AQ9: -11 | AR9: -9 | AS9: - | AT9: -8 | AU9: -7 | AV9: -6 | AW9: -9 | AX9: -8 | AY9: -5 | AZ9: -11 | BA9: -13 | BB9: -8 | BC9: -15 | BD9: -13 | BE9: -5 | BF9: -15 | BG9: -11 | BH9: -10 | BI9: -8 | BJ9: -8 | BK9: -10 | BL9: -9 | BM9: -6 | BN9: -6 | BO9: -6 | BP9: -15 | BQ9: -15 | BR9: -11 | BS9: -11 | BT9: -11 | BU9: -8 | BV9: -11 | BW9: -11 | BX9: - | BY9: -8 | BZ9: -8 | CA9: - | CB9: -8 | CC9: -10 | CD9: -6 | CE9: -6 | CF9: -6 | CG9: -7 | CH9: -6 | CI9: -8 | CJ9: -9 | CK9: -15 | CL9: -11 | CM9: -15 | CN9: - | CO9: - | CP9: - | CQ9: - | CR9: - | CS9: -5
A10: Alt. entre 401 et 500 m | B10: -12 | C10: - | D10: -10 | E10: -10 | F10: -12 | G10: -7 | H10: -8 | I10: -12 | J10: -7 | K10: - | L10: -7 | M10: -10 | N10: -7 | O10: - | P10: -10 | Q10: - | R10: - | S10: -9 | T10: -10 | U10: -4 | V10: -12 | W10: - | X10: -10 | Y10: -7 | Z10: -14 | AA10: -8 | AB10: - | AC10: - | AD10: - | AE10: -7 | AF10: -7 | AG10: - | AH10: - | AI10: -7 | AJ10: - | AK10: -9 | AL10: - | AM10: -12 | AN10: -12 | AO10: - | AP10: - | AQ10: -12 | AR10: -10 | AS10: - | AT10: - | AU10: -8 | AV10: - | AW10: -10 | AX10: - | AY10: - | AZ10: - | BA10: -14 | BB10: - | BC10: -16 | BD10: -14 | BE10: - | BF10: -16 | BG10: -12 | BH10: - | BI10: - | BJ10: -9 | BK10: - | BL10: -10 | BM10: -7 | BN10: -7 | BO10: -7 | BP10: -16 | BQ10: -16 | BR10: -12 | BS10: -12 | BT10: -12 | BU10: - | BV10: -12 | BW10: -12 | BX10: - | BY10: - | BZ10: - | CA10: - | CB10: - | CC10: - | CD10: -7 | CE10: - | CF10: -7 | CG10: -8 | CH10: - | CI10: - | CJ10: -10 | CK10: -16 | CL10: -12 | CM10: -16 | CN10: - | CO10: - | CP10: - | CQ10: - | CR10: - | CS10: -5
A11: Alt. entre 501 et 600 m | B11: -13 | C11: - | D11: -11 | E11: -11 | F11: -13 | G11: -7 | H11: -9 | I11: - | J11: -7 | K11: - | L11: -7 | M11: -11 | N11: -7 | O11: - | P11: -11 | Q11: - | R11: - | S11: - | T11: -11 | U11: -4 | V11: -13 | W11: - | X11: -11 | Y11: - | Z11: -15 | AA11: -9 | AB11: - | AC11: - | AD11: - | AE11: -7 | AF11: -7 | AG11: - | AH11: - | AI11: -7 | AJ11: - | AK11: - | AL11: - | AM11: -13 | AN11: -13 | AO11: - | AP11: - | AQ11: -13 | AR11: -11 | AS11: - | AT11: - | AU11: -9 | AV11: - | AW11: -11 | AX11: - | AY11: - | AZ11: - | BA11: -15 | BB11: - | BC11: -17 | BD11: - | BE11: - | BF11: -17 | BG11: -13 | BH11: - | BI11: - | BJ11: - | BK11: - | BL11: -11 | BM11: -7 | BN11: -7 | BO11: -7 | BP11: -17 | BQ11: -17 | BR11: -13 | BS11: -13 | BT11: -13 | BU11: - | BV11: -13 | BW11: -13 | BX11: - | BY11: - | BZ11: - | CA11: - | CB11: - | CC11: - | CD11: -7 | CE11: - | CF11: -7 | CG11: -9 | CH11: - | CI11: - | CJ11: -11 | CK11: -17 | CL11: -13 | CM11: -17 | CN11: - | CO11: - | CP11: - | CQ11: - | CR11: - | CS11: -5
A12: Alt. entre 601 et 700 m | B12: -14 | C12: - | D12: -12 | E12: -12 | F12: -14 | G12: -8 | H12: -10 | I12: - | J12: -8 | K12: - | L12: -8 | M12: -12 | N12: -8 | O12: - | P12: -12 | Q12: - | R12: - | S12: - | T12: -12 | U12: -5 | V12: -14 | W12: - | X12: -12 | Y12: - | Z12: -16 | AA12: -10 | AB12: - | AC12: - | AD12: - | AE12: -8 | AF12: -8 | AG12: - | AH12: - | AI12: -8 | AJ12: - | AK12: - | AL12: - | AM12: -14 | AN12: -14 | AO12: - | AP12: - | AQ12: -14 | AR12: -12 | AS12: - | AT12: - | AU12: -10 | AV12: - | AW12: -12 | AX12: - | AY12: - | AZ12: - | BA12: - | BB12: - | BC12: -18 | BD12: - | BE12: - | BF12: -18 | BG12: -14 | BH12: - | BI12: - | BJ12: - | BK12: - | BL12: -12 | BM12: -8 | BN12: -8 | BO12: -8 | BP12: -18 | BQ12: -18 | BR12: -14 | BS12: -14 | BT12: -14 | BU12: - | BV12: -14 | BW12: -14 | BX12: - | BY12: - | BZ12: - | CA12: - | CB12: - | CC12: - | CD12: -8 | CE12: - | CF12: -8 | CG12: -10 | CH12: - | CI12: - | CJ12: -12 | CK12: -18 | CL12: -14 | CM12: -18 | CN12: - | CO12: - | CP12: - | CQ12: - | CR12: - | CS12: -5
A13: Alt. entre 701 et 800 m | B13: -15 | C13: - | D13: -13 | E13: -13 | F13: -15 | G13: -8 | H13: -11 | I13: - | J13: -8 | K13: - | L13: -8 | M13: -13 | N13: -8 | O13: - | P13: -13 | Q13: - | R13: - | S13: - | T13: -13 | U13: -6 | V13: - | W13: - | X13: -13 | Y13: - | Z13: -17 | AA13: -11 | AB13: - | AC13: - | AD13: - | AE13: -8 | AF13: -8 | AG13: - | AH13: - | AI13: -8 | AJ13: - | AK13: - | AL13: - | AM13: -15 | AN13: -15 | AO13: - | AP13: - | AQ13: -15 | AR13: -13 | AS13: - | AT13: - | AU13: -11 | AV13: - | AW13: -13 | AX13: - | AY13: - | AZ13: - | BA13: - | BB13: - | BC13: -19 | BD13: - | BE13: - | BF13: -19 | BG13: -15 | BH13: - | BI13: - | BJ13: - | BK13: - | BL13: -13 | BM13: -8 | BN13: -8 | BO13: -8 | BP13: -19 | BQ13: -19 | BR13: -15 | BS13: -15 | BT13: -15 | BU13: - | BV13: -15 | BW13: -15 | BX13: - | BY13: - | BZ13: - | CA13: - | CB13: - | CC13: - | CD13: -8 | CE13: - | CF13: -8 | CG13: -11 | CH13: - | CI13: - | CJ13: -13 | CK13: -19 | CL13: - | CM13: -19 | CN13: - | CO13: - | CP13: - | CQ13: - | CR13: - | CS13: -5
A14: Alt. entre 801 et 900 m | B14: -16 | C14: - | D14: -14 | E14: -14 | F14: -16 | G14: -9 | H14: -12 | I14: - | J14: -9 | K14: - | L14: -9 | M14: -14 | N14: -9 | O14: - | P14: -14 | Q14: - | R14: - | S14: - | T14: -14 | U14: -6 | V14: - | W14: - | X14: -14 | Y14: - | Z14: -18 | AA14: -12 | AB14: - | AC14: - | AD14: - | AE14: -9 | AF14: -9 | AG14: - | AH14: - | AI14: -9 | AJ14: - | AK14: - | AL14: - | AM14: -16 | AN14: -16 | AO14: - | AP14: - | AQ14: -16 | AR14: -14 | AS14: - | AT14: - | AU14: -12 | AV14: - | AW14: -14 | AX14: - | AY14: - | AZ14: - | BA14: - | BB14: - | BC14: -20 | BD14: - | BE14: - | BF14: -20 | BG14: -16 | BH14: - | BI14: - | BJ14: - | BK14: - | BL14: -14 | BM14: -9 | BN14: -9 | BO14: -9 | BP14: -20 | BQ14: -20 | BR14: -16 | BS14: -16 | BT14: -16 | BU14: - | BV14: -16 | BW14: -16 | BX14: - | BY14: - | BZ14: - | CA14: - | CB14: - | CC14: - | CD14: -9 | CE14: - | CF14: -9 | CG14: -12 | CH14: - | CI14: - | CJ14: -14 | CK14: -20 | CL14: - | CM14: -20 | CN14: - | CO14: - | CP14: - | CQ14: - | CR14: - | CS14: -5
A15: Alt. entre 901 et 1000 m | B15: -17 | C15: - | D15: -15 | E15: -15 | F15: -17 | G15: -9 | H15: -13 | I15: - | J15: -9 | K15: - | L15: -9 | M15: -15 | N15: -9 | O15: - | P15: -15 | Q15: - | R15: - | S15: - | T15: -15 | U15: -6 | V15: - | W15: - | X15: -15 | Y15: - | Z15: -19 | AA15: -13 | AB15: - | AC15: - | AD15: - | AE15: -9 | AF15: -9 | AG15: - | AH15: - | AI15: -9 | AJ15: - | AK15: - | AL15: - | AM15: -17 | AN15: -17 | AO15: - | AP15: - | AQ15: -17 | AR15: -15 | AS15: - | AT15: - | AU15: -13 | AV15: - | AW15: -15 | AX15: - | AY15: - | AZ15: - | BA15: - | BB15: - | BC15: -21 | BD15: - | BE15: - | BF15: -21 | BG15: -17 | BH15: - | BI15: - | BJ15: - | BK15: - | BL15: -15 | BM15: -9 | BN15: -9 | BO15: -9 | BP15: -21 | BQ15: -21 | BR15: -17 | BS15: -17 | BT15: -17 | BU15: - | BV15: -17 | BW15: -17 | BX15: - | BY15: - | BZ15: - | CA15: - | CB15: - | CC15: - | CD15: -9 | CE15: - | CF15: -9 | CG15: -13 | CH15: - | CI15: - | CJ15: -15 | CK15: -21 | CL15: - | CM15: -21 | CN15: - | CO15: - | CP15: - | CQ15: - | CR15: - | CS15: -5
A16: Alt. entre 1001 et 1100 m | B16: -18 | C16: - | D16: -16 | E16: -16 | F16: -18 | G16: -10 | H16: -14 | I16: - | J16: -10 | K16: - | L16: -10 | M16: -16 | N16: -10 | O16: - | P16: -16 | Q16: - | R16: - | S16: - | T16: -16 | U16: -6 | V16: - | W16: - | X16: -16 | Y16: - | Z16: -20 | AA16: -14 | AB16: - | AC16: - | AD16: - | AE16: -10 | AF16: -10 | AG16: - | AH16: - | AI16: -10 | AJ16: - | AK16: - | AL16: - | AM16: -18 | AN16: -18 | AO16: - | AP16: - | AQ16: -18 | AR16: -16 | AS16: - | AT16: - | AU16: -14 | AV16: - | AW16: -16 | AX16: - | AY16: - | AZ16: - | BA16: - | BB16: - | BC16: -22 | BD16: - | BE16: - | BF16: -22 | BG16: -18 | BH16: - | BI16: - | BJ16: - | BK16: - | BL16: -16 | BM16: -10 | BN16: -10 | BO16: -10 | BP16: -22 | BQ16: -22 | BR16: -18 | BS16: -18 | BT16: -18 | BU16: - | BV16: -18 | BW16: -18 | BX16: - | BY16: - | BZ16: - | CA16: - | CB16: - | CC16: - | CD16: -10 | CE16: - | CF16: -10 | CG16: -14 | CH16: - | CI16: - | CJ16: -16 | CK16: -22 | CL16: - | CM16: -22 | CN16: - | CO16: - | CP16: - | CQ16: - | CR16: - | CS16: -5
A17: Alt. entre 1101 et 1200 m | B17: -19 | C17: - | D17: -17 | E17: -17 | F17: -19 | G17: -10 | H17: - | I17: - | J17: -10 | K17: - | L17: -10 | M17: -17 | N17: -10 | O17: - | P17: -17 | Q17: - | R17: - | S17: - | T17: -17 | U17: -6 | V17: - | W17: - | X17: -17 | Y17: - | Z17: -21 | AA17: - | AB17: - | AC17: - | AD17: - | AE17: -10 | AF17: -10 | AG17: - | AH17: - | AI17: -10 | AJ17: - | AK17: - | AL17: - | AM17: -19 | AN17: -19 | AO17: - | AP17: - | AQ17: -19 | AR17: -17 | AS17: - | AT17: - | AU17: - | AV17: - | AW17: -17 | AX17: - | AY17: - | AZ17: - | BA17: - | BB17: - | BC17: -23 | BD17: - | BE17: - | BF17: -23 | BG17: -19 | BH17: - | BI17: - | BJ17: - | BK17: - | BL17: -17 | BM17: -10 | BN17: -10 | BO17: -10 | BP17: -23 | BQ17: -23 | BR17: -19 | BS17: -19 | BT17: -19 | BU17: - | BV17: -19 | BW17: -19 | BX17: - | BY17: - | BZ17: - | CA17: - | CB17: - | CC17: - | CD17: -10 | CE17: - | CF17: -10 | CG17: - | CH17: - | CI17: - | CJ17: -171 | CK17: -23 | CL17: - | CM17: -23 | CN17: - | CO17: - | CP17: - | CQ17: - | CR17: - | CS17: -5
A18: Alt. entre 1201 et 1300 m | B18: -20 | C18: - | D18: -18 | E18: -18 | F18: -20 | G18: -11 | H18: - | I18: - | J18: -11 | K18: - | L18: -11 | M18: -18 | N18: -11 | O18: - | P18: -18 | Q18: - | R18: - | S18: - | T18: -18 | U18: -6 | V18: - | W18: - | X18: -18 | Y18: - | Z18: -22 | AA18: - | AB18: - | AC18: - | AD18: - | AE18: -11 | AF18: -11 | AG18: - | AH18: - | AI18: -11 | AJ18: - | AK18: - | AL18: - | AM18: -20 | AN18: -20 | AO18: - | AP18: - | AQ18: -20 | AR18: -18 | AS18: - | AT18: - | AU18: - | AV18: - | AW18: -18 | AX18: - | AY18: - | AZ18: - | BA18: - | BB18: - | BC18: -24 | BD18: - | BE18: - | BF18: -24 | BG18: -20 | BH18: - | BI18: - | BJ18: - | BK18: - | BL18: -18 | BM18: -11 | BN18: -11 | BO18: -11 | BP18: -24 | BQ18: -24 | BR18: -20 | BS18: -20 | BT18: -20 | BU18: - | BV18: -20 | BW18: -20 | BX18: - | BY18: - | BZ18: - | CA18: - | CB18: - | CC18: - | CD18: -11 | CF18: -11 | CG18: - | CH18: - | CI18: - | CJ18: -18 | CK18: -24 | CL18: - | CM18: -24 | CN18: - | CO18: - | CP18: - | CQ18: - | CR18: - | CS18: -5
A19: Alt. entre 1301 et 1400 m | B19: -21 | C19: - | D19: -19 | E19: -19 | F19: -21 | G19: -11 | H19: - | I19: - | J19: -11 | K19: - | L19: -11 | M19: -19 | N19: -11 | O19: - | P19: -19 | Q19: - | R19: - | S19: - | T19: -19 | U19: -6 | V19: - | W19: - | X19: -19 | Y19: - | Z19: -23 | AA19: - | AB19: - | AC19: - | AD19: - | AE19: -11 | AF19: -11 | AG19: - | AH19: - | AI19: -11 | AJ19: - | AK19: - | AL19: - | AM19: -21 | AN19: -21 | AO19: - | AP19: - | AQ19: -21 | AR19: -19 | AS19: - | AT19: - | AU19: - | AV19: - | AW19: -19 | AX19: - | AY19: - | AZ19: - | BA19: - | BB19: - | BC19: -25 | BD19: - | BE19: - | BF19: -25 | BG19: -21 | BH19: - | BI19: - | BJ19: - | BK19: - | BL19: -19 | BM19: -11 | BN19: -11 | BO19: -11 | BP19: -25 | BQ19: -25 | BR19: -21 | BS19: -21 | BT19: -21 | BU19: - | BV19: -21 | BW19: -21 | BX19: - | BY19: - | BZ19: - | CA19: - | CB19: - | CC19: - | CD19: -11 | CE19: - | CF19: -11 | CG19: - | CH19: - | CI19: - | CJ19: -19 | CK19: -25 | CL19: - | CM19: -25 | CN19: - | CO19: - | CP19: - | CQ19: - | CR19: - | CS19: -5
A20: Alt. entre 1401 et 1500 m | B20: -22 | C20: - | D20: -20 | E20: -20 | F20: -22 | G20: -12 | H20: - | I20: - | J20: -12 | K20: - | L20: -12 | M20: - | N20: -12 | O20: - | P20: - | Q20: - | R20: - | S20: - | T20: - | U20: -6 | V20: - | W20: - | X20: - | Y20: - | Z20: -24 | AA20: - | AB20: - | AC20: - | AD20: - | AE20: -12 | AF20: -12 | AG20: - | AH20: - | AI20: -12 | AJ20: - | AK20: - | AL20: - | AM20: -22 | AN20: -22 | AO20: - | AP20: - | AQ20: -22 | AR20: - | AS20: - | AT20: - | AU20: - | AV20: - | AW20: - | AX20: - | AY20: - | AZ20: - | BA20: - | BB20: - | BC20: -25 | BD20: - | BE20: - | BF20: -25 | BG20: -22 | BH20: - | BI20: - | BJ20: - | BK20: - | BL20: - | BM20: -12 | BN20: -12 | BO20: -12 | BP20: -25 | BQ20: -25 | BR20: -22 | BS20: -22 | BT20: -22 | BU20: - | BV20: -22 | BW20: -22 | BX20: - | BY20: - | BZ20: - | CA20: - | CB20: - | CC20: - | CD20: -12 | CE20: - | CF20: -12 | CG20: - | CH20: - | CI20: - | CJ20: - | CK20: -25 | CL20: - | CM20: -25 | CN20: - | CO20: - | CP20: - | CQ20: - | CR20: - | CS20: -5

Sheet Systèmes Ventilation (hidden)
B3: Système de Ventilation disponible
B5: VNC Naturelle
B6: VMC Simple Flux Autoréglable
B7: VMC Simple Flux HygroA
B8: VMC Simple Flux HygroB
B9: VMC Double Flux | C9: Efficacité DF
C10: 0
C11: 0.5
C12: 0.6
C13: 0.7
C14: 0.8
C15: 0.9
B18: OUI
B19: NON

Sheet Evolution Journalière Biarritz
A1: Evolution de la température extérieure - Evaluation des Degrés jours pour une Température de consigne fixée sur l'année civile 2008 de chauffe
A2: Biarritz : | F2: a | G2: 0 | H2: 3 | I2: 10 | J2: 21 | K2: 34 | L2: 47 | M2: 58 | N2: 68 | O2: 76 | P2: 82 | Q2: 92 | R2: 96 | S2: 99 | T2: 100 | U2: 98 | V2: 93 | W2: 84 | X2: 71 | Y2: 56 | Z2: 39 | AA2: 23 | AB2: 11 | AC2: 3 | AG2: DJx
C3: =MAX(C5:C216) -> 27.0 | G3: 1 | H3: 2 | I3: 3 | J3: 4 | K3: 5 | L3: 6 | M3: 7 | N3: 8 | O3: 9 | P3: 10 | Q3: 11 | R3: 12 | S3: 13 | T3: 14 | U3: 15 | V3: 16 | W3: 17 | X3: 18 | Y3: 19 | Z3: 20 | AA3: 21 | AB3: 22 | AC3: 23 | AE3: Consigne | AG3: 01/01 au 31/12
A4: Jour | B4: Mois | C4: t°max | D4: dt | AD4: D°Heures | AE4: 19°C | AG4: =AE218 -> 1732
A5: 2000-01-01 | B5: =A5 -> 2000-01-01 | C5: 10.2 | D5: 13.8 | G5: =$C5-(G$2*$D5/100) -> 10.2 | H5: 9.8 | I5: 8.8 | J5: 7.3 | K5: 5.5 | L5: 3.7 | M5: 2.2 | N5: 0.8 | O5: -0.3 | P5: -1.1 | Q5: -2.5 | R5: -3.0 | S5: -3.5 | T5: -3.6 | U5: -3.3 | V5: -2.6 | W5: =$C5-(W$2*$D5/100) -> -1.4 | X5: 0.4 | Y5: 2.5 | Z5: 4.8 | AA5: 7.0 | AB5: 8.7 | AC5: 9.8 | AD5: =(AE$4*23)-SUM($G5:$AC5) -> 376.8
A6: 2000-01-02 | B6: 2000-01-02 | C6: 12.6 | D6: 14.7 | G6: 12.6 | H6: 12.2 | I6: 11.1 | J6: 9.5 | K6: 7.6 | L6: 5.7 | M6: 4.1 | N6: 2.6 | O6: 1.4 | P6: 0.5 | Q6: -0.9 | R6: -1.5 | S6: -2.0 | T6: -2.1 | U6: -1.8 | V6: -1.1 | W6: 0.3 | X6: 2.2 | Y6: 4.4 | Z6: 6.9 | AA6: 9.2 | AB6: 11.0 | AC6: 12.2 | AD6: 333.0
A7: 2000-01-03 | B7: 2000-01-03 | C7: 12.4 | D7: 3.8 | G7: 12.4 | H7: 12.3 | I7: 12.0 | J7: 11.6 | K7: 11.1 | L7: 10.6 | M7: 10.2 | N7: 9.8 | O7: 9.5 | P7: 9.3 | Q7: 8.9 | R7: 8.8 | S7: 8.6 | T7: 8.6 | U7: 8.7 | V7: 8.9 | W7: 9.2 | X7: 9.7 | Y7: 10.3 | Z7: 10.9 | AA7: 11.5 | AB7: 12.0 | AC7: 12.3 | AD7: 199.8
A8: 2000-01-04 | B8: 2000-01-04 | C8: 13.3 | D8: 6.6 | G8: 13.3 | H8: 13.1 | I8: 12.6 | J8: 11.9 | K8: 11.1 | L8: 10.2 | M8: 9.5 | N8: 8.8 | O8: 8.3 | P8: 7.9 | Q8: 7.2 | R8: 7.0 | S8: 6.8 | T8: 6.7 | U8: 6.8 | V8: 7.2 | W8: 7.8 | X8: 8.6 | Y8: 9.6 | Z8: 10.7 | AA8: 11.8 | AB8: 12.6 | AC8: 13.1 | AD8: 214.5
A9: 2000-01-05 | B9: 2000-01-05 | C9: 16 | D9: 8.5 | G9: 16.0 | H9: 15.7 | I9: 15.2 | J9: 14.2 | K9: 13.1 | L9: 12.0 | M9: 11.1 | N9: 10.2 | O9: 9.5 | P9: 9.0 | Q9: 8.2 | R9: 7.8 | S9: 7.6 | T9: 7.5 | U9: 7.7 | V9: 8.1 | W9: 8.9 | X9: 10.0 | Y9: 11.2 | Z9: 12.7 | AA9: 14.0 | AB9: 15.1 | AC9: 15.7 | AD9: 176.4
A10: 2000-01-06 | B10: 2000-01-06 | C10: 16.6 | D10: 3.8 | G10: 16.6 | H10: 16.5 | I10: 16.2 | J10: 15.8 | K10: 15.3 | L10: 14.8 | M10: 14.4 | N10: 14.0 | O10: 13.7 | P10: 13.5 | Q10: 13.1 | R10: 13.0 | S10: 12.8 | T10: 12.8 | U10: 12.9 | V10: 13.1 | W10: 13.4 | X10: 13.9 | Y10: 14.5 | Z10: 15.1 | AA10: 15.7 | AB10: 16.2 | AC10: 16.5 | AD10: 103.2
A11: 2000-01-07 | B11: 2000-01-07 | C11: 13.7 | D11: 5.5 | G11: 13.7 | H11: 13.5 | I11: 13.2 | J11: 12.5 | K11: 11.8 | L11: 11.1 | M11: 10.5 | N11: 10.0 | O11: 9.5 | P11: 9.2 | Q11: 8.6 | R11: 8.4 | S11: 8.3 | T11: 8.2 | U11: 8.3 | V11: 8.6 | W11: 9.1 | X11: 9.8 | Y11: 10.6 | Z11: 11.6 | AA11: 12.4 | AB11: 13.1 | AC11: 13.5 | AD11: 191.4
A12: 2000-01-08 | B12: 2000-01-08 | C12: 16.7 | D12: 11.5 | G12: 16.7 | H12: 16.4 | I12: 15.6 | J12: 14.3 | K12: 12.8 | L12: 11.3 | M12: 10.0 | N12: 8.9 | O12: 8.0 | P12: 7.3 | Q12: 6.1 | R12: 5.7 | S12: 5.3 | T12: 5.2 | U12: 5.4 | V12: 6.0 | W12: 7.0 | X12: 8.5 | Y12: 10.3 | Z12: 12.2 | AA12: 14.1 | AB12: 15.4 | AC12: 16.4 | AD12: 198.3
A13: 2000-01-09 | B13: 2000-01-09 | C13: 15.8 | D13: 5.7 | G13: 15.8 | H13: 15.6 | I13: 15.2 | J13: 14.6 | K13: 13.9 | L13: 13.1 | M13: 12.5 | N13: 11.9 | O13: 11.5 | P13: 11.1 | Q13: 10.6 | R13: 10.3 | S13: 10.2 | T13: 10.1 | U13: 10.2 | V13: 10.5 | W13: 11.0 | X13: 11.8 | Y13: 12.6 | Z13: 13.6 | AA13: 14.5 | AB13: 15.2 | AC13: 15.6 | AD13: 145.6
A14: 2000-01-10 | B14: 2000-01-10 | C14: 16.5 | D14: 9.1 | G14: 16.5 | H14: 16.2 | I14: 15.6 | J14: 14.6 | K14: 13.4 | L14: 12.2 | M14: 11.2 | N14: 10.3 | O14: 9.6 | P14: 9.0 | Q14: 8.1 | R14: 7.8 | S14: 7.5 | T14: 7.4 | U14: 7.6 | V14: 8.0 | W14: 8.9 | X14: 10.0 | Y14: 11.4 | Z14: 13.0 | AA14: 14.4 | AB14: 15.5 | AC14: 16.2 | AD14: 172.5
A15: 2000-01-11 | B15: 2000-01-11 | C15: 16.1 | D15: 9 | G15: 16.1 | H15: 15.8 | I15: 15.2 | J15: 14.2 | K15: 13.0 | L15: 11.9 | M15: 10.9 | N15: 10.0 | O15: 9.3 | P15: 8.7 | Q15: 7.8 | R15: 7.5 | S15: 7.2 | T15: 7.1 | U15: 7.3 | V15: 7.7 | W15: 8.5 | X15: 9.7 | Y15: 11.1 | Z15: 12.6 | AA15: 14.0 | AB15: 15.1 | AC15: 15.8 | AD15: 180.5
A16: 2000-01-12 | B16: 2000-01-12 | C16: 11.5 | D16: 5.6 | G16: 11.5 | H16: 11.3 | I16: 10.9 | J16: 10.3 | K16: 9.6 | L16: 8.9 | M16: 8.3 | N16: 7.7 | O16: 7.2 | P16: 6.9 | Q16: 6.3 | R16: 6.1 | S16: 6.0 | T16: 5.9 | U16: 6.0 | V16: 6.3 | W16: 6.8 | X16: 7.5 | Y16: 8.4 | Z16: 9.3 | AA16: 10.2 | AB16: 10.9 | AC16: 11.3 | AD16: 243.3
A17: 2000-01-13 | B17: 2000-01-13 | C17: 14 | D17: 10.9 | G17: 14.0 | H17: 13.7 | I17: 12.9 | J17: 11.7 | K17: 10.3 | L17: 8.9 | M17: 7.7 | N17: 6.6 | O17: 5.7 | P17: 5.1 | Q17: 4.0 | R17: 3.5 | S17: 3.2 | T17: 3.1 | U17: 3.3 | V17: 3.9 | W17: 4.8 | X17: 6.3 | Y17: 7.9 | Z17: 9.7 | AA17: 11.5 | AB17: 12.8 | AC17: 13.7 | AD17: 252.8
A18: 2000-01-14 | B18: 2000-01-14 | C18: 14.4 | D18: 5.5 | G18: 14.4 | H18: 14.2 | I18: 13.9 | J18: 13.2 | K18: 12.5 | L18: 11.8 | M18: 11.2 | N18: 10.7 | O18: 10.2 | P18: 9.9 | Q18: 9.3 | R18: 9.1 | S18: 9.0 | T18: 8.9 | U18: 9.0 | V18: 9.3 | W18: 9.8 | X18: 10.5 | Y18: 11.3 | Z18: 12.3 | AA18: 13.1 | AB18: 13.8 | AC18: 14.2 | AD18: 175.3
A19: 2000-01-15 | B19: 2000-01-15 | C19: 15.5 | D19: 9.1 | G19: 15.5 | H19: 15.2 | I19: 14.6 | J19: 13.6 | K19: 12.4 | L19: 11.2 | M19: 10.2 | N19: 9.3 | O19: 8.6 | P19: 8.0 | Q19: 7.1 | R19: 6.8 | S19: 6.5 | T19: 6.4 | U19: 6.6 | V19: 7.0 | W19: 7.9 | X19: 9.0 | Y19: 10.4 | Z19: 12.0 | AA19: 13.4 | AB19: 14.5 | AC19: 15.2 | AD19: 195.5
A20: 2000-01-16 | B20: 2000-01-16 | C20: 12.2 | D20: 4.9 | G20: 12.2 | H20: 12.1 | I20: 11.7 | J20: 11.2 | K20: 10.5 | L20: 9.9 | M20: 9.4 | N20: 8.9 | O20: 8.5 | P20: 8.2 | Q20: 7.7 | R20: 7.5 | S20: 7.3 | T20: 7.3 | U20: 7.4 | V20: =$C20-(V$2*$D20/100) -> 7.6 | W20: 8.1 | X20: 8.7 | Y20: 9.5 | Z20: 10.3 | AA20: 11.1 | AB20: 11.7 | AC20: 12.1 | AD20: 218.3
A21: 2000-01-17 | B21: 2000-01-17 | C21: 15.5 | D21: 6.6 | G21: =$C21-(G$2*$D21/100) -> 15.5 | H21: 15.3 | I21: 14.8 | J21: 14.1 | K21: 13.3 | L21: 12.4 | M21: 11.7 | N21: 11.0 | O21: 10.5 | P21: 10.1 | Q21: 9.4 | R21: 9.2 | S21: 9.0 | T21: 8.9 | U21: 9.0 | V21: 9.4 | W21: 10.0 | X21: 10.8 | Y21: 11.8 | Z21: 12.9 | AA21: 14.0 | AB21: 14.8 | AC21: 15.3 | AD21: 163.9
A22: 2000-01-18 | B22: 2000-01-18 | C22: 15.1 | D22: 3.2 | G22: 15.1 | H22: 15.0 | I22: 14.8 | J22: 14.4 | K22: 14.0 | L22: 13.6 | M22: 13.2 | N22: 12.9 | O22: 12.7 | P22: 12.5 | Q22: 12.2 | R22: 12.0 | S22: 11.9 | T22: 11.9 | U22: 12.0 | V22: 12.1 | W22: 12.4 | X22: 12.8 | Y22: 13.3 | Z22: 13.9 | AA22: 14.4 | AB22: 14.7 | AC22: 15.0 | AD22: 130.1
A23: 2000-01-19 | B23: 2000-01-19 | C23: 16.6 | D23: 6.4 | G23: 16.6 | H23: 16.4 | I23: 16.0 | J23: 15.3 | K23: 14.4 | L23: 13.6 | M23: 12.9 | N23: 12.2 | O23: 11.7 | P23: 11.4 | Q23: 10.7 | R23: 10.5 | S23: 10.3 | T23: 10.2 | U23: 10.3 | V23: 10.6 | W23: 11.2 | X23: 12.1 | Y23: 13.0 | Z23: 14.1 | AA23: 15.1 | AB23: 15.9 | AC23: 16.4 | AD23: 136.1
A24: 2000-01-20 | B24: 2000-01-20 | C24: 15 | D24: 11.4 | G24: 15.0 | H24: 14.7 | I24: 13.9 | J24: 12.6 | K24: 11.1 | L24: 9.6 | M24: 8.4 | N24: 7.2 | O24: 6.3 | P24: 5.7 | Q24: 4.5 | R24: 4.1 | S24: 3.7 | T24: 3.6 | U24: 3.8 | V24: 4.4 | W24: 5.4 | X24: 6.9 | Y24: 8.6 | Z24: 10.6 | AA24: 12.4 | AB24: 13.7 | AC24: 14.7 | AD24: 236.1
A25: 2000-01-21 | B25: 2000-01-21 | C25: 18.2 | D25: 14.5 | G25: 18.2 | H25: 17.8 | I25: 16.8 | J25: 15.2 | K25: 13.3 | L25: 11.4 | M25: 9.8 | N25: 8.3 | O25: 7.2 | P25: 6.3 | Q25: 4.9 | R25: 4.3 | S25: 3.8 | T25: 3.7 | U25: 4.0 | V25: 4.7 | W25: 6.0 | X25: 7.9 | Y25: 10.1 | Z25: 12.5 | AA25: 14.9 | AB25: 16.6 | AC25: 17.8 | AD25: 201.7
A26: 2000-01-22 | B26: 2000-01-22 | C26: 13 | D26: 4.4 | G26: 13.0 | H26: 12.9 | I26: 12.6 | J26: 12.1 | K26: 11.5 | L26: 10.9 | M26: 10.4 | N26: 10.0 | O26: 9.7 | P26: 9.4 | Q26: 9.0 | R26: 8.8 | S26: 8.6 | T26: 8.6 | U26: 8.7 | V26: 8.9 | W26: 9.3 | X26: 9.9 | Y26: 10.5 | Z26: 11.3 | AA26: 12.0 | AB26: 12.5 | AC26: 12.9 | AD26: 193.6
A27: 2000-01-23 | B27: 2000-01-23 | C27: 12.5 | D27: 4.4 | G27: 12.5 | H27: 12.4 | I27: 12.1 | J27: 11.6 | K27: 11.0 | L27: 10.4 | M27: 9.9 | N27: 9.5 | O27: 9.2 | P27: 8.9 | Q27: 8.5 | R27: 8.3 | S27: 8.1 | T27: 8.1 | U27: 8.2 | V27: 8.4 | W27: 8.8 | X27: 9.4 | Y27: 10.0 | Z27: 10.8 | AA27: 11.5 | AB27: 12.0 | AC27: 12.4 | AD27: 205.1
A28: 2000-01-24 | B28: 2000-01-24 | C28: 12.9 | D28: 9.9 | G28: 12.9 | H28: 12.6 | I28: 11.9 | J28: 10.8 | K28: 9.5 | L28: 8.2 | M28: 7.2 | N28: 6.2 | O28: 5.4 | P28: 4.8 | Q28: 3.8 | R28: 3.4 | S28: 3.1 | T28: 3.0 | U28: 3.2 | V28: 3.7 | W28: 4.6 | X28: 5.9 | Y28: 7.4 | Z28: 9.0 | AA28: 10.6 | AB28: 11.8 | AC28: 12.6 | AD28: 265.4
A29: 2000-01-25 | B29: 2000-01-25 | C29: 9.4 | D29: 3.6 | G29: 9.4 | H29: 9.3 | I29: 9.0 | J29: 8.6 | K29: 8.2 | L29: 7.7 | M29: 7.3 | N29: 7.0 | O29: 6.7 | P29: 6.4 | Q29: 6.1 | R29: 5.9 | S29: 5.8 | T29: 5.8 | U29: 5.9 | V29: 6.1 | W29: 6.4 | X29: 6.8 | Y29: 7.4 | Z29: 8.0 | AA29: 8.6 | AB29: 9.0 | AC29: 9.3 | AD29: 266.3
A30: 2000-01-26 | B30: 2000-01-26 | C30: 14.6 | D30: 10.5 | G30: 14.6 | H30: 14.3 | I30: 13.6 | J30: 12.4 | K30: 11.0 | L30: 9.7 | M30: 8.5 | N30: 7.5 | O30: 6.6 | P30: 6.0 | Q30: 4.9 | R30: 4.5 | S30: 4.2 | T30: 4.1 | U30: 4.3 | V30: 4.8 | W30: 5.8 | X30: 7.1 | Y30: 8.7 | Z30: 10.5 | AA30: 12.2 | AB30: 13.4 | AC30: 14.3 | AD30: 233.9
A31: 2000-01-27 | B31: 2000-01-27 | C31: 13.6 | D31: 12.8 | G31: 13.6 | H31: 13.2 | I31: 12.3 | J31: 10.9 | K31: 9.2 | L31: 7.6 | M31: 6.2 | N31: 4.9 | O31: 3.9 | P31: 3.1 | Q31: 1.8 | R31: 1.3 | S31: 0.9 | T31: 0.8 | U31: 1.1 | V31: 1.7 | W31: 2.8 | X31: 4.5 | Y31: 6.4 | Z31: 8.6 | AA31: 10.7 | AB31: 12.2 | AC31: 13.2 | AD31: 286.0
A32: 2000-01-28 | B32: 2000-01-28 | C32: 10.1 | D32: 5.9 | G32: 10.1 | H32: 9.9 | I32: 9.5 | J32: 8.9 | K32: 8.1 | L32: 7.3 | M32: 6.7 | N32: 6.1 | O32: 5.6 | P32: 5.3 | Q32: 4.7 | R32: 4.4 | S32: 4.3 | T32: 4.2 | U32: 4.3 | V32: 4.6 | W32: 5.1 | X32: 5.9 | Y32: 6.8 | Z32: 7.8 | AA32: 8.7 | AB32: 9.5 | AC32: 9.9 | AD32: 279.3
A33: 2000-01-29 | B33: 2000-01-29 | C33: 10.7 | D33: 6.5 | G33: 10.7 | H33: 10.5 | I33: 10.1 | J33: 9.3 | K33: 8.5 | L33: 7.6 | M33: 6.9 | N33: 6.3 | O33: 5.8 | P33: 5.4 | Q33: 4.7 | R33: 4.5 | S33: 4.3 | T33: 4.2 | U33: 4.3 | V33: 4.7 | W33: 5.2 | X33: 6.1 | Y33: 7.1 | Z33: 8.2 | AA33: 9.2 | AB33: 10.0 | AC33: 10.5 | AD33: 273.1
A34: 2000-01-30 | B34: 2000-01-30 | C34: 9.8 | D34: 2.6 | G34: 9.8 | H34: 9.7 | I34: 9.5 | J34: 9.3 | K34: 8.9 | L34: 8.6 | M34: 8.3 | N34: 8.0 | O34: 7.8 | P34: 7.7 | Q34: 7.4 | R34: 7.3 | S34: 7.2 | T34: 7.2 | U34: 7.3 | V34: 7.4 | W34: 7.6 | X34: 8.0 | Y34: 8.3 | Z34: 8.8 | AA34: 9.2 | AB34: 9.5 | AC34: 9.7 | AD34: 244.5
A35: 2000-01-31 | B35: 2000-01-31 | C35: 10.9 | D35: 8.4 | G35: 10.9 | H35: 10.6 | I35: 10.1 | J35: 9.1 | K35: 8.0 | L35: 7.0 | M35: 6.0 | N35: 5.2 | O35: 4.5 | P35: 4.0 | Q35: 3.2 | R35: 2.8 | S35: 2.6 | T35: 2.5 | U35: 2.7 | V35: 3.1 | W35: 3.8 | X35: 4.9 | Y35: 6.2 | Z35: 7.6 | AA35: 9.0 | AB35: 10.0 | AC35: 10.6 | AD35: 292.5 | AE35: =SUM(AD5:AD35)/24 -> 283 | AG35: Djx en janvier
A36: 2000-02-01 | B36: 2000-02-01 | C36: 14.3 | D36: 8.4 | G36: 14.3 | H36: 14.0 | I36: 13.5 | J36: 12.5 | K36: 11.4 | L36: 10.4 | M36: 9.4 | N36: 8.6 | O36: 7.9 | P36: 7.4 | Q36: 6.6 | R36: 6.2 | S36: 6.0 | T36: 5.9 | U36: 6.1 | V36: 6.5 | W36: =$C36-(W$2*$D36/100) -> 7.2 | X36: 8.3 | Y36: 9.6 | Z36: 11.0 | AA36: 12.4 | AB36: 13.4 | AC36: 14.0 | AD36: 214.3
A37: 2000-02-02 | B37: 2000-02-02 | C37: 10.5 | D37: 5.7 | G37: 10.5 | H37: 10.3 | I37: 9.9 | J37: 9.3 | K37: 8.6 | L37: 7.8 | M37: 7.2 | N37: 6.6 | O37: 6.2 | P37: 5.8 | Q37: 5.3 | R37: 5.0 | S37: 4.9 | T37: 4.8 | U37: 4.9 | V37: 5.2 | W37: 5.7 | X37: 6.5 | Y37: 7.3 | Z37: 8.3 | AA37: 9.2 | AB37: 9.9 | AC37: 10.3 | AD37: 267.5
A38: 2000-02-03 | B38: 2000-02-03 | C38: 15.2 | D38: 13.7 | G38: 15.2 | H38: 14.8 | I38: 13.8 | J38: 12.3 | K38: 10.5 | L38: 8.8 | M38: 7.3 | N38: 5.9 | O38: 4.8 | P38: 4.0 | Q38: 2.6 | R38: 2.0 | S38: 1.6 | T38: 1.5 | U38: 1.8 | V38: 2.5 | W38: 3.7 | X38: 5.5 | Y38: 7.5 | Z38: 9.9 | AA38: 12.0 | AB38: 13.7 | AC38: 14.8 | AD38: 260.6
A39: 2000-02-04 | B39: 2000-02-04 | C39: 10.9 | D39: 5.2 | G39: 10.9 | H39: =$C39-(H$2*$D39/100) -> 10.7 | I39: 10.4 | J39: 9.8 | K39: 9.1 | L39: 8.5 | M39: 7.9 | N39: 7.4 | O39: 6.9 | P39: 6.6 | Q39: 6.1 | R39: 5.9 | S39: 5.8 | T39: 5.7 | U39: 5.8 | V39: 6.1 | W39: 6.5 | X39: 7.2 | Y39: 8.0 | Z39: 8.9 | AA39: 9.7 | AB39: 10.3 | AC39: 10.7 | AD39: 252.0
A40: 2000-02-05 | B40: 2000-02-05 | C40: 18.3 | D40: 14.2 | G40: =$C40-(G$2*$D40/100) -> 18.3 | H40: 17.9 | I40: 16.9 | J40: 15.3 | K40: 13.5 | L40: 11.6 | M40: 10.1 | N40: 8.6 | O40: 7.5 | P40: 6.7 | Q40: 5.2 | R40: 4.7 | S40: 4.2 | T40: 4.1 | U40: 4.4 | V40: 5.1 | W40: 6.4 | X40: 8.2 | Y40: 10.3 | Z40: 12.8 | AA40: 15.0 | AB40: 16.7 | AC40: 17.9 | AD40: 195.6
A41: 2000-02-06 | B41: 2000-02-06 | C41: 15.3 | D41: 5.2 | G41: 15.3 | H41: 15.1 | I41: 14.8 | J41: 14.2 | K41: 13.5 | L41: 12.9 | M41: 12.3 | N41: 11.8 | O41: 11.3 | P41: 11.0 | Q41: 10.5 | R41: 10.3 | S41: 10.2 | T41: 10.1 | U41: 10.2 | V41: 10.5 | W41: 10.9 | X41: 11.6 | Y41: 12.4 | Z41: 13.3 | AA41: 14.1 | AB41: 14.7 | AC41: 15.1 | AD41: 150.8
A42: 2000-02-07 | B42: 2000-02-07 | C42: 15.7 | D42: 10.2 | G42: 15.7 | H42: 15.4 | I42: 14.7 | J42: 13.6 | K42: 12.2 | L42: 10.9 | M42: 9.8 | N42: 8.8 | O42: 7.9 | P42: 7.3 | Q42: 6.3 | R42: 5.9 | S42: 5.6 | T42: 5.5 | U42: 5.7 | V42: 6.2 | W42: 7.1 | X42: 8.5 | Y42: 10.0 | Z42: 11.7 | AA42: 13.4 | AB42: 14.6 | AC42: 15.4 | AD42: 204.8
A43: 2000-02-08 | B43: 2000-02-08 | C43: 18.1 | D43: 15.1 | G43: 18.1 | H43: 17.6 | I43: 16.6 | J43: 14.9 | K43: 13.0 | L43: 11.0 | M43: 9.3 | N43: 7.8 | O43: 6.6 | P43: 5.7 | Q43: 4.2 | R43: 3.6 | S43: 3.2 | T43: 3.0 | U43: 3.3 | V43: 4.1 | W43: 5.4 | X43: 7.4 | Y43: 9.6 | Z43: 12.2 | AA43: 14.6 | AB43: 16.4 | AC43: 17.6 | AD43: 211.6
A44: 2000-02-09 | B44: 2000-02-09 | C44: 19.8 | D44: 17.1 | G44: 19.8 | H44: 19.3 | I44: 18.1 | J44: 16.2 | K44: 14.0 | L44: 11.8 | M44: 9.9 | N44: 8.2 | O44: 6.8 | P44: 5.8 | Q44: 4.1 | R44: 3.4 | S44: 2.9 | T44: 2.7 | U44: 3.0 | V44: 3.9 | W44: 5.4 | X44: 7.7 | Y44: 10.2 | Z44: 13.1 | AA44: 15.9 | AB44: 17.9 | AC44: 19.3 | AD44: 197.7
A45: 2000-02-10 | B45: 2000-02-10 | C45: 16.9 | D45: 14.3 | G45: 16.9 | H45: 16.5 | I45: 15.5 | J45: 13.9 | K45: 12.0 | L45: 10.2 | M45: 8.6 | N45: 7.2 | O45: 6.0 | P45: 5.2 | Q45: 3.7 | R45: 3.2 | S45: 2.7 | T45: 2.6 | U45: 2.9 | V45: 3.6 | W45: 4.9 | X45: 6.7 | Y45: 8.9 | Z45: 11.3 | AA45: 13.6 | AB45: 15.3 | AC45: 16.5 | AD45: 229.1
A46: 2000-02-11 | B46: 2000-02-11 | C46: 16.4 | D46: 15.1 | G46: 16.4 | H46: 15.9 | I46: 14.9 | J46: 13.2 | K46: 11.3 | L46: 9.3 | M46: 7.6 | N46: 6.1 | O46: 4.9 | P46: 4.0 | Q46: 2.5 | R46: 1.9 | S46: 1.5 | T46: 1.3 | U46: 1.6 | V46: 2.4 | W46: 3.7 | X46: 5.7 | Y46: 7.9 | Z46: 10.5 | AA46: 12.9 | AB46: 14.7 | AC46: 15.9 | AD46: 250.7
A47: 2000-02-12 | B47: 2000-02-12 | C47: 16.8 | D47: 13.1 | G47: 16.8 | H47: 16.4 | I47: 15.5 | J47: 14.0 | K47: 12.3 | L47: 10.6 | M47: 9.2 | N47: 7.9 | O47: 6.8 | P47: 6.1 | Q47: 4.7 | R47: 4.2 | S47: 3.8 | T47: 3.7 | U47: 4.0 | V47: 4.6 | W47: 5.8 | X47: 7.5 | Y47: 9.5 | Z47: 11.7 | AA47: 13.8 | AB47: 15.4 | AC47: 16.4 | AD47: 216.2
A48: 2000-02-13 | B48: 2000-02-13 | C48: 15.9 | D48: 15 | G48: 15.9 | H48: 15.5 | I48: 14.4 | J48: 12.8 | K48: 10.8 | L48: 8.9 | M48: 7.2 | N48: 5.7 | O48: 4.5 | P48: 3.6 | Q48: 2.1 | R48: 1.5 | S48: 1.1 | T48: 0.9 | U48: 1.2 | V48: 2.0 | W48: 3.3 | X48: 5.3 | Y48: 7.5 | Z48: 10.1 | AA48: 12.5 | AB48: 14.3 | AC48: 15.5 | AD48: 260.9
A49: 2000-02-14 | B49: 2000-02-14 | C49: 14.8 | D49: 13 | G49: 14.8 | H49: 14.4 | I49: 13.5 | J49: 12.1 | K49: 10.4 | L49: 8.7 | M49: 7.3 | N49: 6.0 | O49: 4.9 | P49: 4.1 | Q49: 2.8 | R49: 2.3 | S49: 1.9 | T49: 1.8 | U49: 2.1 | V49: 2.7 | W49: 3.9 | X49: 5.6 | Y49: 7.5 | Z49: 9.7 | AA49: 11.8 | AB49: 13.4 | AC49: 14.4 | AD49: 260.9
A50: 2000-02-15 | B50: 2000-02-15 | C50: 15 | D50: 12.7 | G50: 15.0 | H50: 14.6 | I50: 13.7 | J50: 12.3 | K50: 10.7 | L50: 9.0 | M50: 7.6 | N50: 6.4 | O50: 5.3 | P50: 4.6 | Q50: 3.3 | R50: 2.8 | S50: 2.4 | T50: 2.3 | U50: 2.6 | V50: 3.2 | W50: 4.3 | X50: 6.0 | Y50: 7.9 | Z50: 10.0 | AA50: 12.1 | AB50: 13.6 | AC50: 14.6 | AD50: 252.5
A51: 2000-02-16 | B51: 2000-02-16 | C51: 14 | D51: 14.1 | G51: 14.0 | H51: 13.6 | I51: 12.6 | J51: 11.0 | K51: 9.2 | L51: 7.4 | M51: 5.8 | N51: 4.4 | O51: 3.3 | P51: 2.4 | Q51: 1.0 | R51: 0.5 | S51: 0.0 | T51: -0.1 | U51: 0.2 | V51: 0.9 | W51: 2.2 | X51: 4.0 | Y51: 6.1 | Z51: 8.5 | AA51: 10.8 | AB51: 12.4 | AC51: 13.6 | AD51: 293.2
A52: 2000-02-17 | B52: 2000-02-17 | C52: 18 | D52: 15.8 | G52: 18.0 | H52: 17.5 | I52: 16.4 | J52: 14.7 | K52: 12.6 | L52: 10.6 | M52: 8.8 | N52: 7.3 | O52: 6.0 | P52: 5.0 | Q52: 3.5 | R52: 2.8 | S52: 2.4 | T52: 2.2 | U52: 2.5 | V52: 3.3 | W52: 4.7 | X52: =$C52-(X$2*$D52/100) -> 6.8 | Y52: 9.2 | Z52: 11.8 | AA52: 14.4 | AB52: 16.3 | AC52: 17.5 | AD52: 222.7
A53: 2000-02-18 | B53: 2000-02-18 | C53: 16 | D53: 11.6 | G53: 16.0 | H53: 15.7 | I53: 14.8 | J53: 13.6 | K53: 12.1 | L53: 10.5 | M53: 9.3 | N53: 8.1 | O53: 7.2 | P53: 6.5 | Q53: 5.3 | R53: 4.9 | S53: 4.5 | T53: 4.4 | U53: 4.6 | V53: 5.2 | W53: 6.3 | X53: 7.8 | Y53: 9.5 | Z53: 11.5 | AA53: 13.3 | AB53: 14.7 | AC53: 15.7 | AD53: 215.6
A54: 2000-02-19 | B54: 2000-02-19 | C54: 18.6 | D54: 7.7 | G54: 18.6 | H54: 18.4 | I54: 17.8 | J54: 17.0 | K54: 16.0 | L54: 15.0 | M54: 14.1 | N54: 13.4 | O54: 12.7 | P54: 12.3 | Q54: 11.5 | R54: 11.2 | S54: 11.0 | T54: 10.9 | U54: 11.1 | V54: 11.4 | W54: 12.1 | X54: 13.1 | Y54: 14.3 | Z54: 15.6 | AA54: 16.8 | AB54: 17.8 | AC54: 18.4 | AD54: 106.5
A55: 2000-02-20 | B55: 2000-02-20 | C55: 16.7 | D55: 7.2 | G55: 16.7 | H55: 16.5 | I55: 16.0 | J55: 15.2 | K55: 14.3 | L55: 13.3 | M55: 12.5 | N55: 11.8 | O55: 11.2 | P55: 10.8 | Q55: 10.1 | R55: 9.8 | S55: 9.6 | T55: 9.5 | U55: 9.6 | V55: 10.0 | W55: 10.7 | X55: 11.6 | Y55: 12.7 | Z55: 13.9 | AA55: 15.0 | AB55: 15.9 | AC55: 16.5 | AD55: 143.9
A56: 2000-02-21 | B56: 2000-02-21 | C56: 16.9 | D56: 8.8 | G56: 16.9 | H56: 16.6 | I56: 16.0 | J56: 15.1 | K56: 13.9 | L56: 12.8 | M56: 11.8 | N56: 10.9 | O56: 10.2 | P56: 9.7 | Q56: 8.8 | R56: 8.5 | S56: 8.2 | T56: 8.1 | U56: 8.3 | V56: 8.7 | W56: 9.5 | X56: 10.7 | Y56: 12.0 | Z56: 13.5 | AA56: 14.9 | AB56: 15.9 | AC56: 16.6 | AD56: 159.5
A57: 2000-02-22 | B57: 2000-02-22 | C57: 15.7 | D57: 10.6 | G57: 15.7 | H57: 15.4 | I57: 14.6 | J57: 13.5 | K57: 12.1 | L57: 10.7 | M57: 9.6 | N57: 8.5 | O57: 7.6 | P57: 7.0 | Q57: 5.9 | R57: 5.5 | S57: 5.2 | T57: 5.1 | U57: 5.3 | V57: 5.8 | W57: 6.8 | X57: 8.2 | Y57: 9.8 | Z57: 11.6 | AA57: 13.3 | AB57: 14.5 | AC57: 15.4 | AD57: 209.9
A58: 2000-02-23 | B58: 2000-02-23 | C58: 21.3 | D58: 17.8 | G58: 21.3 | H58: 20.8 | I58: 19.5 | J58: 17.6 | K58: 15.2 | L58: 12.9 | M58: 11.0 | N58: 9.2 | O58: 7.8 | P58: 6.7 | Q58: 4.9 | R58: 4.2 | S58: 3.7 | T58: 3.5 | U58: 3.9 | V58: 4.7 | W58: 6.3 | X58: 8.7 | Y58: 11.3 | Z58: 14.4 | AA58: 17.2 | AB58: 19.3 | AC58: 20.8 | AD58: 172.1
A59: 2000-02-24 | B59: 2000-02-24 | C59: 19 | D59: 10.2 | G59: 19.0 | H59: 18.7 | I59: 18.0 | J59: 16.9 | K59: 15.5 | L59: 14.2 | M59: 13.1 | N59: 12.1 | O59: 11.2 | P59: 10.6 | Q59: 9.6 | R59: 9.2 | S59: 8.9 | T59: 8.8 | U59: 9.0 | V59: 9.5 | W59: 10.4 | X59: 11.8 | Y59: 13.3 | Z59: 15.0 | AA59: 16.7 | AB59: 17.9 | AC59: 18.7 | AD59: 128.9
A60: 2000-02-25 | B60: 2000-02-25 | C60: 18 | D60: 9.1 | G60: 18.0 | H60: 17.7 | I60: 17.1 | J60: 16.1 | K60: 14.9 | L60: 13.7 | M60: 12.7 | N60: 11.8 | O60: 11.1 | P60: 10.5 | Q60: 9.6 | R60: 9.3 | S60: 9.0 | T60: 8.9 | U60: 9.1 | V60: 9.5 | W60: 10.4 | X60: 11.5 | Y60: 12.9 | Z60: 14.5 | AA60: 15.9 | AB60: 17.0 | AC60: 17.7 | AD60: 138.0
A61: 2000-02-26 | B61: 2000-02-26 | C61: 16.7 | D61: 7.5 | G61: 16.7 | H61: 16.5 | I61: 16.0 | J61: 15.1 | K61: 14.2 | L61: 13.2 | M61: 12.4 | N61: 11.6 | O61: 11.0 | P61: 10.6 | Q61: 9.8 | R61: 9.5 | S61: 9.3 | T61: 9.2 | U61: 9.4 | V61: 9.7 | W61: 10.4 | X61: 11.4 | Y61: 12.5 | Z61: 13.8 | AA61: 15.0 | AB61: 15.9 | AC61: 16.5 | AD61: 147.7
A62: 2000-02-27 | B62: 2000-02-27 | C62: 17.3 | D62: 5.3 | G62: 17.3 | H62: 17.1 | I62: 16.8 | J62: 16.2 | K62: 15.5 | L62: 14.8 | M62: 14.2 | N62: 13.7 | O62: 13.3 | P62: 13.0 | Q62: 12.4 | R62: 12.2 | S62: 12.1 | T62: 12.0 | U62: 12.1 | V62: 12.4 | W62: 12.8 | X62: 13.5 | Y62: 14.3 | Z62: 15.2 | AA62: 16.1 | AB62: 16.7 | AC62: 17.1 | AD62: 106.1
A63: 2000-02-28 | B63: 2000-02-28 | C63: 16.3 | D63: 4.4 | G63: 16.3 | H63: 16.2 | I63: 15.9 | J63: 15.4 | K63: 14.8 | L63: 14.2 | M63: 13.7 | N63: 13.3 | O63: 13.0 | P63: 12.7 | Q63: 12.3 | R63: 12.1 | S63: 11.9 | T63: 11.9 | U63: 12.0 | V63: 12.2 | W63: 12.6 | X63: 13.2 | Y63: 13.8 | Z63: 14.6 | AA63: 15.3 | AB63: 15.8 | AC63: 16.2 | AD63: 117.7 | AE63: =SUM(AD36:AD63)/24 -> 233 | AG63: Djx en février
A64: 2000-03-01 | B64: 2000-03-01 | C64: 15 | D64: 3.1 | G64: 15.0 | H64: 14.9 | I64: 14.7 | J64: 14.3 | K64: 13.9 | L64: 13.5 | M64: 13.2 | N64: 12.9 | O64: 12.6 | P64: 12.5 | Q64: 12.1 | R64: 12.0 | S64: 11.9 | T64: 11.9 | U64: 12.0 | V64: 12.1 | W64: 12.4 | X64: 12.8 | Y64: 13.3 | Z64: 13.8 | AA64: 14.3 | AB64: 14.7 | AC64: 14.9 | AD64: 131.2
A65: 2000-03-02 | B65: 2000-03-02 | C65: 17 | D65: 6 | G65: 17.0 | H65: 16.8 | I65: 16.4 | J65: 15.7 | K65: 15.0 | L65: 14.2 | M65: 13.5 | N65: 12.9 | O65: 12.4 | P65: 12.1 | Q65: 11.5 | R65: 11.2 | S65: 11.1 | T65: 11.0 | U65: 11.1 | V65: 11.4 | W65: 12.0 | X65: 12.7 | Y65: 13.6 | Z65: 14.7 | AA65: 15.6 | AB65: 16.3 | AC65: 16.8 | AD65: 121.8
A66: 2000-03-03 | B66: 2000-03-03 | C66: 13.8 | D66: 3.1 | G66: 13.8 | H66: 13.7 | I66: 13.5 | J66: 13.1 | K66: 12.7 | L66: 12.3 | M66: 12.0 | N66: 11.7 | O66: 11.4 | P66: 11.3 | Q66: 10.9 | R66: 10.8 | S66: 10.7 | T66: 10.7 | U66: 10.8 | V66: 10.9 | W66: 11.2 | X66: 11.6 | Y66: 12.1 | Z66: 12.6 | AA66: 13.1 | AB66: 13.5 | AC66: 13.7 | AD66: 158.8
A67: 2000-03-04 | B67: 2000-03-04 | C67: 9.5 | D67: 5.3 | G67: 9.5 | H67: 9.3 | I67: 9.0 | J67: 8.4 | K67: 7.7 | L67: 7.0 | M67: 6.4 | N67: 5.9 | O67: 5.5 | P67: 5.2 | Q67: 4.6 | R67: 4.4 | S67: 4.3 | T67: 4.2 | U67: 4.3 | V67: 4.6 | W67: 5.0 | X67: 5.7 | Y67: 6.5 | Z67: 7.4 | AA67: 8.3 | AB67: 8.9 | AC67: 9.3 | AD67: 285.5
A68: 2000-03-05 | B68: 2000-03-05 | C68: 8.4 | D68: 5.4 | G68: 8.4 | H68: 8.2 | I68: 7.9 | J68: 7.3 | K68: 6.6 | L68: 5.9 | M68: 5.3 | N68: 4.7 | O68: 4.3 | P68: 4.0 | Q68: 3.4 | R68: 3.2 | S68: 3.1 | T68: 3.0 | U68: 3.1 | V68: 3.4 | W68: =$C68-(W$2*$D68/100) -> 3.9 | X68: 4.6 | Y68: 5.4 | Z68: 6.3 | AA68: 7.2 | AB68: 7.8 | AC68: 8.2 | AD68: 312.1
A69: 2000-03-06 | B69: =A69 -> 2000-03-06 | C69: 9.6 | D69: 9.2 | G69: 9.6 | H69: 9.3 | I69: 8.7 | J69: 7.7 | K69: 6.5 | L69: 5.3 | M69: 4.3 | N69: 3.3 | O69: 2.6 | P69: 2.1 | Q69: 1.1 | R69: 0.8 | S69: 0.5 | T69: 0.4 | U69: 0.6 | V69: 1.0 | W69: 1.9 | X69: 3.1 | Y69: 4.4 | Z69: 6.0 | AA69: 7.5 | AB69: 8.6 | AC69: 9.3 | AD69: =(AE$4*23)-SUM($G69:$AC69) -> 332.5
A70: 2000-03-07 | B70: 2000-03-07 | C70: 11 | D70: 6 | G70: 11.0 | H70: 10.8 | I70: 10.4 | J70: 9.7 | K70: 9.0 | L70: 8.2 | M70: 7.5 | N70: 6.9 | O70: 6.4 | P70: 6.1 | Q70: 5.5 | R70: 5.2 | S70: 5.1 | T70: 5.0 | U70: 5.1 | V70: 5.4 | W70: 6.0 | X70: 6.7 | Y70: 7.6 | Z70: 8.7 | AA70: 9.6 | AB70: 10.3 | AC70: 10.8 | AD70: 259.8
A71: 2000-03-08 | B71: 2000-03-08 | C71: 12.7 | D71: 5.4 | G71: 12.7 | H71: 12.5 | I71: 12.2 | J71: 11.6 | K71: 10.9 | L71: 10.2 | M71: 9.6 | N71: 9.0 | O71: 8.6 | P71: 8.3 | Q71: 7.7 | R71: 7.5 | S71: 7.4 | T71: 7.3 | U71: 7.4 | V71: 7.7 | W71: 8.2 | X71: 8.9 | Y71: 9.7 | Z71: 10.6 | AA71: 11.5 | AB71: 12.1 | AC71: 12.5 | AD71: 213.2
A72: 2000-03-09 | B72: 2000-03-09 | C72: 10.4 | D72: 3.1 | G72: =$C72-(G$2*$D72/100) -> 10.4 | H72: 10.3 | I72: 10.1 | J72: 9.7 | K72: 9.3 | L72: 8.9 | M72: 8.6 | N72: 8.3 | O72: 8.0 | P72: 7.9 | Q72: 7.5 | R72: 7.4 | S72: 7.3 | T72: 7.3 | U72: 7.4 | V72: 7.5 | W72: 7.8 | X72: 8.2 | Y72: 8.7 | Z72: 9.2 | AA72: 9.7 | AB72: 10.1 | AC72: 10.3 | AD72: 237.0
A73: 2000-03-10 | B73: 2000-03-10 | C73: 13.8 | D73: 8.9 | G73: 13.8 | H73: 13.5 | I73: 12.9 | J73: 11.9 | K73: 10.8 | L73: 9.6 | M73: 8.6 | N73: 7.7 | O73: 7.0 | P73: 6.5 | Q73: 5.6 | R73: 5.3 | S73: 5.0 | T73: 4.9 | U73: 5.1 | V73: 5.5 | W73: 6.3 | X73: 7.5 | Y73: 8.8 | Z73: 10.3 | AA73: 11.8 | AB73: 12.8 | AC73: 13.5 | AD73: 232.1
A74: 2000-03-11 | B74: 2000-03-11 | C74: 14 | D74: 4.6 | G74: 14.0 | H74: 13.9 | I74: 13.5 | J74: 13.0 | K74: 12.4 | L74: 11.8 | M74: 11.3 | N74: 10.9 | O74: 10.5 | P74: 10.2 | Q74: 9.8 | R74: 9.6 | S74: 9.4 | T74: 9.4 | U74: 9.5 | V74: 9.7 | W74: 10.1 | X74: 10.7 | Y74: 11.4 | Z74: 12.2 | AA74: 12.9 | AB74: 13.5 | AC74: 13.9 | AD74: 173.1
A75: 2000-03-12 | B75: 2000-03-12 | C75: 17.1 | D75: 5.5 | G75: 17.1 | H75: 16.9 | I75: 16.6 | J75: 15.9 | K75: 15.2 | L75: 14.5 | M75: 13.9 | N75: 13.4 | O75: 12.9 | P75: 12.6 | Q75: 12.0 | R75: 11.8 | S75: 11.7 | T75: 11.6 | U75: 11.7 | V75: 12.0 | W75: 12.5 | X75: 13.2 | Y75: 14.0 | Z75: 15.0 | AA75: 15.8 | AB75: 16.5 | AC75: 16.9 | AD75: 113.2
A76: 2000-03-13 | B76: 2000-03-13 | C76: 17.6 | D76: 5.8 | G76: 17.6 | H76: 17.4 | I76: 17.0 | J76: 16.4 | K76: 15.6 | L76: 14.9 | M76: 14.2 | N76: 13.7 | O76: 13.2 | P76: 12.8 | Q76: 12.3 | R76: 12.0 | S76: 11.9 | T76: 11.8 | U76: 11.9 | V76: 12.2 | W76: 12.7 | X76: 13.5 | Y76: 14.4 | Z76: 15.3 | AA76: 16.3 | AB76: 17.0 | AC76: 17.4 | AD76: 105.5
A77: 2000-03-14 | B77: 2000-03-14 | C77: 22.1 | D77: 13.1 | G77: 22.1 | H77: 21.7 | I77: 20.8 | J77: 19.3 | K77: 17.6 | L77: 15.9 | M77: 14.5 | N77: 13.2 | O77: 12.1 | P77: 11.4 | Q77: 10.0 | R77: 9.5 | S77: 9.1 | T77: 9.0 | U77: 9.3 | V77: 9.9 | W77: 11.1 | X77: 12.8 | Y77: 14.8 | Z77: 17.0 | AA77: 19.1 | AB77: 20.7 | AC77: 21.7 | AD77: 94.3
A78: 2000-03-15 | B78: 2000-03-15 | C78: 21.9 | D78: 10.3 | G78: 21.9 | H78: 21.6 | I78: 20.9 | J78: 19.7 | K78: 18.4 | L78: 17.1 | M78: 15.9 | N78: 14.9 | O78: 14.1 | P78: 13.5 | Q78: 12.4 | R78: 12.0 | S78: 11.7 | T78: 11.6 | U78: 11.8 | V78: 12.3 | W78: 13.2 | X78: 14.6 | Y78: 16.1 | Z78: 17.9 | AA78: 19.5 | AB78: 20.8 | AC78: 21.6 | AD78: 63.5
A79: 2000-03-16 | B79: 2000-03-16 | C79: 15.4 | D79: 5.8 | G79: 15.4 | H79: 15.2 | I79: 14.8 | J79: 14.2 | K79: 13.4 | L79: 12.7 | M79: 12.0 | N79: 11.5 | O79: 11.0 | P79: 10.6 | Q79: 10.1 | R79: 9.8 | S79: 9.7 | T79: 9.6 | U79: 9.7 | V79: 10.0 | W79: 10.5 | X79: 11.3 | Y79: 12.2 | Z79: 13.1 | AA79: 14.1 | AB79: 14.8 | AC79: 15.2 | AD79: 156.1
A80: 2000-03-17 | B80: 2000-03-17 | C80: 17.9 | D80: 8.1 | G80: 17.9 | H80: 17.7 | I80: 17.1 | J80: 16.2 | K80: 15.1 | L80: 14.1 | M80: 13.2 | N80: 12.4 | O80: 11.7 | P80: 11.3 | Q80: 10.4 | R80: 10.1 | S80: 9.9 | T80: 9.8 | U80: 10.0 | V80: 10.4 | W80: 11.1 | X80: 12.1 | Y80: 13.4 | Z80: 14.7 | AA80: 16.0 | AB80: 17.0 | AC80: 17.7 | AD80: 127.7
A81: 2000-03-18 | B81: 2000-03-18 | C81: 11.6 | D81: 3.1 | G81: 11.6 | H81: 11.5 | I81: 11.3 | J81: 10.9 | K81: 10.5 | L81: 10.1 | M81: 9.8 | N81: 9.5 | O81: 9.2 | P81: 9.1 | Q81: 8.7 | R81: 8.6 | S81: 8.5 | T81: 8.5 | U81: 8.6 | V81: 8.7 | W81: 9.0 | X81: 9.4 | Y81: 9.9 | Z81: 10.4 | AA81: 10.9 | AB81: 11.3 | AC81: 11.5 | AD81: 209.4
A82: 2000-03-19 | B82: 2000-03-19 | C82: 10.2 | D82: 7.1 | G82: 10.2 | H82: 10.0 | I82: 9.5 | J82: 8.7 | K82: 7.8 | L82: 6.9 | M82: 6.1 | N82: 5.4 | O82: 4.8 | P82: 4.4 | Q82: 3.7 | R82: 3.4 | S82: 3.2 | T82: 3.1 | U82: 3.2 | V82: 3.6 | W82: 4.2 | X82: 5.2 | Y82: 6.2 | Z82: 7.4 | AA82: 8.6 | AB82: 9.4 | AC82: 10.0 | AD82: 292.1
A83: 2000-03-20 | B83: 2000-03-20 | C83: 10.8 | D83: 10.4 | G83: 10.8 | H83: 10.5 | I83: 9.8 | J83: 8.6 | K83: 7.3 | L83: 5.9 | M83: 4.8 | N83: 3.7 | O83: 2.9 | P83: 2.3 | Q83: 1.2 | R83: 0.8 | S83: 0.5 | T83: 0.4 | U83: 0.6 | V83: 1.1 | W83: 2.1 | X83: 3.4 | Y83: 5.0 | Z83: 6.7 | AA83: 8.4 | AB83: 9.7 | AC83: 10.5 | AD83: 320.1
A84: 2000-03-21 | B84: 2000-03-21 | C84: 10.9 | D84: 3.4 | G84: 10.9 | H84: 10.8 | I84: 10.6 | J84: 10.2 | K84: 9.7 | L84: 9.3 | M84: 8.9 | N84: 8.6 | O84: 8.3 | P84: 8.1 | Q84: 7.8 | R84: 7.6 | S84: 7.5 | T84: 7.5 | U84: 7.6 | V84: 7.7 | W84: =$C84-(W$2*$D84/100) -> 8.0 | X84: 8.5 | Y84: 9.0 | Z84: 9.6 | AA84: 10.1 | AB84: 10.5 | AC84: 10.8 | AD84: 229.3
A85: 2000-03-22 | B85: 2000-03-22 | C85: 9.7 | D85: 3.1 | G85: 9.7 | H85: 9.6 | I85: 9.4 | J85: 9.0 | K85: 8.6 | L85: 8.2 | M85: 7.9 | N85: 7.6 | O85: 7.3 | P85: 7.2 | Q85: 6.8 | R85: 6.7 | S85: 6.6 | T85: 6.6 | U85: 6.7 | V85: 6.8 | W85: 7.1 | X85: 7.5 | Y85: 8.0 | Z85: 8.5 | AA85: 9.0 | AB85: 9.4 | AC85: 9.6 | AD85: 253.1
A86: 2000-03-23 | B86: 2000-03-23 | C86: 9.6 | D86: 7.3 | G86: 9.6 | H86: 9.4 | I86: 8.9 | J86: 8.1 | K86: 7.1 | L86: 6.2 | M86: 5.4 | N86: 4.6 | O86: 4.1 | P86: 3.6 | Q86: 2.9 | R86: 2.6 | S86: 2.4 | T86: 2.3 | U86: 2.4 | V86: 2.8 | W86: 3.5 | X86: 4.4 | Y86: 5.5 | Z86: 6.8 | AA86: 7.9 | AB86: 8.8 | AC86: 9.4 | AD86: 308.5
A87: 2000-03-24 | B87: 2000-03-24 | C87: 11.7 | D87: 8.4 | G87: 11.7 | H87: 11.4 | I87: 10.9 | J87: 9.9 | K87: 8.8 | L87: 7.8 | M87: 6.8 | N87: 6.0 | O87: 5.3 | P87: 4.8 | Q87: 4.0 | R87: 3.6 | S87: 3.4 | T87: 3.3 | U87: 3.5 | V87: 3.9 | W87: 4.6 | X87: 5.7 | Y87: 7.0 | Z87: 8.4 | AA87: 9.8 | AB87: 10.8 | AC87: 11.4 | AD87: 274.1
A88: 2000-03-25 | B88: 2000-03-25 | C88: 13.5 | D88: 4.1 | G88: 13.5 | H88: 13.4 | I88: 13.1 | J88: 12.6 | K88: 12.1 | L88: 11.6 | M88: 11.1 | N88: 10.7 | O88: 10.4 | P88: 10.1 | Q88: 9.7 | R88: 9.6 | S88: 9.4 | T88: 9.4 | U88: 9.5 | V88: 9.7 | W88: 10.1 | X88: 10.6 | Y88: 11.2 | Z88: 11.9 | AA88: 12.6 | AB88: 13.0 | AC88: 13.4 | AD88: 178.3
A89: 2000-03-26 | B89: 2000-03-26 | C89: 11.1 | D89: 4.5 | G89: 11.1 | H89: 11.0 | I89: 10.7 | J89: 10.2 | K89: 9.6 | L89: 9.0 | M89: 8.5 | N89: 8.0 | O89: 7.7 | P89: 7.4 | Q89: 7.0 | R89: 6.8 | S89: 6.6 | T89: 6.6 | U89: 6.7 | V89: 6.9 | W89: 7.3 | X89: 7.9 | Y89: 8.6 | Z89: 9.3 | AA89: 10.1 | AB89: 10.6 | AC89: 11.0 | AD89: 238.6
A90: 2000-03-27 | B90: 2000-03-27 | C90: 13.4 | D90: 8 | G90: 13.4 | H90: =$C90-(H$2*$D90/100) -> 13.2 | I90: 12.6 | J90: 11.7 | K90: 10.7 | L90: 9.6 | M90: 8.8 | N90: 8.0 | O90: 7.3 | P90: 6.8 | Q90: 6.0 | R90: 5.7 | S90: 5.5 | T90: 5.4 | U90: 5.6 | V90: 6.0 | W90: 6.7 | X90: 7.7 | Y90: 8.9 | Z90: 10.3 | AA90: 11.6 | AB90: 12.5 | AC90: 13.2 | AD90: 229.9
A91: 2000-03-28 | B91: 2000-03-28 | C91: 17.7 | D91: 6.7 | G91: =$C91-(G$2*$D91/100) -> 17.7 | H91: 17.5 | I91: 17.0 | J91: 16.3 | K91: 15.4 | L91: 14.6 | M91: 13.8 | N91: 13.1 | O91: 12.6 | P91: 12.2 | Q91: 11.5 | R91: 11.3 | S91: 11.1 | T91: 11.0 | U91: 11.1 | V91: 11.5 | W91: 12.1 | X91: 12.9 | Y91: 13.9 | Z91: 15.1 | AA91: 16.2 | AB91: 17.0 | AC91: 17.5 | AD91: 114.6
A92: 2000-03-29 | B92: 2000-03-29 | C92: 23.5 | D92: 19.3 | G92: 23.5 | H92: 22.9 | I92: 21.6 | J92: 19.4 | K92: 16.9 | L92: 14.4 | M92: 12.3 | N92: 10.4 | O92: 8.8 | P92: 7.7 | Q92: 5.7 | R92: 5.0 | S92: 4.4 | T92: 4.2 | U92: 4.6 | V92: 5.6 | W92: 7.3 | X92: 9.8 | Y92: 12.7 | Z92: 16.0 | AA92: 19.1 | AB92: 21.4 | AC92: 22.9 | AD92: 140.5
A93: 2000-03-30 | B93: 2000-03-30 | C93: 17.4 | D93: 9.1 | G93: 17.4 | H93: 17.1 | I93: 16.5 | J93: 15.5 | K93: 14.3 | L93: 13.1 | M93: 12.1 | N93: 11.2 | O93: 10.5 | P93: 9.9 | Q93: 9.0 | R93: 8.7 | S93: 8.4 | T93: 8.3 | U93: 8.5 | V93: 8.9 | W93: 9.8 | X93: 10.9 | Y93: 12.3 | Z93: 13.9 | AA93: 15.3 | AB93: 16.4 | AC93: 17.1 | AD93: 151.8
A94: 2000-03-31 | B94: 2000-03-31 | C94: 13.5 | D94: 5.7 | G94: 13.5 | H94: 13.3 | I94: 12.9 | J94: 12.3 | K94: 11.6 | L94: 10.8 | M94: 10.2 | N94: 9.6 | O94: 9.2 | P94: 8.8 | Q94: 8.3 | R94: 8.0 | S94: 7.9 | T94: 7.8 | U94: 7.9 | V94: 8.2 | W94: 8.7 | X94: 9.5 | Y94: 10.3 | Z94: 11.3 | AA94: 12.2 | AB94: 12.9 | AC94: 13.3 | AD94: 198.5 | AE94: =SUM(AD64:AD94)/24 -> 261 | AG94: Djx en mars
A95: 2000-04-01 | B95: 2000-04-01 | C95: 12.7 | D95: 3.3 | G95: 12.7 | H95: 12.6 | I95: 12.4 | J95: 12.0 | K95: 11.6 | L95: 11.1 | M95: 10.8 | N95: 10.5 | O95: 10.2 | P95: 10.0 | Q95: 9.7 | R95: 9.5 | S95: 9.4 | T95: 9.4 | U95: 9.5 | V95: 9.6 | W95: 9.9 | X95: 10.4 | Y95: 10.9 | Z95: 11.4 | AA95: 11.9 | AB95: 12.3 | AC95: 12.6 | AD95: 186.6
A96: 2000-04-02 | B96: 2000-04-02 | C96: 14.7 | D96: 3.4 | G96: 14.7 | H96: 14.6 | I96: 14.4 | J96: 14.0 | K96: 13.5 | L96: 13.1 | M96: 12.7 | N96: 12.4 | O96: 12.1 | P96: 11.9 | Q96: 11.6 | R96: 11.4 | S96: 11.3 | T96: 11.3 | U96: 11.4 | V96: 11.5 | W96: 11.8 | X96: 12.3 | Y96: 12.8 | Z96: 13.4 | AA96: 13.9 | AB96: 14.3 | AC96: 14.6 | AD96: 141.9
A97: 2000-04-03 | B97: 2000-04-03 | C97: 13.8 | D97: 7.3 | G97: 13.8 | H97: 13.6 | I97: 13.1 | J97: 12.3 | K97: 11.3 | L97: 10.4 | M97: 9.6 | N97: 8.8 | O97: 8.3 | P97: 7.8 | Q97: 7.1 | R97: 6.8 | S97: 6.6 | T97: 6.5 | U97: 6.6 | V97: 7.0 | W97: 7.7 | X97: 8.6 | Y97: 9.7 | Z97: 11.0 | AA97: 12.1 | AB97: 13.0 | AC97: 13.6 | AD97: 211.9
A98: 2000-04-04 | B98: 2000-04-04 | C98: 15.6 | D98: 10.9 | G98: 15.6 | H98: 15.3 | I98: 14.5 | J98: 13.3 | K98: 11.9 | L98: 10.5 | M98: 9.3 | N98: 8.2 | O98: 7.3 | P98: 6.7 | Q98: 5.6 | R98: 5.1 | S98: 4.8 | T98: 4.7 | U98: 4.9 | V98: 5.5 | W98: 6.4 | X98: 7.9 | Y98: 9.5 | Z98: 11.3 | AA98: 13.1 | AB98: 14.4 | AC98: 15.3 | AD98: 216.0
A99: 2000-04-05 | B99: 2000-04-05 | C99: 15.7 | D99: 10.4 | G99: 15.7 | H99: 15.4 | I99: 14.7 | J99: 13.5 | K99: 12.2 | L99: 10.8 | M99: 9.7 | N99: 8.6 | O99: 7.8 | P99: 7.2 | Q99: 6.1 | R99: 5.7 | S99: 5.4 | T99: 5.3 | U99: 5.5 | V99: 6.0 | W99: 7.0 | X99: 8.3 | Y99: 9.9 | Z99: 11.6 | AA99: 13.3 | AB99: 14.6 | AC99: 15.4 | AD99: 207.4
A100: 2000-04-06 | B100: 2000-04-06 | C100: 13.6 | D100: 6.8 | G100: 13.6 | H100: 13.4 | I100: 12.9 | J100: 12.2 | K100: 11.3 | L100: 10.4 | M100: 9.7 | N100: 9.0 | O100: 8.4 | P100: 8.0 | Q100: 7.3 | R100: 7.1 | S100: 6.9 | T100: 6.8 | U100: 6.9 | V100: 7.3 | W100: 7.9 | X100: =$C100-(X$2*$D100/100) -> 8.8 | Y100: 9.8 | Z100: 10.9 | AA100: 12.0 | AB100: 12.9 | AC100: 13.4 | AD100: 210.2
A101: 2000-04-07 | B101: 2000-04-07 | C101: 13.5 | D101: 11.1 | G101: 13.5 | H101: 13.2 | I101: 12.4 | J101: 11.2 | K101: 9.7 | L101: 8.3 | M101: 7.1 | N101: 6.0 | O101: 5.1 | P101: 4.4 | Q101: 3.3 | R101: 2.8 | S101: 2.5 | T101: 2.4 | U101: 2.6 | V101: 3.2 | W101: 4.2 | X101: 5.6 | Y101: 7.3 | Z101: 9.2 | AA101: 10.9 | AB101: 12.3 | AC101: 13.2 | AD101: 266.8
A102: 2000-04-08 | B102: 2000-04-08 | C102: 20.8 | D102: 14.4 | G102: 20.8 | H102: 20.4 | I102: 19.4 | J102: 17.8 | K102: 15.9 | L102: 14.0 | M102: 12.4 | N102: 11.0 | O102: 9.9 | P102: 9.0 | Q102: 7.6 | R102: 7.0 | S102: 6.5 | T102: 6.4 | U102: 6.7 | V102: 7.4 | W102: 8.7 | X102: 10.6 | Y102: 12.7 | Z102: 15.2 | AA102: 17.5 | AB102: 19.2 | AC102: 20.4 | AD102: 140.6
A103: 2000-04-09 | B103: 2000-04-09 | C103: 21 | D103: 10.3 | G103: 21.0 | H103: 20.7 | I103: 20.0 | J103: 18.8 | K103: 17.5 | L103: 16.2 | M103: 15.0 | N103: 14.0 | O103: 13.2 | P103: 12.6 | Q103: 11.5 | R103: 11.1 | S103: 10.8 | T103: 10.7 | U103: 10.9 | V103: 11.4 | W103: 12.3 | X103: 13.7 | Y103: 15.2 | Z103: 17.0 | AA103: 18.6 | AB103: 19.9 | AC103: 20.7 | AD103: 84.2
A104: 2000-04-10 | B104: 2000-04-10 | C104: 16.6 | D104: 6.7 | G104: 16.6 | H104: 16.4 | I104: 15.9 | J104: 15.2 | K104: 14.3 | L104: 13.5 | M104: 12.7 | N104: 12.0 | O104: 11.5 | P104: 11.1 | Q104: 10.4 | R104: 10.2 | S104: 10.0 | T104: 9.9 | U104: 10.0 | V104: 10.4 | W104: 11.0 | X104: 11.8 | Y104: 12.8 | Z104: 14.0 | AA104: 15.1 | AB104: 15.9 | AC104: 16.4 | AD104: 139.9
A105: 2000-04-11 | B105: 2000-04-11 | C105: 11.9 | D105: 3.3 | G105: 11.9 | H105: 11.8 | I105: 11.6 | J105: 11.2 | K105: 10.8 | L105: 10.3 | M105: 10.0 | N105: 9.7 | O105: 9.4 | P105: 9.2 | Q105: 8.9 | R105: 8.7 | S105: 8.6 | T105: 8.6 | U105: 8.7 | V105: 8.8 | W105: 9.1 | X105: 9.6 | Y105: 10.1 | Z105: 10.6 | AA105: 11.1 | AB105: 11.5 | AC105: 11.8 | AD105: 205.0
A106: 2000-04-12 | B106: 2000-04-12 | C106: 14.4 | D106: 7.9 | G106: 14.4 | H106: 14.2 | I106: 13.6 | J106: 12.7 | K106: 11.7 | L106: 10.7 | M106: 9.8 | N106: 9.0 | O106: 8.4 | P106: 7.9 | Q106: 7.1 | R106: 6.8 | S106: 6.6 | T106: 6.5 | U106: 6.7 | V106: 7.1 | W106: 7.8 | X106: 8.8 | Y106: 10.0 | Z106: 11.3 | AA106: 12.6 | AB106: 13.5 | AC106: 14.2 | AD106: 205.7
A107: 2000-04-13 | B107: 2000-04-13 | C107: 18.4 | D107: 12.6 | G107: 18.4 | H107: 18.0 | I107: 17.1 | J107: 15.8 | K107: 14.1 | L107: 12.5 | M107: 11.1 | N107: 9.8 | O107: 8.8 | P107: 8.1 | Q107: 6.8 | R107: 6.3 | S107: 5.9 | T107: 5.8 | U107: 6.1 | V107: 6.7 | W107: 7.8 | X107: 9.5 | Y107: 11.3 | Z107: 13.5 | AA107: 15.5 | AB107: 17.0 | AC107: 18.0 | AD107: 173.1
A108: 2000-04-14 | B108: 2000-04-14 | C108: 13.6 | D108: 6.6 | G108: 13.6 | H108: 13.4 | I108: 12.9 | J108: 12.2 | K108: 11.4 | L108: 10.5 | M108: 9.8 | N108: 9.1 | O108: 8.6 | P108: 8.2 | Q108: 7.5 | R108: 7.3 | S108: 7.1 | T108: 7.0 | U108: 7.1 | V108: 7.5 | W108: 8.1 | X108: 8.9 | Y108: 9.9 | Z108: 11.0 | AA108: 12.1 | AB108: 12.9 | AC108: 13.4 | AD108: 207.6
A109: 2000-04-15 | B109: 2000-04-15 | C109: 17 | D109: 13.5 | G109: 17.0 | H109: 16.6 | I109: 15.7 | J109: 14.2 | K109: 12.4 | L109: 10.7 | M109: 9.2 | N109: 7.8 | O109: 6.7 | P109: 5.9 | Q109: 4.6 | R109: 4.0 | S109: 3.6 | T109: 3.5 | U109: 3.8 | V109: 4.4 | W109: 5.7 | X109: 7.4 | Y109: 9.4 | Z109: 11.7 | AA109: 13.9 | AB109: 15.5 | AC109: 16.6 | AD109: 216.6
A110: 2000-04-16 | B110: 2000-04-16 | C110: 22.1 | D110: 15.2 | G110: 22.1 | H110: 21.6 | I110: 20.6 | J110: 18.9 | K110: 16.9 | L110: 15.0 | M110: 13.3 | N110: 11.8 | O110: 10.5 | P110: 9.6 | Q110: 8.1 | R110: 7.5 | S110: 7.1 | T110: 6.9 | U110: 7.2 | V110: 8.0 | W110: 9.3 | X110: 11.3 | Y110: 13.6 | Z110: 16.2 | AA110: 18.6 | AB110: 20.4 | AC110: 21.6 | AD110: 120.8
A111: 2000-04-17 | B111: 2000-04-17 | C111: 15 | D111: 5 | G111: 15.0 | H111: 14.9 | I111: 14.5 | J111: 14.0 | K111: 13.3 | L111: 12.7 | M111: 12.1 | N111: 11.6 | O111: 11.2 | P111: 10.9 | Q111: 10.4 | R111: 10.2 | S111: 10.1 | T111: 10.0 | U111: 10.1 | V111: 10.4 | W111: 10.8 | X111: 11.5 | Y111: 12.2 | Z111: 13.1 | AA111: 13.9 | AB111: 14.5 | AC111: 14.9 | AD111: 155.2
A112: 2000-04-18 | B112: 2000-04-18 | C112: 18.7 | D112: 9.4 | G112: 18.7 | H112: 18.4 | I112: 17.8 | J112: 16.7 | K112: 15.5 | L112: 14.3 | M112: 13.2 | N112: 12.3 | O112: 11.6 | P112: 11.0 | Q112: 10.1 | R112: 9.7 | S112: 9.4 | T112: 9.3 | U112: 9.5 | V112: 10.0 | W112: 10.8 | X112: 12.0 | Y112: 13.4 | Z112: 15.0 | AA112: 16.5 | AB112: 17.7 | AC112: 18.4 | AD112: 125.7
A113: 2000-04-19 | B113: 2000-04-19 | C113: 17.2 | D113: 9.6 | G113: 17.2 | H113: 16.9 | I113: 16.2 | J113: 15.2 | K113: 13.9 | L113: 12.7 | M113: 11.6 | N113: 10.7 | O113: 9.9 | P113: 9.3 | Q113: 8.4 | R113: 8.0 | S113: 7.7 | T113: 7.6 | U113: 7.8 | V113: 8.3 | W113: 9.1 | X113: 10.4 | Y113: 11.8 | Z113: 13.5 | AA113: 15.0 | AB113: 16.1 | AC113: 16.9 | AD113: 162.7
A114: 2000-04-20 | B114: 2000-04-20 | C114: 17.6 | D114: 6.2 | G114: 17.6 | H114: 17.4 | I114: 17.0 | J114: 16.3 | K114: 15.5 | L114: 14.7 | M114: 14.0 | N114: 13.4 | O114: 12.9 | P114: 12.5 | Q114: 11.9 | R114: 11.6 | S114: 11.5 | T114: 11.4 | U114: 11.5 | V114: 11.8 | W114: 12.4 | X114: 13.2 | Y114: 14.1 | Z114: 15.2 | AA114: 16.2 | AB114: 16.9 | AC114: 17.4 | AD114: 110.6
A115: 2000-04-21 | B115: 2000-04-21 | C115: 14.7 | D115: 4.8 | G115: 14.7 | H115: 14.6 | I115: 14.2 | J115: 13.7 | K115: 13.1 | L115: 12.4 | M115: 11.9 | N115: 11.4 | O115: 11.1 | P115: 10.8 | Q115: 10.3 | R115: 10.1 | S115: 9.9 | T115: 9.9 | U115: 10.0 | V115: 10.2 | W115: 10.7 | X115: 11.3 | Y115: 12.0 | Z115: 12.8 | AA115: 13.6 | AB115: 14.2 | AC115: 14.6 | AD115: 159.6
A116: 2000-04-22 | B116: 2000-04-22 | C116: 16.4 | D116: 6.1 | G116: 16.4 | H116: 16.2 | I116: 15.8 | J116: 15.1 | K116: 14.3 | L116: 13.5 | M116: 12.9 | N116: 12.3 | O116: 11.8 | P116: 11.4 | Q116: 10.8 | R116: 10.5 | S116: 10.4 | T116: 10.3 | U116: 10.4 | V116: 10.7 | W116: =$C116-(W$2*$D116/100) -> 11.3 | X116: 12.1 | Y116: 13.0 | Z116: 14.0 | AA116: 15.0 | AB116: 15.7 | AC116: 16.2 | AD116: 136.9
A117: 2000-04-23 | B117: 2000-04-23 | C117: 16.7 | D117: 4.4 | G117: 16.7 | H117: 16.6 | I117: 16.3 | J117: 15.8 | K117: 15.2 | L117: 14.6 | M117: 14.1 | N117: 13.7 | O117: 13.4 | P117: 13.1 | Q117: 12.7 | R117: 12.5 | S117: 12.3 | T117: 12.3 | U117: 12.4 | V117: 12.6 | W117: 13.0 | X117: 13.6 | Y117: 14.2 | Z117: 15.0 | AA117: 15.7 | AB117: 16.2 | AC117: 16.6 | AD117: 108.5
A118: 2000-04-24 | B118: 2000-04-24 | C118: 18.3 | D118: 10.3 | G118: 18.3 | H118: 18.0 | I118: 17.3 | J118: 16.1 | K118: 14.8 | L118: 13.5 | M118: 12.3 | N118: 11.3 | O118: 10.5 | P118: 9.9 | Q118: 8.8 | R118: 8.4 | S118: 8.1 | T118: 8.0 | U118: 8.2 | V118: 8.7 | W118: 9.6 | X118: 11.0 | Y118: 12.5 | Z118: 14.3 | AA118: 15.9 | AB118: 17.2 | AC118: 18.0 | AD118: 146.3
A119: 2000-04-25 | B119: 2000-04-25 | C119: 23.8 | D119: 16.2 | G119: 23.8 | H119: 23.3 | I119: 22.2 | J119: 20.4 | K119: 18.3 | L119: 16.2 | M119: 14.4 | N119: 12.8 | O119: 11.5 | P119: 10.5 | Q119: 8.9 | R119: 8.2 | S119: 7.8 | T119: 7.6 | U119: 7.9 | V119: 8.7 | W119: 10.2 | X119: 12.3 | Y119: 14.7 | Z119: 17.5 | AA119: 20.1 | AB119: 22.0 | AC119: 23.3 | AD119: 94.4
A120: 2000-04-26 | B120: 2000-04-26 | C120: 27 | D120: 17.5 | G120: 27.0 | H120: 26.5 | I120: 25.3 | J120: 23.3 | K120: 21.1 | L120: 18.8 | M120: 16.9 | N120: 15.1 | O120: 13.7 | P120: 12.7 | Q120: 10.9 | R120: 10.2 | S120: 9.7 | T120: 9.5 | U120: 9.9 | V120: 10.7 | W120: 12.3 | X120: 14.6 | Y120: 17.2 | Z120: 20.2 | AA120: 23.0 | AB120: 25.1 | AC120: 26.5 | AD120: 37.2
A121: 2000-04-27 | B121: 2000-04-27 | C121: 22.4 | D121: 10.3 | G121: 22.4 | H121: 22.1 | I121: 21.4 | J121: 20.2 | K121: 18.9 | L121: 17.6 | M121: 16.4 | N121: 15.4 | O121: 14.6 | P121: 14.0 | Q121: 12.9 | R121: 12.5 | S121: 12.2 | T121: 12.1 | U121: 12.3 | V121: 12.8 | W121: 13.7 | X121: 15.1 | Y121: 16.6 | Z121: 18.4 | AA121: 20.0 | AB121: 21.3 | AC121: 22.1 | AD121: 52.0
A122: 2000-04-28 | B122: 2000-04-28 | C122: 13.7 | D122: 3.3 | G122: 13.7 | H122: 13.6 | I122: 13.4 | J122: 13.0 | K122: 12.6 | L122: 12.1 | M122: 11.8 | N122: 11.5 | O122: 11.2 | P122: 11.0 | Q122: 10.7 | R122: 10.5 | S122: 10.4 | T122: 10.4 | U122: 10.5 | V122: 10.6 | W122: 10.9 | X122: 11.4 | Y122: 11.9 | Z122: 12.4 | AA122: 12.9 | AB122: 13.3 | AC122: 13.6 | AD122: 163.6
A123: 2000-04-29 | B123: 2000-04-29 | C123: 19.4 | D123: 12.8 | G123: =$C123-(G$2*$D123/100) -> 19.4 | H123: 19.0 | I123: 18.1 | J123: 16.7 | K123: 15.0 | L123: 13.4 | M123: 12.0 | N123: 10.7 | O123: 9.7 | P123: 8.9 | Q123: 7.6 | R123: 7.1 | S123: 6.7 | T123: 6.6 | U123: 6.9 | V123: 7.5 | W123: 8.6 | X123: 10.3 | Y123: 12.2 | Z123: 14.4 | AA123: 16.5 | AB123: 18.0 | AC123: 19.0 | AD123: 152.6
A124: 2000-04-30 | B124: 2000-04-30 | C124: 15.8 | D124: 8.3 | G124: 15.8 | H124: 15.6 | I124: 15.0 | J124: 14.1 | K124: 13.0 | L124: 11.9 | M124: 11.0 | N124: 10.2 | O124: 9.5 | P124: 9.0 | Q124: 8.2 | R124: 7.8 | S124: 7.6 | T124: 7.5 | U124: 7.7 | V124: 8.1 | W124: 8.8 | X124: 9.9 | Y124: 11.2 | Z124: 12.6 | AA124: 13.9 | AB124: 14.9 | AC124: 15.6 | AD124: 178.5 | AE124: =SUM(AD95:AD124)/24 -> 197 | AG124: Djx en avril
A125: 2000-10-01 | B125: 2000-10-01 | C125: 18.3 | D125: 4.1 | G125: 18.3 | H125: 18.2 | I125: 17.9 | J125: 17.4 | K125: 16.9 | L125: 16.4 | M125: 15.9 | N125: 15.5 | O125: 15.2 | P125: 14.9 | Q125: 14.5 | R125: 14.4 | S125: 14.2 | T125: 14.2 | U125: 14.3 | V125: 14.5 | W125: 14.9 | X125: 15.4 | Y125: 16.0 | Z125: 16.7 | AA125: 17.4 | AB125: 17.8 | AC125: 18.2 | AD125: 67.9
A126: 2000-10-02 | B126: 2000-10-02 | C126: 16.7 | D126: 3.3 | G126: 16.7 | H126: 16.6 | I126: 16.4 | J126: 16.0 | K126: 15.6 | L126: 15.1 | M126: 14.8 | N126: 14.5 | O126: 14.2 | P126: 14.0 | Q126: 13.7 | R126: 13.5 | S126: 13.4 | T126: 13.4 | U126: 13.5 | V126: 13.6 | W126: 13.9 | X126: 14.4 | Y126: 14.9 | Z126: 15.4 | AA126: 15.9 | AB126: 16.3 | AC126: 16.6 | AD126: 94.6
A127: 2000-10-03 | B127: 2000-10-03 | C127: 16 | D127: 5.9 | G127: 16.0 | H127: 15.8 | I127: 15.4 | J127: 14.8 | K127: 14.0 | L127: 13.2 | M127: 12.6 | N127: 12.0 | O127: 11.5 | P127: 11.2 | Q127: 10.6 | R127: 10.3 | S127: 10.2 | T127: 10.1 | U127: 10.2 | V127: 10.5 | W127: 11.0 | X127: 11.8 | Y127: 12.7 | Z127: 13.7 | AA127: 14.6 | AB127: 15.4 | AC127: 15.8 | AD127: 143.6
A128: 2000-10-04 | B128: 2000-10-04 | C128: 16.4 | D128: 9.4 | G128: 16.4 | H128: 16.1 | I128: 15.5 | J128: 14.4 | K128: 13.2 | L128: 12.0 | M128: 10.9 | N128: 10.0 | O128: 9.3 | P128: 8.7 | Q128: 7.8 | R128: 7.4 | S128: 7.1 | T128: 7.0 | U128: 7.2 | V128: 7.7 | W128: 8.5 | X128: 9.7 | Y128: 11.1 | Z128: 12.7 | AA128: 14.2 | AB128: 15.4 | AC128: 16.1 | AD128: 178.6
A129: 2000-10-05 | B129: 2000-10-05 | C129: 23.2 | D129: 15.3 | G129: 23.2 | H129: 22.7 | I129: 21.7 | J129: 20.0 | K129: 18.0 | L129: 16.0 | M129: 14.3 | N129: 12.8 | O129: 11.6 | P129: 10.7 | Q129: 9.1 | R129: 8.5 | S129: 8.1 | T129: 7.9 | U129: 8.2 | V129: 9.0 | W129: 10.3 | X129: 12.3 | Y129: 14.6 | Z129: 17.2 | AA129: 19.7 | AB129: 21.5 | AC129: 22.7 | AD129: 96.8
A130: 2000-10-06 | B130: 2000-10-06 | C130: 22.8 | D130: 13.7 | G130: 22.8 | H130: 22.4 | I130: 21.4 | J130: 19.9 | K130: 18.1 | L130: 16.4 | M130: 14.9 | N130: 13.5 | O130: 12.4 | P130: 11.6 | Q130: 10.2 | R130: 9.6 | S130: 9.2 | T130: 9.1 | U130: 9.4 | V130: 10.1 | W130: 11.3 | X130: 13.1 | Y130: 15.1 | Z130: 17.5 | AA130: 19.6 | AB130: 21.3 | AC130: 22.4 | AD130: 85.8
A131: 2000-10-07 | B131: 2000-10-07 | C131: 21.1 | D131: 8.2 | G131: 21.1 | H131: 20.9 | I131: 20.3 | J131: 19.4 | K131: 18.3 | L131: 17.2 | M131: 16.3 | N131: 15.5 | O131: 14.9 | P131: 14.4 | Q131: 13.6 | R131: 13.2 | S131: 13.0 | T131: 12.9 | U131: 13.1 | V131: 13.5 | W131: 14.2 | X131: 15.3 | Y131: 16.5 | Z131: 17.9 | AA131: 19.2 | AB131: 20.2 | AC131: 20.9 | AD131: 55.3
A132: 2000-10-08 | B132: 2000-10-08 | C132: 16.4 | D132: 4.5 | G132: 16.4 | H132: 16.3 | I132: 16.0 | J132: 15.5 | K132: 14.9 | L132: 14.3 | M132: 13.8 | N132: 13.3 | O132: 13.0 | P132: 12.7 | Q132: 12.3 | R132: 12.1 | S132: 11.9 | T132: 11.9 | U132: 12.0 | V132: 12.2 | W132: =$C132-(W$2*$D132/100) -> 12.6 | X132: 13.2 | Y132: 13.9 | Z132: 14.6 | AA132: 15.4 | AB132: 15.9 | AC132: 16.3 | AD132: 116.7
A133: 2000-10-09 | B133: =A133 -> 2000-10-09 | C133: 17.8 | D133: 8.8 | G133: 17.8 | H133: 17.5 | I133: 16.9 | J133: 16.0 | K133: 14.8 | L133: 13.7 | M133: 12.7 | N133: 11.8 | O133: 11.1 | P133: 10.6 | Q133: 9.7 | R133: 9.4 | S133: 9.1 | T133: 9.0 | U133: 9.2 | V133: 9.6 | W133: 10.4 | X133: 11.6 | Y133: 12.9 | Z133: 14.4 | AA133: 15.8 | AB133: 16.8 | AC133: 17.5 | AD133: =(AE$4*23)-SUM($G133:$AC133) -> 138.8
A134: 2000-10-10 | B134: 2000-10-10 | C134: 22.9 | D134: 15.7 | G134: 22.9 | H134: 22.4 | I134: 21.3 | J134: 19.6 | K134: 17.6 | L134: 15.5 | M134: 13.8 | N134: 12.2 | O134: 11.0 | P134: 10.0 | Q134: 8.5 | R134: 7.8 | S134: 7.4 | T134: 7.2 | U134: 7.5 | V134: 8.3 | W134: 9.7 | X134: 11.8 | Y134: 14.1 | Z134: 16.8 | AA134: 19.3 | AB134: 21.2 | AC134: 22.4 | AD134: 108.7
A135: 2000-10-11 | B135: 2000-10-11 | C135: 25.8 | D135: 15.1 | G135: 25.8 | H135: 25.3 | I135: 24.3 | J135: 22.6 | K135: 20.7 | L135: 18.7 | M135: 17.0 | N135: 15.5 | O135: 14.3 | P135: 13.4 | Q135: 11.9 | R135: 11.3 | S135: 10.9 | T135: 10.7 | U135: 11.0 | V135: 11.8 | W135: 13.1 | X135: 15.1 | Y135: 17.3 | Z135: 19.9 | AA135: 22.3 | AB135: 24.1 | AC135: 25.3 | AD135: 34.5
A136: 2000-10-12 | B136: 2000-10-12 | C136: 25.7 | D136: 9.4 | G136: 25.7 | H136: 25.4 | I136: 24.8 | J136: 23.7 | K136: 22.5 | L136: 21.3 | M136: 20.2 | N136: 19.3 | O136: 18.6 | P136: 18.0 | Q136: 17.1 | R136: 16.7 | S136: 16.4 | T136: 16.3 | U136: 16.5 | V136: 17.0 | W136: 17.8 | X136: 19.0 | Y136: 20.4 | Z136: 22.0 | AA136: 23.5 | AB136: 24.7 | AC136: 25.4 | AD136: -35.3
A137: 2000-10-13 | B137: 2000-10-13 | C137: 23.3 | D137: 7.7 | G137: 23.3 | H137: 23.1 | I137: 22.5 | J137: 21.7 | K137: 20.7 | L137: 19.7 | M137: 18.8 | N137: 18.1 | O137: 17.4 | P137: 17.0 | Q137: 16.2 | R137: 15.9 | S137: 15.7 | T137: 15.6 | U137: 15.8 | V137: 16.1 | W137: 16.8 | X137: 17.8 | Y137: 19.0 | Z137: 20.3 | AA137: 21.5 | AB137: 22.5 | AC137: 23.1 | AD137: -1.6
A138: 2000-10-14 | B138: 2000-10-14 | C138: 18.9 | D138: 2.2 | G138: 18.9 | H138: 18.8 | I138: 18.7 | J138: 18.4 | K138: 18.2 | L138: 17.9 | M138: 17.6 | N138: 17.4 | O138: 17.2 | P138: 17.1 | Q138: 16.9 | R138: 16.8 | S138: 16.7 | T138: 16.7 | U138: 16.7 | V138: 16.9 | W138: 17.1 | X138: 17.3 | Y138: 17.7 | Z138: 18.0 | AA138: 18.4 | AB138: 18.7 | AC138: 18.8 | AD138: 30.1
A139: 2000-10-15 | B139: 2000-10-15 | C139: 21.9 | D139: 5.9 | G139: 21.9 | H139: 21.7 | I139: 21.3 | J139: 20.7 | K139: 19.9 | L139: 19.1 | M139: 18.5 | N139: 17.9 | O139: 17.4 | P139: 17.1 | Q139: 16.5 | R139: 16.2 | S139: 16.1 | T139: 16.0 | U139: 16.1 | V139: 16.4 | W139: 16.9 | X139: 17.7 | Y139: 18.6 | Z139: 19.6 | AA139: 20.5 | AB139: 21.3 | AC139: 21.7 | AD139: 7.9
A140: 2000-10-16 | B140: 2000-10-16 | C140: 21 | D140: 6.5 | G140: 21.0 | H140: 20.8 | I140: 20.4 | J140: 19.6 | K140: 18.8 | L140: 17.9 | M140: 17.2 | N140: 16.6 | O140: 16.1 | P140: 15.7 | Q140: 15.0 | R140: 14.8 | S140: 14.6 | T140: 14.5 | U140: 14.6 | V140: 15.0 | W140: 15.5 | X140: 16.4 | Y140: 17.4 | Z140: 18.5 | AA140: 19.5 | AB140: 20.3 | AC140: 20.8 | AD140: 36.2
A141: 2000-10-17 | B141: 2000-10-17 | C141: 19.8 | D141: 7.3 | G141: 19.8 | H141: =$C141-(H$2*$D141/100) -> 19.6 | I141: 19.1 | J141: 18.3 | K141: 17.3 | L141: 16.4 | M141: 15.6 | N141: 14.8 | O141: 14.3 | P141: 13.8 | Q141: 13.1 | R141: 12.8 | S141: 12.6 | T141: 12.5 | U141: 12.6 | V141: 13.0 | W141: 13.7 | X141: 14.6 | Y141: 15.7 | Z141: 17.0 | AA141: 18.1 | AB141: 19.0 | AC141: 19.6 | AD141: 73.9
A142: 2000-10-18 | B142: 2000-10-18 | C142: 19.5 | D142: 9.4 | G142: =$C142-(G$2*$D142/100) -> 19.5 | H142: 19.2 | I142: 18.6 | J142: 17.5 | K142: 16.3 | L142: 15.1 | M142: 14.0 | N142: 13.1 | O142: 12.4 | P142: 11.8 | Q142: 10.9 | R142: 10.5 | S142: 10.2 | T142: 10.1 | U142: 10.3 | V142: 10.8 | W142: 11.6 | X142: 12.8 | Y142: 14.2 | Z142: 15.8 | AA142: 17.3 | AB142: 18.5 | AC142: 19.2 | AD142: 107.3
A143: 2000-10-19 | B143: 2000-10-19 | C143: 22.8 | D143: 16.3 | G143: 22.8 | H143: 22.3 | I143: 21.2 | J143: 19.4 | K143: 17.3 | L143: 15.1 | M143: 13.3 | N143: 11.7 | O143: 10.4 | P143: 9.4 | Q143: 7.8 | R143: 7.2 | S143: 6.7 | T143: 6.5 | U143: 6.8 | V143: 7.6 | W143: 9.1 | X143: 11.2 | Y143: 13.7 | Z143: 16.4 | AA143: 19.1 | AB143: 21.0 | AC143: 22.3 | AD143: 118.6
A144: 2000-10-20 | B144: 2000-10-20 | C144: 25.3 | D144: 11.7 | G144: 25.3 | H144: 24.9 | I144: 24.1 | J144: 22.8 | K144: 21.3 | L144: 19.8 | M144: 18.5 | N144: 17.3 | O144: 16.4 | P144: 15.7 | Q144: 14.5 | R144: 14.1 | S144: 13.7 | T144: 13.6 | U144: 13.8 | V144: 14.4 | W144: 15.5 | X144: 17.0 | Y144: 18.7 | Z144: 20.7 | AA144: 22.6 | AB144: 24.0 | AC144: 24.9 | AD144: 3.0
A145: 2000-10-21 | B145: 2000-10-21 | C145: 18.1 | D145: 6.4 | G145: 18.1 | H145: 17.9 | I145: 17.5 | J145: 16.8 | K145: 15.9 | L145: 15.1 | M145: 14.4 | N145: 13.7 | O145: 13.2 | P145: 12.9 | Q145: 12.2 | R145: 12.0 | S145: 11.8 | T145: 11.7 | U145: 11.8 | V145: 12.1 | W145: 12.7 | X145: 13.6 | Y145: 14.5 | Z145: 15.6 | AA145: 16.6 | AB145: 17.4 | AC145: 17.9 | AD145: 101.6
A146: 2000-10-22 | B146: 2000-10-22 | C146: 13.4 | D146: 4 | G146: 13.4 | H146: 13.3 | I146: 13.0 | J146: 12.6 | K146: 12.0 | L146: 11.5 | M146: 11.1 | N146: 10.7 | O146: 10.4 | P146: 10.1 | Q146: 9.7 | R146: 9.6 | S146: 9.4 | T146: 9.4 | U146: 9.5 | V146: 9.7 | W146: 10.0 | X146: 10.6 | Y146: 11.2 | Z146: 11.8 | AA146: 12.5 | AB146: 13.0 | AC146: 13.3 | AD146: 179.4
A147: 2000-10-23 | B147: 2000-10-23 | C147: 14.9 | D147: 12 | G147: 14.9 | H147: 14.5 | I147: 13.7 | J147: 12.4 | K147: 10.8 | L147: 9.3 | M147: 7.9 | N147: 6.7 | O147: 5.8 | P147: 5.1 | Q147: 3.9 | R147: 3.4 | S147: 3.0 | T147: 2.9 | U147: 3.1 | V147: 3.7 | W147: 4.8 | X147: 6.4 | Y147: 8.2 | Z147: 10.2 | AA147: 12.1 | AB147: 13.6 | AC147: 14.5 | AD147: 246.0
A148: 2000-10-24 | B148: 2000-10-24 | C148: 18.4 | D148: 14.7 | G148: 18.4 | H148: 18.0 | I148: 16.9 | J148: 15.3 | K148: 13.4 | L148: 11.5 | M148: 9.9 | N148: 8.4 | O148: 7.2 | P148: 6.3 | Q148: 4.9 | R148: 4.3 | S148: 3.8 | T148: 3.7 | U148: 4.0 | V148: 4.7 | W148: 6.1 | X148: =$C148-(X$2*$D148/100) -> 8.0 | Y148: 10.2 | Z148: 12.7 | AA148: 15.0 | AB148: 16.8 | AC148: 18.0 | AD148: 199.6
A149: 2000-10-25 | B149: 2000-10-25 | C149: 16.5 | D149: 9.9 | G149: 16.5 | H149: 16.2 | I149: 15.5 | J149: 14.4 | K149: 13.1 | L149: 11.8 | M149: 10.8 | N149: 9.8 | O149: 9.0 | P149: 8.4 | Q149: 7.4 | R149: 7.0 | S149: 6.7 | T149: 6.6 | U149: 6.8 | V149: 7.3 | W149: 8.2 | X149: 9.5 | Y149: 11.0 | Z149: 12.6 | AA149: 14.2 | AB149: 15.4 | AC149: 16.2 | AD149: 182.6
A150: 2000-10-26 | B150: 2000-10-26 | C150: 19.8 | D150: 14 | G150: 19.8 | H150: 19.4 | I150: 18.4 | J150: 16.9 | K150: 15.0 | L150: 13.2 | M150: 11.7 | N150: 10.3 | O150: 9.2 | P150: 8.3 | Q150: 6.9 | R150: 6.4 | S150: 5.9 | T150: 5.8 | U150: 6.1 | V150: 6.8 | W150: 8.0 | X150: 9.9 | Y150: 12.0 | Z150: 14.3 | AA150: 16.6 | AB150: 18.3 | AC150: 19.4 | AD150: 158.6
A151: 2000-10-27 | B151: 2000-10-27 | C151: 17.8 | D151: 9.6 | G151: 17.8 | H151: 17.5 | I151: 16.8 | J151: 15.8 | K151: 14.5 | L151: 13.3 | M151: 12.2 | N151: 11.3 | O151: 10.5 | P151: 9.9 | Q151: 9.0 | R151: 8.6 | S151: 8.3 | T151: 8.2 | U151: 8.4 | V151: 8.9 | W151: 9.7 | X151: 11.0 | Y151: 12.4 | Z151: 14.1 | AA151: 15.6 | AB151: 16.7 | AC151: 17.5 | AD151: 148.9
A152: 2000-10-28 | B152: 2000-10-28 | C152: 10.3 | D152: 3.3 | G152: 10.3 | H152: 10.2 | I152: 10.0 | J152: 9.6 | K152: 9.2 | L152: 8.7 | M152: 8.4 | N152: 8.1 | O152: 7.8 | P152: 7.6 | Q152: 7.3 | R152: 7.1 | S152: 7.0 | T152: 7.0 | U152: 7.1 | V152: 7.2 | W152: 7.5 | X152: 8.0 | Y152: 8.5 | Z152: 9.0 | AA152: 9.5 | AB152: 9.9 | AC152: 10.2 | AD152: 241.8
A153: 2000-10-29 | B153: 2000-10-29 | C153: 10.2 | D153: 4.8 | G153: 10.2 | H153: 10.1 | I153: 9.7 | J153: 9.2 | K153: 8.6 | L153: 7.9 | M153: 7.4 | N153: 6.9 | O153: 6.6 | P153: 6.3 | Q153: 5.8 | R153: 5.6 | S153: 5.4 | T153: 5.4 | U153: 5.5 | V153: 5.7 | W153: 6.2 | X153: 6.8 | Y153: 7.5 | Z153: 8.3 | AA153: 9.1 | AB153: 9.7 | AC153: 10.1 | AD153: 263.1
A154: 2000-10-30 | B154: 2000-10-30 | C154: 14.2 | D154: 8.1 | G154: 14.2 | H154: 14.0 | I154: 13.4 | J154: 12.5 | K154: 11.4 | L154: 10.4 | M154: 9.5 | N154: 8.7 | O154: 8.0 | P154: 7.6 | Q154: 6.7 | R154: 6.4 | S154: 6.2 | T154: 6.1 | U154: 6.3 | V154: 6.7 | W154: 7.4 | X154: 8.4 | Y154: 9.7 | Z154: 11.0 | AA154: 12.3 | AB154: 13.3 | AC154: 14.0 | AD154: 212.8
A155: 2000-10-31 | B155: 2000-10-31 | C155: 12.1 | D155: 4.5 | G155: 12.1 | H155: 12.0 | I155: 11.7 | J155: 11.2 | K155: 10.6 | L155: 10.0 | M155: 9.5 | N155: 9.0 | O155: 8.7 | P155: 8.4 | Q155: 8.0 | R155: 7.8 | S155: 7.6 | T155: 7.6 | U155: 7.7 | V155: 7.9 | W155: 8.3 | X155: 8.9 | Y155: 9.6 | Z155: 10.3 | AA155: 11.1 | AB155: 11.6 | AC155: 12.0 | AD155: 215.6 | AE155: =SUM(AD125:AD155)/24 -> 150 | AG155: Djx en octobre
A156: 2000-11-01 | B156: 2000-11-01 | C156: 15.7 | D156: 6.7 | G156: 15.7 | H156: 15.5 | I156: 15.0 | J156: 14.3 | K156: 13.4 | L156: 12.6 | M156: 11.8 | N156: 11.1 | O156: 10.6 | P156: 10.2 | Q156: 9.5 | R156: 9.3 | S156: 9.1 | T156: 9.0 | U156: 9.1 | V156: 9.5 | W156: 10.1 | X156: 10.9 | Y156: 11.9 | Z156: 13.1 | AA156: 14.2 | AB156: 15.0 | AC156: 15.5 | AD156: 160.6
A157: 2000-11-02 | B157: 2000-11-02 | C157: 10.7 | D157: 2.8 | G157: 10.7 | H157: 10.6 | I157: 10.4 | J157: 10.1 | K157: 9.7 | L157: 9.4 | M157: 9.1 | N157: 8.8 | O157: 8.6 | P157: 8.4 | Q157: 8.1 | R157: 8.0 | S157: 7.9 | T157: 7.9 | U157: 8.0 | V157: 8.1 | W157: 8.3 | X157: 8.7 | Y157: 9.1 | Z157: 9.6 | AA157: 10.1 | AB157: 10.4 | AC157: 10.6 | AD157: 226.3
A158: 2000-11-03 | B158: 2000-11-03 | C158: 12.1 | D158: 3.5 | G158: 12.1 | H158: 12.0 | I158: 11.8 | J158: 11.4 | K158: 10.9 | L158: 10.5 | M158: 10.1 | N158: 9.7 | O158: 9.4 | P158: 9.2 | Q158: 8.9 | R158: 8.7 | S158: 8.6 | T158: 8.6 | U158: 8.7 | V158: 8.8 | W158: 9.2 | X158: 9.6 | Y158: 10.1 | Z158: 10.7 | AA158: 11.3 | AB158: 11.7 | AC158: 12.0 | AD158: 202.9
A159: 2000-11-04 | B159: 2000-11-04 | C159: 15.9 | D159: 9.7 | G159: 15.9 | H159: 15.6 | I159: 14.9 | J159: 13.9 | K159: 12.6 | L159: 11.3 | M159: 10.3 | N159: 9.3 | O159: 8.5 | P159: 7.9 | Q159: 7.0 | R159: 6.6 | S159: 6.3 | T159: 6.2 | U159: 6.4 | V159: 6.9 | W159: 7.8 | X159: 9.0 | Y159: 10.5 | Z159: 12.1 | AA159: 13.7 | AB159: 14.8 | AC159: 15.6 | AD159: 193.9
A160: 2000-11-05 | B160: 2000-11-05 | C160: 14.4 | D160: 6.3 | G160: 14.4 | H160: 14.2 | I160: 13.8 | J160: 13.1 | K160: 12.3 | L160: 11.4 | M160: 10.7 | N160: 10.1 | O160: 9.6 | P160: 9.2 | Q160: 8.6 | R160: 8.4 | S160: 8.2 | T160: 8.1 | U160: 8.2 | V160: 8.5 | W160: 9.1 | X160: 9.9 | Y160: 10.9 | Z160: 11.9 | AA160: 13.0 | AB160: 13.7 | AC160: 14.2 | AD160: 185.4
A161: 2000-11-06 | B161: 2000-11-06 | C161: 15 | D161: 3.5 | G161: 15.0 | H161: 14.9 | I161: 14.7 | J161: 14.3 | K161: 13.8 | L161: 13.4 | M161: 13.0 | N161: 12.6 | O161: 12.3 | P161: 12.1 | Q161: 11.8 | R161: 11.6 | S161: 11.5 | T161: 11.5 | U161: 11.6 | V161: 11.7 | W161: 12.1 | X161: 12.5 | Y161: 13.0 | Z161: 13.6 | AA161: 14.2 | AB161: 14.6 | AC161: 14.9 | AD161: 136.2
A162: 2000-11-07 | B162: 2000-11-07 | C162: 13.4 | D162: 4.2 | G162: 13.4 | H162: 13.3 | I162: 13.0 | J162: 12.5 | K162: 12.0 | L162: 11.4 | M162: 11.0 | N162: 10.5 | O162: 10.2 | P162: 10.0 | Q162: 9.5 | R162: 9.4 | S162: 9.2 | T162: 9.2 | U162: 9.3 | V162: 9.5 | W162: 9.9 | X162: 10.4 | Y162: 11.0 | Z162: 11.8 | AA162: 12.4 | AB162: 12.9 | AC162: 13.3 | AD162: 181.9
A163: 2000-11-08 | B163: 2000-11-08 | C163: 17.6 | D163: 10.5 | G163: 17.6 | H163: 17.3 | I163: 16.6 | J163: 15.4 | K163: 14.0 | L163: 12.7 | M163: 11.5 | N163: 10.5 | O163: 9.6 | P163: 9.0 | Q163: 7.9 | R163: 7.5 | S163: 7.2 | T163: 7.1 | U163: 7.3 | V163: 7.8 | W163: 8.8 | X163: 10.1 | Y163: 11.7 | Z163: 13.5 | AA163: 15.2 | AB163: 16.4 | AC163: 17.3 | AD163: 164.9
A164: 2000-11-09 | B164: 2000-11-09 | C164: 18.5 | D164: 7.6 | G164: 18.5 | H164: 18.3 | I164: 17.7 | J164: 16.9 | K164: 15.9 | L164: 14.9 | M164: 14.1 | N164: 13.3 | O164: 12.7 | P164: 12.3 | Q164: 11.5 | R164: 11.2 | S164: 11.0 | T164: 10.9 | U164: 11.1 | V164: 11.4 | W164: =$C164-(W$2*$D164/100) -> 12.1 | X164: 13.1 | Y164: 14.2 | Z164: 15.5 | AA164: 16.8 | AB164: 17.7 | AC164: 18.3 | AD164: 107.6
A165: 2000-11-10 | B165: 2000-11-10 | C165: 20.5 | D165: 6.6 | G165: 20.5 | H165: 20.3 | I165: 19.8 | J165: 19.1 | K165: 18.3 | L165: 17.4 | M165: 16.7 | N165: 16.0 | O165: 15.5 | P165: 15.1 | Q165: 14.4 | R165: 14.2 | S165: 14.0 | T165: 13.9 | U165: 14.0 | V165: 14.4 | W165: 15.0 | X165: 15.8 | Y165: 16.8 | Z165: 17.9 | AA165: 19.0 | AB165: 19.8 | AC165: 20.3 | AD165: 48.9
A166: 2000-11-11 | B166: 2000-11-11 | C166: 13 | D166: 2.5 | G166: 13.0 | H166: 12.9 | I166: 12.8 | J166: 12.5 | K166: 12.2 | L166: 11.8 | M166: 11.6 | N166: 11.3 | O166: 11.1 | P166: 11.0 | Q166: 10.7 | R166: 10.6 | S166: 10.5 | T166: 10.5 | U166: 10.6 | V166: 10.7 | W166: 10.9 | X166: 11.2 | Y166: 11.6 | Z166: 12.0 | AA166: 12.4 | AB166: 12.7 | AC166: 12.9 | AD166: 169.6
A167: 2000-11-12 | B167: 2000-11-12 | C167: 11.5 | D167: 2.2 | G167: 11.5 | H167: 11.4 | I167: 11.3 | J167: 11.0 | K167: 10.8 | L167: 10.5 | M167: 10.2 | N167: 10.0 | O167: 9.8 | P167: 9.7 | Q167: 9.5 | R167: 9.4 | S167: 9.3 | T167: 9.3 | U167: 9.3 | V167: 9.5 | W167: 9.7 | X167: 9.9 | Y167: 10.3 | Z167: 10.6 | AA167: 11.0 | AB167: 11.3 | AC167: 11.4 | AD167: 200.3
A168: 2000-11-13 | B168: 2000-11-13 | C168: 11.9 | D168: 5.4 | G168: 11.9 | H168: 11.7 | I168: 11.4 | J168: 10.8 | K168: 10.1 | L168: 9.4 | M168: 8.8 | N168: 8.2 | O168: 7.8 | P168: 7.5 | Q168: 6.9 | R168: 6.7 | S168: 6.6 | T168: 6.5 | U168: 6.6 | V168: 6.9 | W168: 7.4 | X168: 8.1 | Y168: 8.9 | Z168: 9.8 | AA168: 10.7 | AB168: 11.3 | AC168: 11.7 | AD168: 231.6
A169: 2000-11-14 | B169: 2000-11-14 | C169: 12.7 | D169: 8.9 | G169: 12.7 | H169: 12.4 | I169: 11.8 | J169: 10.8 | K169: 9.7 | L169: 8.5 | M169: 7.5 | N169: 6.6 | O169: 5.9 | P169: 5.4 | Q169: 4.5 | R169: 4.2 | S169: 3.9 | T169: 3.8 | U169: 4.0 | V169: 4.4 | W169: 5.2 | X169: 6.4 | Y169: 7.7 | Z169: 9.2 | AA169: 10.7 | AB169: 11.7 | AC169: 12.4 | AD169: 257.4
A170: 2000-11-15 | B170: 2000-11-15 | C170: 14.2 | D170: 6.2 | G170: 14.2 | H170: 14.0 | I170: 13.6 | J170: 12.9 | K170: 12.1 | L170: 11.3 | M170: 10.6 | N170: 10.0 | O170: 9.5 | P170: 9.1 | Q170: 8.5 | R170: 8.2 | S170: 8.1 | T170: 8.0 | U170: 8.1 | V170: 8.4 | W170: 9.0 | X170: 9.8 | Y170: 10.7 | Z170: 11.8 | AA170: 12.8 | AB170: 13.5 | AC170: 14.0 | AD170: 188.8
A171: 2000-11-16 | B171: 2000-11-16 | C171: 10.7 | D171: 1.2 | G171: 10.7 | H171: 10.7 | I171: 10.6 | J171: 10.4 | K171: 10.3 | L171: 10.1 | M171: 10.0 | N171: 9.9 | O171: 9.8 | P171: 9.7 | Q171: 9.6 | R171: 9.5 | S171: 9.5 | T171: 9.5 | U171: 9.5 | V171: 9.6 | W171: 9.7 | X171: 9.8 | Y171: 10.0 | Z171: 10.2 | AA171: 10.4 | AB171: 10.6 | AC171: 10.7 | AD171: 206.1
A172: 2000-11-17 | B172: 2000-11-17 | C172: 11.9 | D172: 2.9 | G172: 11.9 | H172: 11.8 | I172: 11.6 | J172: 11.3 | K172: 10.9 | L172: 10.5 | M172: 10.2 | N172: 9.9 | O172: 9.7 | P172: 9.5 | Q172: 9.2 | R172: 9.1 | S172: 9.0 | T172: 9.0 | U172: 9.1 | V172: 9.2 | W172: 9.5 | X172: 9.8 | Y172: 10.3 | Z172: 10.8 | AA172: 11.2 | AB172: 11.6 | AC172: 11.8 | AD172: 200.0
A173: 2000-11-18 | B173: 2000-11-18 | C173: 12.4 | D173: 3.9 | G173: 12.4 | H173: 12.3 | I173: 12.0 | J173: 11.6 | K173: 11.1 | L173: 10.6 | M173: 10.1 | N173: 9.7 | O173: 9.4 | P173: 9.2 | Q173: 8.8 | R173: 8.7 | S173: 8.5 | T173: 8.5 | U173: 8.6 | V173: 8.8 | W173: 9.1 | X173: 9.6 | Y173: 10.2 | Z173: 10.9 | AA173: 11.5 | AB173: 12.0 | AC173: 12.3 | AD173: 201.1
A174: 2000-11-19 | B174: 2000-11-19 | C174: 12.4 | D174: 2 | G174: =$C174-(G$2*$D174/100) -> 12.4 | H174: 12.3 | I174: 12.2 | J174: 12.0 | K174: 11.7 | L174: 11.5 | M174: 11.2 | N174: 11.0 | O174: 10.9 | P174: 10.8 | Q174: 10.6 | R174: 10.5 | S174: 10.4 | T174: 10.4 | U174: 10.4 | V174: 10.5 | W174: 10.7 | X174: 11.0 | Y174: 11.3 | Z174: 11.6 | AA174: 11.9 | AB174: 12.2 | AC174: 12.3 | AD174: 177.1
A175: 2000-11-20 | B175: 2000-11-20 | C175: 13.2 | D175: 7.7 | G175: 13.2 | H175: 13.0 | I175: 12.4 | J175: 11.6 | K175: 10.6 | L175: 9.6 | M175: 8.7 | N175: 8.0 | O175: 7.3 | P175: 6.9 | Q175: 6.1 | R175: 5.8 | S175: 5.6 | T175: 5.5 | U175: 5.7 | V175: 6.0 | W175: 6.7 | X175: 7.7 | Y175: 8.9 | Z175: 10.2 | AA175: 11.4 | AB175: 12.4 | AC175: 13.0 | AD175: 230.7
A176: 2000-11-21 | B176: 2000-11-21 | C176: 13.9 | D176: 3.8 | G176: 13.9 | H176: 13.8 | I176: 13.5 | J176: 13.1 | K176: 12.6 | L176: 12.1 | M176: 11.7 | N176: 11.3 | O176: 11.0 | P176: 10.8 | Q176: 10.4 | R176: 10.3 | S176: 10.1 | T176: 10.1 | U176: 10.2 | V176: 10.4 | W176: 10.7 | X176: 11.2 | Y176: 11.8 | Z176: 12.4 | AA176: 13.0 | AB176: 13.5 | AC176: 13.8 | AD176: 165.3
A177: 2000-11-22 | B177: 2000-11-22 | C177: 12.8 | D177: 1.7 | G177: 12.8 | H177: 12.7 | I177: 12.6 | J177: 12.4 | K177: 12.2 | L177: 12.0 | M177: 11.8 | N177: 11.6 | O177: 11.5 | P177: 11.4 | Q177: 11.2 | R177: 11.2 | S177: 11.1 | T177: 11.1 | U177: 11.1 | V177: 11.2 | W177: 11.4 | X177: 11.6 | Y177: 11.8 | Z177: 12.1 | AA177: 12.4 | AB177: 12.6 | AC177: 12.7 | AD177: 164.1
A178: 2000-11-23 | B178: 2000-11-23 | C178: 13.4 | D178: 4.2 | G178: 13.4 | H178: 13.3 | I178: 13.0 | J178: 12.5 | K178: 12.0 | L178: 11.4 | M178: 11.0 | N178: 10.5 | O178: 10.2 | P178: 10.0 | Q178: 9.5 | R178: 9.4 | S178: 9.2 | T178: 9.2 | U178: 9.3 | V178: 9.5 | W178: 9.9 | X178: 10.4 | Y178: 11.0 | Z178: 11.8 | AA178: 12.4 | AB178: 12.9 | AC178: 13.3 | AD178: 181.9
A179: 2000-11-24 | B179: 2000-11-24 | C179: 9.9 | D179: 4.1 | G179: 9.9 | H179: 9.8 | I179: 9.5 | J179: 9.0 | K179: 8.5 | L179: 8.0 | M179: 7.5 | N179: 7.1 | O179: 6.8 | P179: 6.5 | Q179: 6.1 | R179: 6.0 | S179: 5.8 | T179: 5.8 | U179: 5.9 | V179: 6.1 | W179: 6.5 | X179: 7.0 | Y179: 7.6 | Z179: 8.3 | AA179: 9.0 | AB179: 9.4 | AC179: 9.8 | AD179: 261.1
A180: 2000-11-25 | B180: 2000-11-25 | C180: 7.5 | D180: 6.4 | G180: 7.5 | H180: 7.3 | I180: 6.9 | J180: 6.2 | K180: 5.3 | L180: 4.5 | M180: 3.8 | N180: 3.1 | O180: 2.6 | P180: 2.3 | Q180: 1.6 | R180: 1.4 | S180: 1.2 | T180: 1.1 | U180: 1.2 | V180: 1.5 | W180: =$C180-(W$2*$D180/100) -> 2.1 | X180: 3.0 | Y180: 3.9 | Z180: 5.0 | AA180: 6.0 | AB180: 6.8 | AC180: 7.3 | AD180: 345.4
A181: 2000-11-26 | B181: 2000-11-26 | C181: 7.5 | D181: 8.7 | G181: 7.5 | H181: 7.2 | I181: 6.6 | J181: 5.7 | K181: 4.5 | L181: 3.4 | M181: 2.5 | N181: 1.6 | O181: 0.9 | P181: 0.4 | Q181: -0.5 | R181: -0.9 | S181: -1.1 | T181: -1.2 | U181: -1.0 | V181: -0.6 | W181: 0.2 | X181: 1.3 | Y181: 2.6 | Z181: 4.1 | AA181: 5.5 | AB181: 6.5 | AC181: 7.2 | AD181: 374.5
A182: 2000-11-27 | B182: 2000-11-27 | C182: 8.5 | D182: 7.1 | G182: 8.5 | H182: 8.3 | I182: 7.8 | J182: 7.0 | K182: 6.1 | L182: 5.2 | M182: 4.4 | N182: 3.7 | O182: 3.1 | P182: 2.7 | Q182: 2.0 | R182: 1.7 | S182: 1.5 | T182: 1.4 | U182: 1.5 | V182: 1.9 | W182: 2.5 | X182: 3.5 | Y182: 4.5 | Z182: 5.7 | AA182: 6.9 | AB182: 7.7 | AC182: 8.3 | AD182: 331.2
A183: 2000-11-28 | B183: 2000-11-28 | C183: 11.6 | D183: 12.2 | G183: 11.6 | H183: 11.2 | I183: 10.4 | J183: 9.0 | K183: 7.5 | L183: 5.9 | M183: 4.5 | N183: 3.3 | O183: 2.3 | P183: 1.6 | Q183: 0.4 | R183: -0.1 | S183: -0.5 | T183: -0.6 | U183: -0.4 | V183: 0.3 | W183: 1.4 | X183: 2.9 | Y183: 4.8 | Z183: 6.8 | AA183: 8.8 | AB183: 10.3 | AC183: 11.2 | AD183: 324.4
A184: 2000-11-29 | B184: 2000-11-29 | C184: 11.8 | D184: 5.5 | G184: 11.8 | H184: 11.6 | I184: 11.3 | J184: 10.6 | K184: 9.9 | L184: 9.2 | M184: 8.6 | N184: 8.1 | O184: 7.6 | P184: 7.3 | Q184: 6.7 | R184: 6.5 | S184: 6.4 | T184: 6.3 | U184: 6.4 | V184: 6.7 | W184: 7.2 | X184: 7.9 | Y184: 8.7 | Z184: 9.7 | AA184: 10.5 | AB184: 11.2 | AC184: 11.6 | AD184: 235.1
A185: 2000-11-30 | B185: 2000-11-30 | C185: 8.6 | D185: 3.6 | G185: 8.6 | H185: 8.5 | I185: 8.2 | J185: 7.8 | K185: 7.4 | L185: 6.9 | M185: 6.5 | N185: 6.2 | O185: 5.9 | P185: 5.6 | Q185: 5.3 | R185: 5.1 | S185: 5.0 | T185: 5.0 | U185: 5.1 | V185: 5.3 | W185: 5.6 | X185: 6.0 | Y185: 6.6 | Z185: 7.2 | AA185: 7.8 | AB185: 8.2 | AC185: 8.5 | AD185: 284.7 | AE185: =SUM(AD156:AD185)/24 -> 264 | AG185: Djx en novembre
A186: 2000-12-01 | B186: 2000-12-01 | C186: 7.4 | D186: 2.5 | G186: 7.4 | H186: 7.3 | I186: 7.2 | J186: 6.9 | K186: 6.6 | L186: 6.2 | M186: 6.0 | N186: 5.7 | O186: 5.5 | P186: 5.4 | Q186: 5.1 | R186: 5.0 | S186: 4.9 | T186: 4.9 | U186: 5.0 | V186: 5.1 | W186: 5.3 | X186: 5.6 | Y186: 6.0 | Z186: 6.4 | AA186: 6.8 | AB186: 7.1 | AC186: 7.3 | AD186: 298.4
A187: 2000-12-02 | B187: 2000-12-02 | C187: 9 | D187: 5.4 | G187: 9.0 | H187: 8.8 | I187: 8.5 | J187: 7.9 | K187: 7.2 | L187: 6.5 | M187: 5.9 | N187: 5.3 | O187: 4.9 | P187: 4.6 | Q187: 4.0 | R187: 3.8 | S187: 3.7 | T187: 3.6 | U187: 3.7 | V187: 4.0 | W187: 4.5 | X187: 5.2 | Y187: 6.0 | Z187: 6.9 | AA187: 7.8 | AB187: 8.4 | AC187: 8.8 | AD187: 298.3
A188: 2000-12-03 | B188: 2000-12-03 | C188: 11.7 | D188: 7 | G188: 11.7 | H188: 11.5 | I188: 11.0 | J188: 10.2 | K188: 9.3 | L188: 8.4 | M188: 7.6 | N188: 6.9 | O188: 6.4 | P188: 6.0 | Q188: 5.3 | R188: 5.0 | S188: 4.8 | T188: 4.7 | U188: 4.8 | V188: 5.2 | W188: 5.8 | X188: 6.7 | Y188: 7.8 | Z188: 9.0 | AA188: 10.1 | AB188: 10.9 | AC188: 11.5 | AD188: 256.4
A189: 2000-12-04 | B189: 2000-12-04 | C189: 14.1 | D189: 5 | G189: 14.1 | H189: 14.0 | I189: 13.6 | J189: 13.1 | K189: 12.4 | L189: 11.8 | M189: 11.2 | N189: 10.7 | O189: 10.3 | P189: 10.0 | Q189: 9.5 | R189: 9.3 | S189: 9.2 | T189: 9.1 | U189: 9.2 | V189: 9.5 | W189: 9.9 | X189: 10.6 | Y189: 11.3 | Z189: 12.2 | AA189: 13.0 | AB189: 13.6 | AC189: 14.0 | AD189: 175.9
A190: 2000-12-05 | B190: 2000-12-05 | C190: 13.4 | D190: 3.8 | G190: 13.4 | H190: 13.3 | I190: 13.0 | J190: 12.6 | K190: 12.1 | L190: 11.6 | M190: 11.2 | N190: 10.8 | O190: 10.5 | P190: 10.3 | Q190: 9.9 | R190: 9.8 | S190: 9.6 | T190: 9.6 | U190: 9.7 | V190: 9.9 | W190: 10.2 | X190: 10.7 | Y190: 11.3 | Z190: 11.9 | AA190: 12.5 | AB190: 13.0 | AC190: 13.3 | AD190: 176.8
A191: 2000-12-06 | B191: 2000-12-06 | C191: 12.6 | D191: 3.3 | G191: 12.6 | H191: 12.5 | I191: 12.3 | J191: 11.9 | K191: 11.5 | L191: 11.0 | M191: 10.7 | N191: 10.4 | O191: 10.1 | P191: 9.9 | Q191: 9.6 | R191: 9.4 | S191: 9.3 | T191: 9.3 | U191: 9.4 | V191: 9.5 | W191: 9.8 | X191: 10.3 | Y191: 10.8 | Z191: 11.3 | AA191: 11.8 | AB191: 12.2 | AC191: 12.5 | AD191: 188.9
A192: 2000-12-07 | B192: 2000-12-07 | C192: 12.9 | D192: 3.5 | G192: 12.9 | H192: =$C192-(H$2*$D192/100) -> 12.8 | I192: 12.6 | J192: 12.2 | K192: 11.7 | L192: 11.3 | M192: 10.9 | N192: 10.5 | O192: 10.2 | P192: 10.0 | Q192: 9.7 | R192: 9.5 | S192: 9.4 | T192: 9.4 | U192: =$C192-(U$2*$D192/100) -> 9.5 | V192: 9.6 | W192: 10.0 | X192: 10.4 | Y192: 10.9 | Z192: 11.5 | AA192: 12.1 | AB192: 12.5 | AC192: 12.8 | AD192: 184.5
A193: 2000-12-08 | B193: 2000-12-08 | C193: 12.9 | D193: 7.7 | G193: =$C193-(G$2*$D193/100) -> 12.9 | H193: 12.7 | I193: 12.1 | J193: 11.3 | K193: 10.3 | L193: 9.3 | M193: 8.4 | N193: 7.7 | O193: 7.0 | P193: 6.6 | Q193: 5.8 | R193: 5.5 | S193: 5.3 | T193: 5.2 | U193: 5.4 | V193: 5.7 | W193: 6.4 | X193: 7.4 | Y193: 8.6 | Z193: 9.9 | AA193: 11.1 | AB193: 12.1 | AC193: 12.7 | AD193: 237.6
A194: 2000-12-09 | B194: 2000-12-09 | C194: 10.1 | D194: 2.2 | G194: 10.1 | H194: 10.0 | I194: 9.9 | J194: 9.6 | K194: 9.4 | L194: 9.1 | M194: 8.8 | N194: 8.6 | O194: 8.4 | P194: 8.3 | Q194: 8.1 | R194: 8.0 | S194: 7.9 | T194: 7.9 | U194: 7.9 | V194: 8.1 | W194: 8.3 | X194: 8.5 | Y194: 8.9 | Z194: 9.2 | AA194: 9.6 | AB194: 9.9 | AC194: 10.0 | AD194: 232.5
A195: 2000-12-10 | B195: 2000-12-10 | C195: 6.5 | D195: 3.1 | G195: 6.5 | H195: 6.4 | I195: 6.2 | J195: 5.8 | K195: 5.4 | L195: 5.0 | M195: 4.7 | N195: 4.4 | O195: 4.1 | P195: 4.0 | Q195: 3.6 | R195: 3.5 | S195: 3.4 | T195: 3.4 | U195: 3.5 | V195: 3.6 | W195: 3.9 | X195: 4.3 | Y195: 4.8 | Z195: 5.3 | AA195: 5.8 | AB195: 6.2 | AC195: 6.4 | AD195: 326.7
A196: 2000-12-11 | B196: 2000-12-11 | C196: 8.9 | D196: 7.6 | G196: 8.9 | H196: 8.7 | I196: 8.1 | J196: 7.3 | K196: 6.3 | L196: 5.3 | M196: 4.5 | N196: 3.7 | O196: 3.1 | P196: 2.7 | Q196: 1.9 | R196: 1.6 | S196: 1.4 | T196: 1.3 | U196: 1.5 | V196: 1.8 | W196: =$C196-(W$2*$D196/100) -> 2.5 | X196: 3.5 | Y196: 4.6 | Z196: 5.9 | AA196: 7.2 | AB196: 8.1 | AC196: 8.7 | AD196: 328.4
A197: 2000-12-12 | B197: =A197 -> 2000-12-12 | C197: 10.5 | D197: 4.8 | G197: 10.5 | H197: 10.4 | I197: 10.0 | J197: 9.5 | K197: 8.9 | L197: 8.2 | M197: 7.7 | N197: 7.2 | O197: 6.9 | P197: 6.6 | Q197: 6.1 | R197: 5.9 | S197: 5.7 | T197: 5.7 | U197: 5.8 | V197: 6.0 | W197: 6.5 | X197: 7.1 | Y197: 7.8 | Z197: 8.6 | AA197: 9.4 | AB197: 10.0 | AC197: 10.4 | AD197: =(AE$4*23)-SUM($G197:$AC197) -> 256.2
A198: 2000-12-13 | B198: 2000-12-13 | C198: 10.1 | D198: 4.4 | G198: 10.1 | H198: 10.0 | I198: 9.7 | J198: 9.2 | K198: 8.6 | L198: 8.0 | M198: 7.5 | N198: 7.1 | O198: 6.8 | P198: 6.5 | Q198: 6.1 | R198: 5.9 | S198: 5.7 | T198: 5.7 | U198: 5.8 | V198: 6.0 | W198: 6.4 | X198: 7.0 | Y198: 7.6 | Z198: 8.4 | AA198: 9.1 | AB198: 9.6 | AC198: 10.0 | AD198: 260.3
A199: 2000-12-14 | B199: 2000-12-14 | C199: 5.6 | D199: 3.2 | G199: 5.6 | H199: 5.5 | I199: 5.3 | J199: 4.9 | K199: 4.5 | L199: 4.1 | M199: 3.7 | N199: 3.4 | O199: 3.2 | P199: 3.0 | Q199: 2.7 | R199: 2.5 | S199: 2.4 | T199: 2.4 | U199: 2.5 | V199: 2.6 | W199: 2.9 | X199: 3.3 | Y199: 3.8 | Z199: 4.4 | AA199: 4.9 | AB199: 5.2 | AC199: 5.5 | AD199: 348.6
A200: 2000-12-15 | B200: 2000-12-15 | C200: 9.4 | D200: 7.4 | G200: 9.4 | H200: 9.2 | I200: 8.7 | J200: 7.8 | K200: 6.9 | L200: 5.9 | M200: 5.1 | N200: 4.4 | O200: 3.8 | P200: 3.3 | Q200: 2.6 | R200: 2.3 | S200: 2.1 | T200: 2.0 | U200: 2.1 | V200: 2.5 | W200: 3.2 | X200: 4.1 | Y200: 5.3 | Z200: 6.5 | AA200: 7.7 | AB200: 8.6 | AC200: 9.2 | AD200: 314.3
... 17 more rows
